Workbook

Sheet SL EoS
C2: PVT and Saturated Vapor Pressures and | G2: Saturation calculation- specification of T to calculate Psat and | M2: PVT calculation -- specification of T and P to calculate rho including the unstable region that contains possible states of saturation | AW2: n-heptane | BA2: NIST calculated saturation data for n-heptane
C3: Liquid and Vapor Densities with the | G3: saturated liquid and vapor densities | AW3: Tc [C] | AX3: 266.98
C4: Sanchez-Lacombe Equation of State v0.5 | G4: n-heptane | M4: n-heptane | P4: rhotilde [-] | Q4: h(rhotilde) | R4: Gtilde | S4: Tspinodal | T4: Pspinodal | U4: Ptilde | AQ4: rhotilde [-] | AR4: Tspinodal | AS4: Pspinodal | AT4: Ptilde | AW4: Pc [MPa] | AX4: 2.736 | BA4: Temperature (C) | BB4: Pressure (MPa) | BC4: Density (l, kg/m3) | BD4: Volume (l, m3/kg) | BE4: Internal Energy (l, kJ/kg) | BF4: Enthalpy (l, kJ/kg) | BG4: Entropy (l, J/g*K) | BH4: Cv (l, J/g*K) | BI4: Cp (l, J/g*K) | BJ4: Sound Spd. (l, m/s) | BK4: Joule-Thomson (l, K/MPa) | BL4: Viscosity (l, Pa*s) | BM4: Therm. Cond. (l, W/m*K) | BN4: Surf. Tension (l, N/m) | BO4: Density (v, kg/m3) | BP4: Volume (v, m3/kg) | BQ4: Internal Energy (v, kJ/kg) | BR4: Enthalpy (v, kJ/kg) | BS4: Entropy (v, J/g*K) | BT4: Cv (v, J/g*K) | BU4: Cp (v, J/g*K) | BV4: Sound Spd. (v, m/s) | BW4: Joule-Thomson (v, K/MPa) | BX4: Viscosity (v, Pa*s) | BY4: Therm. Cond. (v, W/m*K) | CC4: Temperature (C) | CD4: Pressure (MPa) | CE4: Density (l, kg/m3) | CF4: Volume (l, m3/kg) | CG4: Internal Energy (l, kJ/kg) | CH4: Enthalpy (l, kJ/kg) | CI4: Entropy (l, J/g*K) | CJ4: Cv (l, J/g*K) | CK4: Cp (l, J/g*K) | CL4: Sound Spd. (l, m/s) | CM4: Joule-Thomson (l, K/MPa) | CN4: Viscosity (l, Pa*s) | CO4: Therm. Cond. (l, W/m*K) | CP4: Surf. Tension (l, N/m) | CQ4: Density (v, kg/m3) | CR4: Volume (v, m3/kg) | CS4: Internal Energy (v, kJ/kg) | CT4: Enthalpy (v, kJ/kg) | CU4: Entropy (v, J/g*K) | CV4: Cv (v, J/g*K) | CW4: Cp (v, J/g*K) | CX4: Sound Spd. (v, m/s) | CY4: Joule-Thomson (v, K/MPa) | CZ4: Viscosity (v, Pa*s) | DA4: Therm. Cond. (v, W/m*K)
C5: Report problems to: smith@scf.che.tohoku.ac.jp | G5: e* [J/mol] | H5: 4048.156 | M5: e* [J/mol] | N5: 4048.156 | P5: 0.002 | Q5: =hrho_rchain_rhotilde_Ttilde_Ptilde($N$13,P5,$N$18,$N$19) -> 0.003452953416 | R5: =Gtilde_rchain_rhotilde_Ttilde_Ptilde($N$13,P5,$N$18,$N$19) -> -0.795413283 | S5: =TSpinodalSLEoS_rchain_rhotilde($N$13,P5) -> 0.0375596673 | T5: =PSpinodalSLEoS_rchain_rhotilde($N$13,P5) -> 3.924679895e-06 | U5: =Ptilde_rchain_rhotilde_Ttilde($N$13,P5,$N$18) -> 0.0002010272641 | AQ5: 0.002 | AR5: =TSpinodalSLEoS_rchain_rhotilde($H$13,AQ5) -> 0.0375596673 | AS5: =PSpinodalSLEoS_rchain_rhotilde($H$13,AQ5) -> 3.924679895e-06 | AT5: =Ptilde_rchain_rhotilde_Ttilde($H$13,AQ5,$H$16) -> 0.0002010272641 | AW5: rhoc [kg/m3] | AX5: 232 | BA5: 25 | BB5: 0.0060908 | BC5: 679.5 | BD5: 0.0014717 | BE5: -175.7 | BF5: -175.69 | BG5: -0.52509 | BH5: 1.775 | BI5: 2.2407 | BJ5: 1127.8 | BK5: -0.413 | BL5: 0.000388 | BM5: 0.13122 | BN5: 0.020026 | BO5: 0.24795 | BP5: 4.033 | BQ5: 164.86 | BR5: 189.43 | BS5: 0.69951 | BT5: 1.5694 | BU5: 1.6559 | BV5: 160.42 | BW5: 68.921 | BX5: 5.9686e-06 | BY5: 0.0116 | CC5: -30.402 | CD5: 0.00017549 | CE5: 725.62 | CF5: 0.0013781 | CG5: -294.63 | CH5: -294.63 | CI5: -0.96579 | CJ5: 1.6055 | CK5: 2.0647 | CL5: 1369.1 | CM5: -0.48288 | CN5: 0.00083725 | CO5: 0.14518 | CP5: 0.02607 | CQ5: 0.0087164 | CR5: 114.73 | CS5: 84.974 | CT5: 105.11 | CU5: 0.68094 | CV5: 1.3417 | CW5: 1.4249 | CX5: 146.19 | CY5: 154.45 | CZ5: 4.8261e-06 | DA5: 0.0078831
G6: v* [cm3/mol] | H6: 13.09 | M6: v* [cm3/mol] | N6: 13.09 | P6: 0.004 | Q6: =hrho_rchain_rhotilde_Ttilde_Ptilde($N$13,P6,$N$18,$N$19) -> 0.005248469542 | R6: =Gtilde_rchain_rhotilde_Ttilde_Ptilde($N$13,P6,$N$18,$N$19) -> -1.130253397 | S6: =TSpinodalSLEoS_rchain_rhotilde($N$13,P6) -> 0.07372641838 | T6: =PSpinodalSLEoS_rchain_rhotilde($N$13,P6) -> 1.540702878e-05 | U6: =Ptilde_rchain_rhotilde_Ttilde($N$13,P6,$N$18) -> 0.0003979571044 | AQ6: 0.004 | AR6: =TSpinodalSLEoS_rchain_rhotilde($H$13,AQ6) -> 0.07372641838 | AS6: =PSpinodalSLEoS_rchain_rhotilde($H$13,AQ6) -> 1.540702878e-05 | AT6: =Ptilde_rchain_rhotilde_Ttilde($H$13,AQ6,$H$16) -> 0.0003979571044 | AW6: acentric w | AX6: 0.349 | BA6: 26.21 | BB6: 0.0064677 | BC6: 678.48 | BD6: 0.0014739 | BE6: -172.99 | BF6: -172.98 | BG6: -0.51601 | BH6: 1.7793 | BI6: 2.2452 | BJ6: 1122.8 | BK6: -0.41115 | BL6: 0.00038276 | BM6: 0.13091 | BN6: 0.019899 | BO6: 0.26232 | BP6: 3.8122 | BQ6: 166.73 | BR6: 191.39 | BS6: 0.70114 | BT6: 1.5748 | BU6: 1.6614 | BV6: 160.68 | BW6: 67.858 | BX6: 5.9941e-06 | BY6: 0.011693 | CC6: 51.629 | CD6: 0.020175 | CE6: 656.66 | CF6: 0.0015229 | CG6: -114.65 | CH6: -114.62 | CI6: -0.32903 | CJ6: 1.8719 | CK6: 2.347 | CL6: 1018.9 | CM6: -0.36874 | CN6: 0.00029379 | CO6: 0.12444 | CP6: 0.01727 | CQ6: 0.76158 | CR6: 1.3131 | CS6: 207.3 | CT6: 233.8 | CU6: 0.74375 | CV6: 1.6913 | CW6: 1.7827 | CX6: 165.65 | CY6: 49.97 | CZ6: 6.5385e-06 | DA6: 0.013738
G7: r | H7: 9.57 | M7: r | N7: 9.57 | P7: 0.006 | Q7: 0.007048925247 | R7: -1.224839362 | S7: 0.1085683742 | T7: 3.403002921e-05 | U7: 0.0005908052099 | AQ7: 0.006 | AR7: 0.1085683742 | AS7: 3.403002921e-05 | AT7: 0.0005908052099 | BA7: 27.42 | BB7: 0.006864 | BC7: 677.46 | BD7: 0.0014761 | BE7: -170.27 | BF7: -170.26 | BG7: -0.50694 | BH7: 1.7835 | BI7: 2.2498 | BJ7: 1117.8 | BK7: -0.40928 | BL7: 0.00037764 | BM7: 0.13059 | BN7: 0.019772 | BO7: 0.27736 | BP7: 3.6054 | BQ7: 168.61 | BR7: 193.36 | BS7: 0.70281 | BT7: 1.5802 | BU7: 1.667 | BV7: 160.95 | BW7: 66.818 | BX7: 6.0197e-06 | BY7: 0.011785 | CC7: 69.767 | CD7: 0.040175 | CE7: 640.63 | CF7: 0.001561 | CG7: -71.391 | CH7: -71.329 | CI7: -0.19944 | CJ7: 1.9413 | CK7: 2.4255 | CL7: 946.35 | CM7: -0.33382 | CN7: 0.0002481 | CO7: 0.11993 | CP7: 0.015449 | CQ7: 1.4523 | CR7: 0.68859 | CS7: 237.65 | CT7: 265.31 | CU7: 0.78226 | CV7: 1.7776 | CW7: 1.8745 | CX7: 168.34 | CY7: 41.155 | CZ7: 6.9383e-06 | DA7: 0.01533
G8: M [kg/mol] | H8: 0.100125198 | M8: M [kg/mol] | N8: 0.100125198 | P8: 0.008 | Q8: 0.008854281973 | R8: -1.264017715 | S8: 0.142149285 | T8: 5.940226215e-05 | U8: 0.000779587364 | AQ8: 0.008 | AR8: 0.142149285 | AS8: 5.940226215e-05 | AT8: 0.000779587364 | BA8: 28.63 | BB8: 0.0072803 | BC8: 676.43 | BD8: 0.0014784 | BE8: -167.54 | BF8: -167.53 | BG8: -0.4979 | BH8: 1.7878 | BI8: 2.2545 | BJ8: 1112.8 | BK8: -0.4074 | BL8: 0.00037262 | BM8: 0.13029 | BN8: 0.019645 | BO8: 0.2931 | BP8: 3.4118 | BQ8: 170.49 | BR8: 195.33 | BS8: 0.70452 | BT8: 1.5856 | BU8: 1.6726 | BV8: 161.21 | BW8: 65.799 | BX8: 6.0453e-06 | BY8: 0.011878 | CC8: 81.596 | CD8: 0.060175 | CE8: 629.9 | CF8: 0.0015876 | CG8: -42.4 | CH8: -42.304 | CI8: -0.11632 | CJ8: 1.9876 | CK8: 2.479 | CL8: 899.55 | CM8: -0.3084 | CN8: 0.00022373 | CO8: 0.11703 | CP8: 0.014288 | CQ8: 2.1226 | CR8: 0.47112 | CS8: 258.03 | CT8: 286.37 | CU8: 0.8102 | CV8: 1.8349 | CW8: 1.9367 | CX8: 169.63 | CY8: 36.669 | CZ8: 7.2054e-06 | DA8: 0.01643
P9: 0.01 | Q9: 0.01066450111 | R9: -1.282801611 | S9: 0.1745288754 | T9: 9.115588057e-05 | U9: 0.0009643194459 | AQ9: 0.01 | AR9: 0.1745288754 | AS9: 9.115588057e-05 | AT9: 0.0009643194459 | BA9: 29.84 | BB9: 0.0077174 | BC9: 675.4 | BD9: 0.0014806 | BE9: -164.81 | BF9: -164.8 | BG9: -0.48887 | BH9: 1.7921 | BI9: 2.2591 | BJ9: 1107.8 | BK9: -0.4055 | BL9: 0.0003677 | BM9: 0.12998 | BN9: 0.019518 | BO9: 0.30957 | BP9: 3.2302 | BQ9: 172.38 | BR9: 197.31 | BS9: 0.70626 | BT9: 1.591 | BU9: 1.6782 | BV9: 161.47 | BW9: 64.802 | BX9: 6.0709e-06 | BY9: 0.011972 | CC9: 90.612 | CD9: 0.080175 | CE9: 621.55 | CF9: 0.0016089 | CG9: -19.879 | CH9: -19.75 | CI9: -0.053628 | CJ9: 2.0231 | CK9: 2.521 | CL9: 864.07 | CM9: -0.28732 | CN9: 0.00020739 | CO9: 0.11486 | CP9: 0.013417 | CQ9: 2.7817 | CR9: 0.35949 | CS9: 273.85 | CT9: 302.68 | CU9: 0.83274 | CV9: 1.879 | CW9: 1.9853 | CX9: 170.34 | CY9: 33.786 | CZ9: 7.4129e-06 | DA9: 0.0173
G10: T* [K] | H10: =H5/8.314 -> 486.9083474 | M10: T* [K] | N10: =N5/8.314 -> 486.9083474 | P10: 0.012 | Q10: 0.012479544 | R10: -1.292256069 | S10: 0.2057631569 | T10: 0.000128944772 | U10: 0.001145017431 | AQ10: 0.012 | AR10: 0.2057631569 | AS10: 0.000128944772 | AT10: 0.001145017431 | BA10: 31.05 | BB10: 0.0081762 | BC10: 674.37 | BD10: 0.0014829 | BE10: -162.08 | BF10: -162.06 | BG10: -0.47986 | BH10: 1.7964 | BI10: 2.2638 | BJ10: 1102.8 | BK10: -0.40359 | BL10: 0.00036288 | BM10: 0.12967 | BN10: 0.019391 | BO10: 0.32679 | BP10: 3.06 | BQ10: 174.28 | BR10: 199.3 | BS10: 0.70805 | BT10: 1.5965 | BU10: 1.6838 | BV10: 161.72 | BW10: 63.825 | BX10: 6.0965e-06 | BY10: 0.012066 | CC10: 97.995 | CD10: 0.10018 | CE10: 614.58 | CF10: 0.0016271 | CG10: -1.1569 | CH10: -0.99392 | CI10: -0.0026715 | CJ10: 2.0525 | CK10: 2.5562 | CL10: 835.08 | CM10: -0.26874 | CN10: 0.00019523 | CO10: 0.11309 | CP10: 0.012713 | CQ10: 3.4336 | CR10: 0.29124 | CS10: 287 | CT10: 316.17 | CU10: 0.85189 | CV10: 1.9154 | CW10: 2.026 | CX10: 170.72 | CY10: 31.72 | CZ10: 7.5859e-06 | DA10: 0.018035
G11: P* [MPa] | H11: =(H5/(H6*0.000001))/1000000 -> 309.255615 | M11: P* [MPa] | N11: =(N5/(N6*0.000001))/1000000 -> 309.255615 | P11: 0.014 | Q11: 0.01429937194 | R11: -1.296870716 | S11: 0.2359047126 | T11: 0.0001724428899 | U11: 0.001321697392 | AQ11: 0.014 | AR11: 0.2359047126 | AS11: 0.0001724428899 | AT11: 0.001321697392 | BA11: 32.259 | BB11: 0.0086575 | BC11: 673.34 | BD11: 0.0014851 | BE11: -159.33 | BF11: -159.32 | BG11: -0.47086 | BH11: 1.8007 | BI11: 2.2685 | BJ11: 1097.8 | BK11: -0.40166 | BL11: 0.00035816 | BM11: 0.12936 | BN11: 0.019265 | BO11: 0.34479 | BP11: 2.9003 | BQ11: 176.18 | BR11: 201.29 | BS11: 0.70987 | BT11: 1.602 | BU11: 1.6895 | BV11: 161.97 | BW11: 62.868 | BX11: 6.1222e-06 | BY11: 0.01216 | CC11: 104.3 | CD11: 0.12018 | CE11: 608.54 | CF11: 0.0016433 | CG11: 15.031 | CH11: 15.229 | CI11: 0.040582 | CJ11: 2.0776 | CK11: 2.5867 | CL11: 810.36 | CM11: -0.2518 | CN11: 0.00018561 | CO11: 0.11159 | CP11: 0.012118 | CQ11: 4.0809 | CR11: 0.24504 | CS11: 298.34 | CT11: 327.79 | CU11: 0.86867 | CV11: 1.9465 | CW11: 2.0613 | CX11: 170.9 | CY11: 30.143 | CZ11: 7.7361e-06 | DA11: 0.018678
G12: rho* [kg/m3] | H12: =H8/H7/H6*1000000 -> 799.2668552 | M12: rho* [kg/m3] | N12: =N8/N7/N6*1000000 -> 799.2668552 | P12: 0.016 | Q12: 0.01612394616 | R12: -1.298765873 | S12: 0.2650029548 | T12: 0.0002213427356 | U12: 0.001494375499 | AQ12: 0.016 | AR12: 0.2650029548 | AS12: 0.0002213427356 | AT12: 0.001494375499 | BA12: 33.469 | BB12: 0.0091621 | BC12: 672.31 | BD12: 0.0014874 | BE12: -156.59 | BF12: -156.57 | BG12: -0.46188 | BH12: 1.805 | BI12: 2.2732 | BJ12: 1092.8 | BK12: -0.39972 | BL12: 0.00035354 | BM12: 0.12905 | BN12: 0.019139 | BO12: 0.36359 | BP12: 2.7503 | BQ12: 178.08 | BR12: 203.28 | BS12: 0.71173 | BT12: 1.6074 | BU12: 1.6952 | BV12: 162.23 | BW12: 61.932 | BX12: 6.1479e-06 | BY12: 0.012255 | CC12: 109.83 | CD12: 0.14018 | CE12: 603.15 | CF12: 0.001658 | CG12: 29.392 | CH12: 29.624 | CI12: 0.078358 | CJ12: 2.0996 | CK12: 2.614 | CL12: 788.68 | CM12: -0.236 | CN12: 0.00017768 | CO12: 0.11029 | CP12: 0.011602 | CQ12: 4.7251 | CR12: 0.21164 | CS12: 308.39 | CT12: 338.05 | CU12: 0.8837 | CV12: 1.9739 | CW12: 2.0929 | CX12: 170.93 | CY12: 28.888 | CZ12: 7.87e-06 | DA12: 0.019255
G13: rchain | H13: =H7 -> 9.57 | M13: rchain | N13: =N7 -> 9.57 | P13: 0.018 | Q13: 0.01795322788 | R13: -1.299050892 | S13: 0.2931043612 | T13: 0.0002753539755 | U13: 0.001663068022 | AQ13: 0.018 | AR13: 0.2931043612 | AS13: 0.0002753539755 | AT13: 0.001663068022 | BA13: 34.679 | BB13: 0.0096909 | BC13: 671.28 | BD13: 0.0014897 | BE13: -153.83 | BF13: -153.82 | BG13: -0.45292 | BH13: 1.8094 | BI13: 2.278 | BJ13: 1087.8 | BK13: -0.39777 | BL13: 0.000349 | BM13: 0.12874 | BN13: 0.019013 | BO13: 0.38322 | BP13: 2.6095 | BQ13: 179.99 | BR13: 205.28 | BS13: 0.71363 | BT13: 1.6129 | BU13: 1.7008 | BV13: 162.47 | BW13: 61.015 | BX13: 6.1737e-06 | BY13: 0.01235 | CC13: 114.78 | CD13: 0.16018 | CE13: 598.26 | CF13: 0.0016715 | CG13: 42.364 | CH13: 42.632 | CI13: 0.11202 | CJ13: 2.1194 | CK13: 2.6387 | CL13: 769.27 | CM13: -0.22104 | CN13: 0.00017096 | CO13: 0.10913 | CP13: 0.011144 | CQ13: 5.3673 | CR13: 0.18631 | CS13: 317.44 | CT13: 347.28 | CU13: 0.89735 | CV13: 1.9985 | CW13: 2.1215 | CX13: 170.87 | CY13: 27.86 | CZ13: 7.9916e-06 | DA13: 0.01978
P14: 0.02 | Q14: 0.01978717825 | R14: -1.298350434 | S14: 0.3202526891 | T14: 0.0003342021802 | U14: 0.001827791328 | AQ14: 0.02 | AR14: 0.3202526891 | AS14: 0.0003342021802 | AT14: 0.001827791328 | BA14: 35.889 | BB14: 0.010245 | BC14: 670.25 | BD14: 0.001492 | BE14: -151.07 | BF14: -151.06 | BG14: -0.44398 | BH14: 1.8138 | BI14: 2.2828 | BJ14: 1082.9 | BK14: -0.3958 | BL14: 0.00034455 | BM14: 0.12843 | BN14: 0.018887 | BO14: 0.40371 | BP14: 2.477 | BQ14: 181.91 | BR14: 207.28 | BS14: 0.71556 | BT14: 1.6184 | BU14: 1.7066 | BV14: 162.72 | BW14: 60.116 | BX14: 6.1995e-06 | BY14: 0.012446 | CC14: 119.27 | CD14: 0.18018 | CE14: 593.76 | CF14: 0.0016842 | CG14: 54.24 | CH14: 54.544 | CI14: 0.14246 | CJ14: 2.1373 | CK14: 2.6615 | CL14: 751.64 | CM14: -0.2067 | CN14: 0.00016515 | CO14: 0.10808 | CP14: 0.010732 | CQ14: 6.0084 | CR14: 0.16643 | CS14: 325.71 | CT14: 355.7 | CU14: 0.9099 | CV14: 2.0208 | CW14: 2.1479 | CX14: 170.72 | CY14: 26.998 | CZ14: 8.1036e-06 | DA14: 0.020266
G15: T [C] | H15: 200 | M15: T [C] | N15: 200 | P15: 0.022 | Q15: 0.02162575837 | R15: -1.297036041 | S15: 0.3464891716 | T15: 0.0003976276719 | U15: 0.001988561888 | AQ15: 0.022 | AR15: 0.3464891716 | AS15: 0.0003976276719 | AT15: 0.001988561888 | BA15: 37.099 | BB15: 0.010825 | BC15: 669.21 | BD15: 0.0014943 | BE15: -148.31 | BF15: -148.29 | BG15: -0.43505 | BH15: 1.8181 | BI15: 2.2876 | BJ15: 1077.9 | BK15: -0.39381 | BL15: 0.00034019 | BM15: 0.12812 | BN15: 0.018762 | BO15: 0.42508 | BP15: 2.3525 | BQ15: 183.83 | BR15: 209.29 | BS15: 0.71753 | BT15: 1.624 | BU15: 1.7123 | BV15: 162.96 | BW15: 59.236 | BX15: 6.2253e-06 | BY15: 0.012543 | CC15: 123.39 | CD15: 0.20018 | CE15: 589.58 | CF15: 0.0016961 | CG15: 65.227 | CH15: 65.566 | CI15: 0.17032 | CJ15: 2.1538 | CK15: 2.6827 | CL15: 735.44 | CM15: -0.19285 | CN15: 0.00016003 | CO15: 0.10712 | CP15: 0.010357 | CQ15: 6.6489 | CR15: 0.1504 | CS15: 333.35 | CT15: 363.45 | CU15: 0.92153 | CV15: 2.0414 | CW15: 2.1725 | CX15: 170.51 | CY15: 26.264 | CZ15: 8.2079e-06 | DA15: 0.020718
G16: Ttilde | H16: =(H15+273.15)/H10 -> 0.9717434555 | M16: P [MPa] | N16: 0.5 | P16: 0.024 | Q16: 0.02346892933 | R16: -1.295338137 | S16: 0.3718526972 | T16: 0.0004653844704 | U16: 0.002145396272 | AQ16: 0.024 | AR16: 0.3718526972 | AS16: 0.0004653844704 | AT16: 0.002145396272 | BA16: 38.309 | BB16: 0.011431 | BC16: 668.17 | BD16: 0.0014966 | BE16: -145.54 | BF16: -145.52 | BG16: -0.42614 | BH16: 1.8225 | BI16: 2.2924 | BJ16: 1072.9 | BK16: -0.39181 | BL16: 0.00033592 | BM16: 0.12781 | BN16: 0.018636 | BO16: 0.44736 | BP16: 2.2353 | BQ16: 185.75 | BR16: 211.31 | BS16: 0.71953 | BT16: 1.6295 | BU16: 1.718 | BV16: 163.2 | BW16: 58.374 | BX16: 6.2512e-06 | BY16: 0.01264 | CC16: 127.21 | CD16: 0.22018 | CE16: 585.66 | CF16: 0.0017075 | CG16: 75.474 | CH16: 75.85 | CI16: 0.19604 | CJ16: 2.1691 | CK16: 2.7026 | CL16: 720.42 | CM16: -0.17936 | CN16: 0.00015546 | CO16: 0.10624 | CP16: 0.010013 | CQ16: 7.2896 | CR16: 0.13718 | CS16: 340.45 | CT16: 370.65 | CU16: 0.93239 | CV16: 2.0604 | CW16: 2.1955 | CX16: 170.25 | CY16: 25.629 | CZ16: 8.3059e-06 | DA16: 0.021143
P17: 0.026 | Q17: 0.02531665215 | R17: -1.293404309 | S17: 0.3963799742 | T17: 0.0005372393279 | U17: 0.00229831115 | AQ17: 0.026 | AR17: 0.3963799742 | AS17: 0.0005372393279 | AT17: 0.00229831115 | BA17: 39.519 | BB17: 0.012066 | BC17: 667.14 | BD17: 0.0014989 | BE17: -142.76 | BF17: -142.75 | BG17: -0.41724 | BH17: 1.827 | BI17: 2.2972 | BJ17: 1068 | BK17: -0.3898 | BL17: 0.00033172 | BM17: 0.12751 | BN17: 0.018511 | BO17: 0.47058 | BP17: 2.125 | BQ17: 187.68 | BR17: 213.33 | BS17: 0.72157 | BT17: 1.635 | BU17: 1.7238 | BV17: 163.44 | BW17: 57.53 | BX17: 6.2771e-06 | BY17: 0.012737 | CC17: 130.76 | CD17: 0.24018 | CE17: 581.96 | CF17: 0.0017183 | CG17: 85.095 | CH17: 85.508 | CI17: 0.21997 | CJ17: 2.1833 | CK17: 2.7214 | CL17: 706.39 | CM17: -0.16616 | CN17: 0.00015135 | CO17: 0.10542 | CP17: 0.0096936 | CQ17: 7.9306 | CR17: 0.12609 | CS17: 347.1 | CT17: 377.38 | CU17: 0.94259 | CV17: 2.0782 | CW17: 2.2173 | CX17: 169.95 | CY17: 25.076 | CZ17: 8.3986e-06 | DA17: 0.021545
G18: Pctilde | H18: =PctildeSLEoS_rchain($H$13) -> 0.01037855957 | M18: Ttilde | N18: =(N15+273.15)/N10 -> 0.9717434555 | P18: 0.028 | Q18: 0.02716888783 | R18: -1.291331463 | S18: 0.4201056808 | T18: 0.0006129708433 | U18: 0.002447323299 | AQ18: 0.028 | AR18: 0.4201056808 | AS18: 0.0006129708433 | AT18: 0.002447323299 | BA18: 40.729 | BB18: 0.012729 | BC18: 666.1 | BD18: 0.0015013 | BE18: -139.98 | BF18: -139.96 | BG18: -0.40836 | BH18: 1.8314 | BI18: 2.3021 | BJ18: 1063.1 | BK18: -0.38777 | BL18: 0.00032761 | BM18: 0.1272 | BN18: 0.018386 | BO18: 0.49477 | BP18: 2.0211 | BQ18: 189.62 | BR18: 215.35 | BS18: 0.72364 | BT18: 1.6406 | BU18: 1.7296 | BV18: 163.67 | BW18: 56.703 | BX18: 6.3031e-06 | BY18: 0.012835 | CC18: 134.1 | CD18: 0.26018 | CE18: 578.44 | CF18: 0.0017288 | CG18: 94.18 | CH18: 94.63 | CI18: 0.24238 | CJ18: 2.1966 | CK18: 2.7393 | CL18: 693.2 | CM18: -0.15318 | CN18: 0.00014761 | CO18: 0.10465 | CP18: 0.0093963 | CQ18: 8.5725 | CR18: 0.11665 | CS18: 353.36 | CT18: 383.71 | CU18: 0.95222 | CV18: 2.0948 | CW18: 2.2381 | CX18: 169.61 | CY18: 24.588 | CZ18: 8.4868e-06 | DA18: 0.021927
G19: Pc [MPa] | H19: =H18*N11 -> 3.209627823 | M19: Ptilde | N19: =N16/N11 -> 0.001616785519 | P19: 0.03 | Q19: 0.02902559733 | R19: -1.289184426 | S19: 0.4430626044 | T19: 0.0006923686497 | U19: 0.002592449597 | AQ19: 0.03 | AR19: 0.4430626044 | AS19: 0.0006923686497 | AT19: 0.002592449597 | BA19: 41.939 | BB19: 0.013423 | BC19: 665.06 | BD19: 0.0015036 | BE19: -137.19 | BF19: -137.17 | BG19: -0.3995 | BH19: 1.8358 | BI19: 2.307 | BJ19: 1058.1 | BK19: -0.38572 | BL19: 0.00032357 | BM19: 0.12689 | BN19: 0.018261 | BO19: 0.51997 | BP19: 1.9232 | BQ19: 191.56 | BR19: 217.38 | BS19: 0.72575 | BT19: 1.6462 | BU19: 1.7354 | BV19: 163.91 | BW19: 55.893 | BX19: 6.329e-06 | BY19: 0.012933 | CC19: 137.25 | CD19: 0.28018 | CE19: 575.09 | CF19: 0.0017389 | CG19: 102.8 | CH19: 103.29 | CI19: 0.26347 | CJ19: 2.2092 | CK19: 2.7563 | CL19: 680.75 | CM19: -0.14036 | CN19: 0.00014418 | CO19: 0.10392 | CP19: 0.0091178 | CQ19: 9.2156 | CR19: 0.10851 | CS19: 359.29 | CT19: 389.69 | CU19: 0.96134 | CV19: 2.1106 | CW19: 2.2579 | CX19: 169.25 | CY19: 24.155 | CZ19: 8.5711e-06 | DA19: 0.022291
G20: Tctilde | H20: =TctildeSLEoS_rchain($H$13) -> 1.142203547 | P20: 0.032 | Q20: 0.03088674155 | R20: -1.287007145 | S20: 0.465281768 | T20: 0.0007752326667 | U20: 0.002733707027 | AQ20: 0.032 | AR20: 0.465281768 | AS20: 0.0007752326667 | AT20: 0.002733707027 | BA20: 43.149 | BB20: 0.014147 | BC20: 664.01 | BD20: 0.001506 | BE20: -134.4 | BF20: -134.38 | BG20: -0.39065 | BH20: 1.8403 | BI20: 2.3119 | BJ20: 1053.2 | BK20: -0.38366 | BL20: 0.00031961 | BM20: 0.12658 | BN20: 0.018137 | BO20: 0.54619 | BP20: 1.8309 | BQ20: 193.51 | BR20: 219.41 | BS20: 0.72788 | BT20: 1.6518 | BU20: 1.7413 | BV20: 164.13 | BW20: 55.1 | BX20: 6.3551e-06 | BY20: 0.013032 | CC20: 140.23 | CD20: 0.30018 | CE20: 571.87 | CF20: 0.0017486 | CG20: 111.01 | CH20: 111.53 | CI20: 0.2834 | CJ20: 2.2211 | CK20: 2.7727 | CL20: 668.92 | CM20: -0.12767 | CN20: 0.00014102 | CO20: 0.10323 | CP20: 0.0088557 | CQ20: 9.86 | CR20: 0.10142 | CS20: 364.92 | CT20: 395.36 | CU20: 0.97001 | CV20: 2.1255 | CW20: 2.2769 | CX20: 168.85 | CY20: 23.769 | CZ20: 8.6521e-06 | DA20: 0.02264
G21: Tc [K] | H21: =H20*N10 -> 556.1484413 | M21: y = x line | P21: 0.034 | Q21: 0.03275228139 | R21: -1.284829651 | S21: 0.4867925475 | T21: 0.0008613724124 | U21: 0.002871112677 | AQ21: 0.034 | AR21: 0.4867925475 | AS21: 0.0008613724124 | AT21: 0.002871112677 | BA21: 44.358 | BB21: 0.014903 | BC21: 662.97 | BD21: 0.0015084 | BE21: -131.6 | BF21: -131.58 | BG21: -0.38181 | BH21: 1.8448 | BI21: 2.3169 | BJ21: 1048.3 | BK21: -0.38158 | BL21: 0.00031572 | BM21: 0.12628 | BN21: 0.018013 | BO21: 0.57347 | BP21: 1.7438 | BQ21: 195.46 | BR21: 221.45 | BS21: 0.73005 | BT21: 1.6574 | BU21: 1.7471 | BV21: 164.36 | BW21: 54.322 | BX21: 6.3811e-06 | BY21: 0.013131 | CC21: 143.06 | CD21: 0.32018 | CE21: 568.79 | CF21: 0.0017581 | CG21: 118.85 | CH21: 119.41 | CI21: 0.30232 | CJ21: 2.2324 | CK21: 2.7884 | CL21: 657.66 | CM21: -0.11507 | CN21: 0.00013808 | CO21: 0.10258 | CP21: 0.0086082 | CQ21: 10.506 | CR21: 0.095182 | CS21: 370.28 | CT21: 400.76 | CU21: 0.97829 | CV21: 2.1397 | CW21: 2.2953 | CX21: 168.44 | CY21: 23.423 | CZ21: 8.7301e-06 | DA21: 0.022976
G22: Tc [C] | H22: =H21-273.15 -> 282.9984413 | M22: 0 | N22: 0 | P22: 0.036 | Q22: 0.0346221777 | R22: -1.282672529 | S22: 0.5076227799 | T22: 0.0009506063697 | U22: 0.003004683742 | AQ22: 0.036 | AR22: 0.5076227799 | AS22: 0.0009506063697 | AT22: 0.003004683742 | BA22: 45.568 | BB22: 0.015691 | BC22: 661.92 | BD22: 0.0015107 | BE22: -128.8 | BF22: -128.77 | BG22: -0.37299 | BH22: 1.8492 | BI22: 2.3218 | BJ22: 1043.4 | BK22: -0.37948 | BL22: 0.0003119 | BM22: 0.12597 | BN22: 0.017888 | BO22: 0.60185 | BP22: 1.6615 | BQ22: 197.42 | BR22: 223.49 | BS22: 0.73226 | BT22: 1.663 | BU22: 1.753 | BV22: 164.58 | BW22: 53.56 | BX22: 6.4072e-06 | BY22: 0.013231 | CC22: 145.76 | CD22: 0.34018 | CE22: 565.81 | CF22: 0.0017674 | CG22: 126.37 | CH22: 126.97 | CI22: 0.32033 | CJ22: 2.2432 | CK22: 2.8036 | CL22: 646.89 | CM22: -0.10252 | CN22: 0.00013535 | CO22: 0.10196 | CP22: 0.0083735 | CQ22: 11.154 | CR22: 0.089653 | CS22: 375.41 | CT22: 405.91 | CU22: 0.9862 | CV22: 2.1532 | CW22: 2.313 | CX22: 168 | CY22: 23.111 | CZ22: 8.8056e-06 | DA22: 0.023299
M23: 1 | N23: 1 | P23: 0.038 | Q23: 0.0364963913 | R23: -1.280549834 | S23: 0.5277988625 | T23: 0.001042761402 | U23: 0.003134437525 | AQ23: 0.038 | AR23: 0.5277988625 | AS23: 0.001042761402 | AT23: 0.003134437525 | BA23: 46.778 | BB23: 0.016514 | BC23: 660.88 | BD23: 0.0015131 | BE23: -125.98 | BF23: -125.96 | BG23: -0.36419 | BH23: 1.8537 | BI23: 2.3268 | BJ23: 1038.5 | BK23: -0.37737 | BL23: 0.00030815 | BM23: 0.12567 | BN23: 0.017764 | BO23: 0.63135 | BP23: 1.5839 | BQ23: 199.38 | BR23: 225.54 | BS23: 0.73449 | BT23: 1.6686 | BU23: 1.7589 | BV23: 164.8 | BW23: 52.814 | BX23: 6.4333e-06 | BY23: 0.013331 | CC23: 148.34 | CD23: 0.36018 | CE23: 562.93 | CF23: 0.0017764 | CG23: 133.6 | CH23: 134.24 | CI23: 0.33754 | CJ23: 2.2535 | CK23: 2.8183 | CL23: 636.57 | CM23: -0.089993 | CN23: 0.00013279 | CO23: 0.10137 | CP23: 0.0081503 | CQ23: 11.804 | CR23: 0.084716 | CS23: 380.33 | CT23: 410.84 | CU23: 0.99378 | CV23: 2.1661 | CW23: 2.3302 | CX23: 167.55 | CY23: 22.829 | CZ23: 8.8787e-06 | DA23: 0.023612
G24: Psattilde | H24: =PsatSLEoS_rchain_Ttilde($H$13,$H$16) -> 0.003144871425 | P24: 0.04 | Q24: 0.03837488298 | R24: -1.27847106 | S24: 0.5473458445 | T24: 0.001137672211 | U24: 0.003260391434 | AQ24: 0.04 | AR24: 0.5473458445 | AS24: 0.001137672211 | AT24: 0.003260391434 | BA24: 47.988 | BB24: 0.017372 | BC24: 659.83 | BD24: 0.0015155 | BE24: -123.17 | BF24: -123.14 | BG24: -0.3554 | BH24: 1.8583 | BI24: 2.3318 | BJ24: 1033.6 | BK24: -0.37524 | BL24: 0.00030447 | BM24: 0.12536 | BN24: 0.017641 | BO24: 0.66201 | BP24: 1.5105 | BQ24: 201.35 | BR24: 227.59 | BS24: 0.73675 | BT24: 1.6742 | BU24: 1.7648 | BV24: 165.02 | BW24: 52.083 | BX24: 6.4595e-06 | BY24: 0.013432 | CC24: 150.82 | CD24: 0.38018 | CE24: 560.14 | CF24: 0.0017853 | CG24: 140.56 | CH24: 141.24 | CI24: 0.35402 | CJ24: 2.2633 | CK24: 2.8326 | CL24: 626.64 | CM24: -0.077475 | CN24: 0.00013038 | CO24: 0.1008 | CP24: 0.0079376 | CQ24: 12.456 | CR24: 0.080279 | CS24: 385.05 | CT24: 415.57 | CU24: 1.0011 | CV24: 2.1785 | CW24: 2.3469 | CX24: 167.08 | CY24: 22.573 | CZ24: 8.9499e-06 | DA24: 0.023914
G25: Psat [MPa] | H25: =H24*$H$11 -> 0.9725691464 | M25: Zc | N25: =ZcSLEoS_rchain($N$13) -> 0.3559628952 | P25: 0.042 | Q25: 0.04025761349 | R25: -1.276442473 | S25: 0.5662875127 | T25: 0.001235180841 | U25: 0.003382562989 | AQ25: 0.042 | AR25: 0.5662875127 | AS25: 0.001235180841 | AT25: 0.003382562989 | BA25: 49.198 | BB25: 0.018266 | BC25: 658.78 | BD25: 0.001518 | BE25: -120.34 | BF25: -120.31 | BG25: -0.34662 | BH25: 1.8628 | BI25: 2.3368 | BJ25: 1028.7 | BK25: -0.3731 | BL25: 0.00030086 | BM25: 0.12505 | BN25: 0.017517 | BO25: 0.69386 | BP25: 1.4412 | BQ25: 203.32 | BR25: 229.65 | BS25: 0.73905 | BT25: 1.6799 | BU25: 1.7707 | BV25: 165.23 | BW25: 51.366 | BX25: 6.4857e-06 | BY25: 0.013533 | CC25: 153.2 | CD25: 0.40018 | CE25: 557.43 | CF25: 0.0017939 | CG25: 147.28 | CH25: 148 | CI25: 0.36983 | CJ25: 2.2728 | CK25: 2.8465 | CL25: 617.08 | CM25: -0.064938 | CN25: 0.00012811 | CO25: 0.10025 | CP25: 0.0077343 | CQ25: 13.111 | CR25: 0.07627 | CS25: 389.59 | CT25: 420.11 | CU25: 1.0081 | CV25: 2.1905 | CW25: 2.3633 | CX25: 166.6 | CY25: 22.34 | CZ25: 9.0192e-06 | DA25: 0.024208
G26: rhoL [kg/m3] | H26: =H30*$H$12 -> 467.0726231 | M26: rhoctilde | N26: =rhoctildeSLEoS_rchain($N$13) -> 0.2442872415 | P26: 0.044 | Q26: 0.04214454358 | R26: -1.274468041 | S26: 0.5846464693 | T26: 0.001335136214 | U26: 0.003500969818 | AQ26: 0.044 | AR26: 0.5846464693 | AS26: 0.001335136214 | AT26: 0.003500969818 | BA26: 50.408 | BB26: 0.019197 | BC26: 657.73 | BD26: 0.0015204 | BE26: -117.51 | BF26: -117.48 | BG26: -0.33786 | BH26: 1.8673 | BI26: 2.3419 | BJ26: 1023.8 | BK26: -0.37094 | BL26: 0.00029731 | BM26: 0.12475 | BN26: 0.017394 | BO26: 0.72694 | BP26: 1.3756 | BQ26: 205.3 | BR26: 231.71 | BS26: 0.74137 | BT26: 1.6856 | BU26: 1.7767 | BV26: 165.44 | BW26: 50.664 | BX26: 6.512e-06 | BY26: 0.013635 | CC26: 155.49 | CD26: 0.42018 | CE26: 554.8 | CF26: 0.0018025 | CG26: 153.78 | CH26: 154.54 | CI26: 0.38505 | CJ26: 2.2819 | CK26: 2.8601 | CL26: 607.85 | CM26: -0.052365 | CN26: 0.00012596 | CO26: 0.099724 | CP26: 0.0075396 | CQ26: 13.769 | CR26: 0.072629 | CS26: 393.97 | CT26: 424.49 | CU26: 1.0148 | CV26: 2.202 | CW26: 2.3792 | CX26: 166.1 | CY26: 22.128 | CZ26: 9.0869e-06 | DA26: 0.024493
G27: rhoV [kg/m3] | H27: =H31*$H$12 -> 30.50275522 | M27: rhotilde at inflection | N27: =rhotildeSLEoSinflection_Ttilde($N$18) -> 0.3029550031 | P27: 0.046 | Q27: 0.04403563393 | R27: -1.27255008 | S27: 0.6024442054 | T27: 0.001437393704 | U27: 0.003615629661 | AQ27: 0.046 | AR27: 0.6024442054 | AS27: 0.001437393704 | AT27: 0.003615629661 | BA27: 51.618 | BB27: 0.020167 | BC27: 656.67 | BD27: 0.0015228 | BE27: -114.68 | BF27: -114.65 | BG27: -0.32911 | BH27: 1.8719 | BI27: 2.347 | BJ27: 1018.9 | BK27: -0.36876 | BL27: 0.00029382 | BM27: 0.12445 | BN27: 0.017271 | BO27: 0.76127 | BP27: 1.3136 | BQ27: 207.29 | BR27: 233.78 | BS27: 0.74373 | BT27: 1.6912 | BU27: 1.7826 | BV27: 165.65 | BW27: 49.976 | BX27: 6.5383e-06 | BY27: 0.013737 | CC27: 157.7 | CD27: 0.44018 | CE27: 552.23 | CF27: 0.0018108 | CG27: 160.08 | CH27: 160.87 | CI27: 0.39971 | CJ27: 2.2907 | CK27: 2.8734 | CL27: 598.93 | CM27: -0.039737 | CN27: 0.00012392 | CO27: 0.099215 | CP27: 0.0073528 | CQ27: 14.429 | CR27: 0.069307 | CS27: 398.21 | CT27: 428.71 | CU27: 1.0214 | CV27: 2.2131 | CW27: 2.3948 | CX27: 165.59 | CY27: 21.935 | CZ27: 9.1531e-06 | DA27: 0.024771
M28: rhoVSpinodal | N28: =rhoVSpinodalSLEoS_rchain_Ttilde($N$13,$N$18) -> 0.1121339808 | P28: 0.048 | Q28: 0.04593084524 | R28: -1.270689724 | S28: 0.6197011677 | T28: 0.001541814738 | U28: 0.003726560369 | AQ28: 0.048 | AR28: 0.6197011677 | AS28: 0.001541814738 | AT28: 0.003726560369 | BA28: 52.828 | BB28: 0.021176 | BC28: 655.62 | BD28: 0.0015253 | BE28: -111.83 | BF28: -111.8 | BG28: -0.32038 | BH28: 1.8764 | BI28: 2.3521 | BJ28: 1014.1 | BK28: -0.36656 | BL28: 0.0002904 | BM28: 0.12414 | BN28: 0.017148 | BO28: 0.79689 | BP28: 1.2549 | BQ28: 209.28 | BR28: 235.85 | BS28: 0.74611 | BT28: 1.6969 | BU28: 1.7886 | BV28: 165.85 | BW28: 49.302 | BX28: 6.5647e-06 | BY28: 0.01384 | CC28: 159.84 | CD28: 0.46018 | CE28: 549.72 | CF28: 0.0018191 | CG28: 166.19 | CH28: 167.03 | CI28: 0.41387 | CJ28: 2.2992 | CK28: 2.8864 | CL28: 590.28 | CM28: -0.027039 | CN28: 0.00012198 | CO28: 0.098723 | CP28: 0.0071732 | CQ28: 15.092 | CR28: 0.066262 | CS28: 402.3 | CT28: 432.79 | CU28: 1.0277 | CV28: 2.2238 | CW28: 2.4101 | CX28: 165.07 | CY28: 21.759 | CZ28: 9.218e-06 | DA28: 0.025042
I29: Ptilde | M29: rhoLSpinodal | N29: =rhoLSpinodalSLEoS_rchain_Ttilde($N$13,$N$18) -> 0.452764587 | P29: 0.05 | Q29: 0.04783013816 | R29: -1.268887255 | S29: 0.6364368218 | T29: 0.001648266428 | U29: 0.003833779905 | AQ29: 0.05 | AR29: 0.6364368218 | AS29: 0.001648266428 | AT29: 0.003833779905 | BA29: 54.038 | BB29: 0.022226 | BC29: 654.56 | BD29: 0.0015277 | BE29: -108.99 | BF29: -108.95 | BG29: -0.31166 | BH29: 1.881 | BI29: 2.3572 | BJ29: 1009.2 | BK29: -0.36435 | BL29: 0.00028703 | BM29: 0.12384 | BN29: 0.017025 | BO29: 0.83385 | BP29: 1.1993 | BQ29: 211.27 | BR29: 237.92 | BS29: 0.74852 | BT29: 1.7026 | BU29: 1.7946 | BV29: 166.06 | BW29: 48.641 | BX29: 6.591e-06 | BY29: 0.013943 | CC29: 161.9 | CD29: 0.48018 | CE29: 547.27 | CF29: 0.0018273 | CG29: 172.13 | CH29: 173 | CI29: 0.42756 | CJ29: 2.3074 | CK29: 2.8992 | CL29: 581.88 | CM29: -0.014255 | CN29: 0.00012014 | CO29: 0.098246 | CP29: 0.0070003 | CQ29: 15.757 | CR29: 0.063462 | CS29: 406.27 | CT29: 436.74 | CU29: 1.0338 | CV29: 2.2342 | CW29: 2.4252 | CX29: 164.54 | CY29: 21.597 | CZ29: 9.2816e-06 | DA29: 0.025307
G30: rhoL at Ptilde | H30: =rhoLSLEoS_rchain_Ttilde_Ptilde($H$13,$H$16,$I$30) -> 0.5843763194 | I30: =H24 -> 0.003144871425 | P30: 0.052 | Q30: 0.04973347333 | R30: -1.267142341 | S30: 0.6526697103 | T30: 0.001756621232 | U30: 0.003937306347 | AQ30: 0.052 | AR30: 0.6526697103 | AS30: 0.001756621232 | AT30: 0.003937306347 | BA30: 55.248 | BB30: 0.023318 | BC30: 653.5 | BD30: 0.0015302 | BE30: -106.13 | BF30: -106.1 | BG30: -0.30295 | BH30: 1.8856 | BI30: 2.3623 | BJ30: 1004.3 | BK30: -0.36211 | BL30: 0.00028373 | BM30: 0.12353 | BN30: 0.016903 | BO30: 0.87216 | BP30: 1.1466 | BQ30: 213.27 | BR30: 240 | BS30: 0.75096 | BT30: 1.7083 | BU30: 1.8007 | BV30: 166.25 | BW30: 47.993 | BX30: 6.6175e-06 | BY30: 0.014047 | CC30: 163.9 | CD30: 0.50018 | CE30: 544.87 | CF30: 0.0018353 | CG30: 177.9 | CH30: 178.82 | CI30: 0.44082 | CJ30: 2.3154 | CK30: 2.9117 | CL30: 573.72 | CM30: -0.0013704 | CN30: 0.00011837 | CO30: 0.097783 | CP30: 0.0068336 | CQ30: 16.427 | CR30: 0.060877 | CS30: 410.12 | CT30: 440.56 | CU30: 1.0397 | CV30: 2.2442 | CW30: 2.44 | CX30: 164 | CY30: 21.45 | CZ30: 9.3442e-06 | DA30: 0.025565
G31: rhoV at Ptilde | H31: =rhoVSLEoS_rchain_Ttilde_Ptilde($H$13,$H$16,$H$24) -> 0.03816341817 | I31: =H24 -> 0.003144871425 | M31: Ptilde at Tilde,rhoctilde | N31: =Ptilde_rchain_rhotilde_Ttilde($N$13,$N$26,$N$18) -> -7.627603503e-05 | P31: 0.054 | Q31: 0.05164081135 | R31: -1.265454218 | S31: 0.6684175064 | T31: 0.001866756632 | U31: 0.004037157887 | AQ31: 0.054 | AR31: 0.6684175064 | AS31: 0.001866756632 | AT31: 0.004037157887 | BA31: 56.457 | BB31: 0.024454 | BC31: 652.44 | BD31: 0.0015327 | BE31: -103.27 | BF31: -103.23 | BG31: -0.29425 | BH31: 1.8902 | BI31: 2.3675 | BJ31: 999.46 | BK31: -0.35986 | BL31: 0.00028048 | BM31: 0.12323 | BN31: 0.01678 | BO31: 0.91188 | BP31: 1.0966 | BQ31: 215.27 | BR31: 242.09 | BS31: 0.75343 | BT31: 1.714 | BU31: 1.8067 | BV31: 166.45 | BW31: 47.359 | BX31: 6.6439e-06 | BY31: 0.014151 | CC31: 165.85 | CD31: 0.52018 | CE31: 542.51 | CF31: 0.0018433 | CG31: 183.53 | CH31: 184.49 | CI31: 0.45367 | CJ31: 2.3231 | CK31: 2.924 | CL31: 565.78 | CM31: 0.011627 | CN31: 0.00011668 | CO31: 0.097332 | CP31: 0.0066727 | CQ31: 17.099 | CR31: 0.058483 | CS31: 413.85 | CT31: 444.27 | CU31: 1.0454 | CV31: 2.254 | CW31: 2.4546 | CX31: 163.44 | CY31: 21.315 | CZ31: 9.4058e-06 | DA31: 0.025818
M32: Ptilde at Ttilde,rhotildeinfl | N32: =Ptilde_rchain_rhotilde_Ttilde($N$13,$N$27,$N$18) -> -0.004706670096 | P32: 0.056 | Q32: 0.05355211282 | R32: -1.263821817 | S32: 0.6836970647 | T32: 0.001978554839 | U32: 0.004133352831 | AQ32: 0.056 | AR32: 0.6836970647 | AS32: 0.001978554839 | AT32: 0.004133352831 | BA32: 57.667 | BB32: 0.025634 | BC32: 651.38 | BD32: 0.0015352 | BE32: -100.41 | BF32: -100.37 | BG32: -0.28557 | BH32: 1.8948 | BI32: 2.3727 | BJ32: 994.61 | BK32: -0.35759 | BL32: 0.00027728 | BM32: 0.12293 | BN32: 0.016658 | BO32: 0.95304 | BP32: 1.0493 | BQ32: 217.28 | BR32: 244.18 | BS32: 0.75592 | BT32: 1.7198 | BU32: 1.8128 | BV32: 166.64 | BW32: 46.737 | BX32: 6.6705e-06 | BY32: 0.014256 | CC32: 167.73 | CD32: 0.54018 | CE32: 540.2 | CF32: 0.0018512 | CG32: 189.02 | CH32: 190.02 | CI32: 0.46615 | CJ32: 2.3306 | CK32: 2.9362 | CL32: 558.04 | CM32: 0.024751 | CN32: 0.00011506 | CO32: 0.096894 | CP32: 0.0065171 | CQ32: 17.775 | CR32: 0.05626 | CS32: 417.48 | CT32: 447.87 | CU32: 1.051 | CV32: 2.2635 | CW32: 2.469 | CX32: 162.89 | CY32: 21.193 | CZ32: 9.4665e-06 | DA32: 0.026066
G33: Zc | H33: =ZcSLEoS_rchain($H$13) -> 0.3559628952 | M33: Ptilde at Ttilde,rhoVSpinodal | N33: =Ptilde_rchain_rhotilde_Ttilde($N$13,$N$28,$N$18) -> 0.00542040978 | P33: 0.058 | Q33: 0.05546733831 | R33: -1.262243857 | S33: 0.698524468 | T33: 0.00209190252 | U33: 0.004225909604 | AQ33: 0.058 | AR33: 0.698524468 | AS33: 0.00209190252 | AT33: 0.004225909604 | BA33: 58.877 | BB33: 0.026859 | BC33: 650.31 | BD33: 0.0015377 | BE33: -97.532 | BF33: -97.491 | BG33: -0.2769 | BH33: 1.8994 | BI33: 2.3779 | BJ33: 989.76 | BK33: -0.35531 | BL33: 0.00027414 | BM33: 0.12263 | BN33: 0.016537 | BO33: 0.99567 | BP33: 1.0043 | BQ33: 219.29 | BR33: 246.27 | BS33: 0.75844 | BT33: 1.7255 | BU33: 1.8189 | BV33: 166.82 | BW33: 46.127 | BX33: 6.697e-06 | BY33: 0.014361 | CC33: 169.57 | CD33: 0.56018 | CE33: 537.94 | CF33: 0.001859 | CG33: 194.37 | CH33: 195.42 | CI33: 0.47829 | CJ33: 2.3379 | CK33: 2.9482 | CL33: 550.5 | CM33: 0.038014 | CN33: 0.0001135 | CO33: 0.096467 | CP33: 0.0063665 | CQ33: 18.454 | CR33: 0.054189 | CS33: 421.01 | CT33: 451.37 | CU33: 1.0564 | CV33: 2.2728 | CW33: 2.4833 | CX33: 162.32 | CY33: 21.08 | CZ33: 9.5264e-06 | DA33: 0.026309
G34: rhoctilde | H34: =rhoctildeSLEoS_rchain($H$13) -> 0.2442872415 | M34: Ptilde at Ttilde,rhoLSpinodal | N34: =Ptilde_rchain_rhotilde_Ttilde($N$13,$N$29,$N$18) -> -0.01315181189 | P34: 0.06 | Q34: 0.05738644838 | R34: -1.26071892 | S34: 0.7129150707 | T34: 0.002206690538 | U34: 0.004314846747 | AQ34: 0.06 | AR34: 0.7129150707 | AS34: 0.002206690538 | AT34: 0.004314846747 | BA34: 60.087 | BB34: 0.028132 | BC34: 649.24 | BD34: 0.0015403 | BE34: -94.653 | BF34: -94.61 | BG34: -0.26825 | BH34: 1.904 | BI34: 2.3831 | BJ34: 984.92 | BK34: -0.353 | BL34: 0.00027105 | BM34: 0.12232 | BN34: 0.016415 | BO34: 1.0398 | BP34: 0.96171 | BQ34: 221.31 | BR34: 248.37 | BS34: 0.76099 | BT34: 1.7312 | BU34: 1.825 | BV34: 167.01 | BW34: 45.529 | BX34: 6.7236e-06 | BY34: 0.014467 | CC34: 171.36 | CD34: 0.58018 | CE34: 535.71 | CF34: 0.0018667 | CG34: 199.61 | CH34: 200.69 | CI34: 0.49009 | CJ34: 2.345 | CK34: 2.96 | CL34: 543.13 | CM34: 0.051428 | CN34: 0.000112 | CO34: 0.096051 | CP34: 0.0062207 | CQ34: 19.137 | CR34: 0.052255 | CS34: 424.45 | CT34: 454.77 | CU34: 1.0617 | CV34: 2.2818 | CW34: 2.4974 | CX34: 161.74 | CY34: 20.978 | CZ34: 9.5855e-06 | DA34: 0.026548
G35: rhotilde at inflection | H35: =rhotildeSLEoSinflection_Ttilde($H$16) -> 0.3029550031 | P35: 0.062 | Q35: 0.05930940357 | R35: -1.259245499 | S35: 0.7268835399 | T35: 0.00232281371 | U35: 0.00440018292 | AQ35: 0.062 | AR35: 0.7268835399 | AS35: 0.00232281371 | AT35: 0.00440018292 | BA35: 61.297 | BB35: 0.029454 | BC35: 648.17 | BD35: 0.0015428 | BE35: -91.768 | BF35: -91.722 | BG35: -0.2596 | BH35: 1.9086 | BI35: 2.3883 | BJ35: 980.08 | BK35: -0.35067 | BL35: 0.00026802 | BM35: 0.12202 | BN35: 0.016293 | BO35: 1.0855 | BP35: 0.92122 | BQ35: 223.34 | BR35: 250.47 | BS35: 0.76356 | BT35: 1.737 | BU35: 1.8311 | BV35: 167.19 | BW35: 44.944 | BX35: 6.7503e-06 | BY35: 0.014573 | CC35: 173.1 | CD35: 0.60018 | CE35: 533.51 | CF35: 0.0018744 | CG35: 204.72 | CH35: 205.85 | CI35: 0.50159 | CJ35: 2.3519 | CK35: 2.9717 | CL35: 535.92 | CM35: 0.065005 | CN35: 0.00011055 | CO35: 0.095644 | CP35: 0.0060792 | CQ35: 19.823 | CR35: 0.050445 | CS35: 427.81 | CT35: 458.08 | CU35: 1.0668 | CV35: 2.2905 | CW35: 2.5114 | CX35: 161.16 | CY35: 20.885 | CZ35: 9.644e-06 | DA35: 0.026782
G36: rhoVSpinodal | H36: =rhoVSpinodalSLEoS_rchain_Ttilde($H$13,$H$16) -> 0.1121339808 | K36: rhoL [g/cm3] | L36: =N36*$N$12/1000 -> 0.4628558766 | M36: rhoL at Ptilde | N36: =rhoLSLEoS_rchain_Ttilde_Ptilde($N$13,$N$18,$N$19) -> 0.5791005514 | O36: =$N$19 -> 0.001616785519 | P36: 0.064 | Q36: 0.0612361644 | R36: -1.257822042 | S36: 0.7404438934 | T36: 0.002440170591 | U36: 0.004481936902 | AQ36: 0.064 | AR36: 0.7404438934 | AS36: 0.002440170591 | AT36: 0.004481936902 | BA36: 62.507 | BB36: 0.030825 | BC36: 647.1 | BD36: 0.0015454 | BE36: -88.876 | BF36: -88.828 | BG36: -0.25097 | BH36: 1.9133 | BI36: 2.3936 | BJ36: 975.25 | BK36: -0.34833 | BL36: 0.00026503 | BM36: 0.12172 | BN36: 0.016172 | BO36: 1.1328 | BP36: 0.88277 | BQ36: 225.37 | BR36: 252.58 | BS36: 0.76616 | BT36: 1.7428 | BU36: 1.8372 | BV36: 167.36 | BW36: 44.37 | BX36: 6.777e-06 | BY36: 0.01468 | CC36: 174.79 | CD36: 0.62018 | CE36: 531.35 | CF36: 0.001882 | CG36: 209.73 | CH36: 210.9 | CI36: 0.5128 | CJ36: 2.3587 | CK36: 2.9834 | CL36: 528.88 | CM36: 0.078756 | CN36: 0.00010915 | CO36: 0.095246 | CP36: 0.0059419 | CQ36: 20.514 | CR36: 0.048747 | CS36: 431.07 | CT36: 461.31 | CU36: 1.0718 | CV36: 2.2991 | CW36: 2.5253 | CX36: 160.57 | CY36: 20.801 | CZ36: 9.7018e-06 | DA36: 0.027012
G37: rhoLSpinodal | H37: =rhoLSpinodalSLEoS_rchain_Ttilde($H$13,$H$16) -> 0.452764587 | K37: rhoV [g/cm3] | L37: =N37*$N$12/1000 -> 0.01394445888 | M37: rhoV at Ptilde | N37: =rhoVSLEoS_rchain_Ttilde_Ptilde($N$13,$N$18,$N$19) -> 0.01744656217 | O37: =$N$19 -> 0.001616785519 | P37: 0.066 | Q37: 0.0631666914 | R37: -1.256446975 | S37: 0.7536095349 | T37: 0.002558663257 | U37: 0.004560127592 | AQ37: 0.066 | AR37: 0.7536095349 | AS37: 0.002558663257 | AT37: 0.004560127592 | BA37: 63.717 | BB37: 0.032247 | BC37: 646.03 | BD37: 0.0015479 | BE37: -85.978 | BF37: -85.928 | BG37: -0.24235 | BH37: 1.9179 | BI37: 2.3988 | BJ37: 970.42 | BK37: -0.34596 | BL37: 0.00026209 | BM37: 0.12142 | BN37: 0.016051 | BO37: 1.1817 | BP37: 0.84622 | BQ37: 227.4 | BR37: 254.69 | BS37: 0.76878 | BT37: 1.7486 | BU37: 1.8434 | BV37: 167.54 | BW37: 43.807 | BX37: 6.8038e-06 | BY37: 0.014787 | CC37: 176.45 | CD37: 0.64018 | CE37: 529.22 | CF37: 0.0018896 | CG37: 214.64 | CH37: 215.85 | CI37: 0.52374 | CJ37: 2.3653 | CK37: 2.9949 | CL37: 521.98 | CM37: 0.092693 | CN37: 0.0001078 | CO37: 0.094857 | CP37: 0.0058085 | CQ37: 21.208 | CR37: 0.047151 | CS37: 434.27 | CT37: 464.45 | CU37: 1.0767 | CV37: 2.3075 | CW37: 2.5391 | CX37: 159.97 | CY37: 20.725 | CZ37: 9.7591e-06 | DA37: 0.027239
P38: 0.068 | Q38: 0.06510094506 | R38: -1.255118727 | S38: 0.7663932877 | T38: 0.002678197112 | U38: 0.004634774012 | AQ38: 0.068 | AR38: 0.7663932877 | AS38: 0.002678197112 | AT38: 0.004634774012 | BA38: 64.927 | BB38: 0.033722 | BC38: 644.95 | BD38: 0.0015505 | BE38: -83.074 | BF38: -83.021 | BG38: -0.23375 | BH38: 1.9226 | BI38: 2.4041 | BJ38: 965.6 | BK38: -0.34357 | BL38: 0.0002592 | BM38: 0.12112 | BN38: 0.01593 | BO38: 1.2323 | BP38: 0.81148 | BQ38: 229.44 | BR38: 256.81 | BS38: 0.77143 | BT38: 1.7543 | BU38: 1.8496 | BV38: 167.71 | BW38: 43.255 | BX38: 6.8306e-06 | BY38: 0.014895 | CC38: 178.07 | CD38: 0.66018 | CE38: 527.11 | CF38: 0.0018971 | CG38: 219.44 | CH38: 220.7 | CI38: 0.53443 | CJ38: 2.3717 | CK38: 3.0063 | CL38: 515.22 | CM38: 0.10683 | CN38: 0.0001065 | CO38: 0.094475 | CP38: 0.0056789 | CQ38: 21.907 | CR38: 0.045647 | CS38: 437.38 | CT38: 467.52 | CU38: 1.0814 | CV38: 2.3157 | CW38: 2.5528 | CX38: 159.37 | CY38: 20.656 | CZ38: 9.8159e-06 | DA38: 0.027462
G39: Ptilde at Tilde,rhoctilde | H39: =Ptilde_rchain_rhotilde_Ttilde($H$13,$H$34,$H$16) -> -7.627603503e-05 | P39: 0.07 | Q39: 0.06703888586 | R39: -1.253835744 | S39: 0.7788074255 | T39: 0.002798680706 | U39: 0.004705895306 | AQ39: 0.07 | AR39: 0.7788074255 | AS39: 0.002798680706 | AT39: 0.004705895306 | BA39: 66.137 | BB39: 0.035251 | BC39: 643.88 | BD39: 0.0015531 | BE39: -80.163 | BF39: -80.108 | BG39: -0.22515 | BH39: 1.9273 | BI39: 2.4095 | BJ39: 960.78 | BK39: -0.34117 | BL39: 0.00025636 | BM39: 0.12082 | BN39: 0.01581 | BO39: 1.2846 | BP39: 0.77844 | BQ39: 231.48 | BR39: 258.93 | BS39: 0.7741 | BT39: 1.7601 | BU39: 1.8558 | BV39: 167.87 | BW39: 42.714 | BX39: 6.8574e-06 | BY39: 0.015003 | CC39: 179.65 | CD39: 0.68018 | CE39: 525.04 | CF39: 0.0019046 | CG39: 224.16 | CH39: 225.45 | CI39: 0.54487 | CJ39: 2.378 | CK39: 3.0176 | CL39: 508.59 | CM39: 0.12117 | CN39: 0.00010523 | CO39: 0.094101 | CP39: 0.0055527 | CQ39: 22.61 | CR39: 0.044228 | CS39: 440.43 | CT39: 470.51 | CU39: 1.0861 | CV39: 2.3237 | CW39: 2.5665 | CX39: 158.76 | CY39: 20.594 | CZ39: 9.8722e-06 | DA39: 0.027682
G40: Ptilde at Ttilde,rhotildeinfl | H40: =Ptilde_rchain_rhotilde_Ttilde($H$13,$H$35,$H$16) -> -0.004706670096 | P40: 0.072 | Q40: 0.06898047431 | R40: -1.252596502 | S40: 0.7908637016 | T40: 0.002920025562 | U40: 0.004773510741 | AQ40: 0.072 | AR40: 0.7908637016 | AS40: 0.002920025562 | AT40: 0.004773510741 | BA40: 67.347 | BB40: 0.036835 | BC40: 642.8 | BD40: 0.0015557 | BE40: -77.246 | BF40: -77.188 | BG40: -0.21657 | BH40: 1.9319 | BI40: 2.4148 | BJ40: 955.97 | BK40: -0.33874 | BL40: 0.00025357 | BM40: 0.12052 | BN40: 0.015689 | BO40: 1.3387 | BP40: 0.747 | BQ40: 233.53 | BR40: 261.05 | BS40: 0.77679 | BT40: 1.7659 | BU40: 1.862 | BV40: 168.03 | BW40: 42.184 | BX40: 6.8843e-06 | BY40: 0.015111 | CC40: 181.2 | CD40: 0.70018 | CE40: 522.99 | CF40: 0.0019121 | CG40: 228.78 | CH40: 230.12 | CI40: 0.55508 | CJ40: 2.3842 | CK40: 3.0289 | CL40: 502.08 | CM40: 0.13573 | CN40: 0.000104 | CO40: 0.093734 | CP40: 0.0054299 | CQ40: 23.317 | CR40: 0.042887 | CS40: 443.4 | CT40: 473.43 | CU40: 1.0906 | CV40: 2.3315 | CW40: 2.5801 | CX40: 158.14 | CY40: 20.54 | CZ40: 9.9281e-06 | DA40: 0.027899
G41: Ptilde at Ttilde,rhoVSpinodal | H41: =Ptilde_rchain_rhotilde_Ttilde($H$13,$H$36,$H$16) -> 0.00542040978 | P41: 0.074 | Q41: 0.07092567085 | R41: -1.25139951 | S41: 0.8025733762 | T41: 0.003042146015 | U41: 0.00483763971 | AQ41: 0.074 | AR41: 0.8025733762 | AS41: 0.003042146015 | AT41: 0.00483763971 | BA41: 68.556 | BB41: 0.038476 | BC41: 641.71 | BD41: 0.0015583 | BE41: -74.322 | BF41: -74.262 | BG41: -0.208 | BH41: 1.9366 | BI41: 2.4201 | BJ41: 951.16 | BK41: -0.33629 | BL41: 0.00025081 | BM41: 0.12022 | BN41: 0.015569 | BO41: 1.3945 | BP41: 0.71708 | BQ41: 235.59 | BR41: 263.18 | BS41: 0.77951 | BT41: 1.7718 | BU41: 1.8682 | BV41: 168.19 | BW41: 41.664 | BX41: 6.9113e-06 | BY41: 0.015221 | CC41: 182.71 | CD41: 0.72018 | CE41: 520.96 | CF41: 0.0019195 | CG41: 233.33 | CH41: 234.71 | CI41: 0.56507 | CJ41: 2.3902 | CK41: 3.0401 | CL41: 495.69 | CM41: 0.15053 | CN41: 0.00010281 | CO41: 0.093374 | CP41: 0.0053102 | CQ41: 24.029 | CR41: 0.041617 | CS41: 446.32 | CT41: 476.29 | CU41: 1.095 | CV41: 2.3392 | CW41: 2.5937 | CX41: 157.52 | CY41: 20.491 | CZ41: 9.9837e-06 | DA41: 0.028113
G42: Ptilde at Ttilde,rhoLSpinodal | H42: =Ptilde_rchain_rhotilde_Ttilde($H$13,$H$37,$H$16) -> -0.01315181189 | P42: 0.076 | Q42: 0.07287443597 | R42: -1.250243321 | S42: 0.8139472422 | T42: 0.003164959063 | U42: 0.00489830173 | AQ42: 0.076 | AR42: 0.8139472422 | AS42: 0.003164959063 | AT42: 0.00489830173 | BA42: 69.766 | BB42: 0.040175 | BC42: 640.63 | BD42: 0.001561 | BE42: -71.392 | BF42: -71.329 | BG42: -0.19944 | BH42: 1.9413 | BI42: 2.4255 | BJ42: 946.35 | BK42: -0.33382 | BL42: 0.0002481 | BM42: 0.11993 | BN42: 0.015449 | BO42: 1.4522 | BP42: 0.68859 | BQ42: 237.65 | BR42: 265.31 | BS42: 0.78226 | BT42: 1.7776 | BU42: 1.8745 | BV42: 168.34 | BW42: 41.155 | BX42: 6.9383e-06 | BY42: 0.01533 | CC42: 184.19 | CD42: 0.74018 | CE42: 518.95 | CF42: 0.001927 | CG42: 237.79 | CH42: 239.21 | CI42: 0.57485 | CJ42: 2.3961 | CK42: 3.0513 | CL42: 489.42 | CM42: 0.16557 | CN42: 0.00010166 | CO42: 0.09302 | CP42: 0.0051935 | CQ42: 24.745 | CR42: 0.040412 | CS42: 449.17 | CT42: 479.08 | CU42: 1.0993 | CV42: 2.3467 | CW42: 2.6073 | CX42: 156.89 | CY42: 20.449 | CZ42: 1.0039e-05 | DA42: 0.028324
P43: 0.078 | Q43: 0.07482673013 | R43: -1.249126532 | S43: 0.8249956487 | T43: 0.003288384224 | U43: 0.004955516447 | AQ43: 0.078 | AR43: 0.8249956487 | AS43: 0.003288384224 | AT43: 0.004955516447 | BA43: 70.976 | BB43: 0.041934 | BC43: 639.54 | BD43: 0.0015636 | BE43: -68.456 | BF43: -68.39 | BG43: -0.19089 | BH43: 1.946 | BI43: 2.4309 | BJ43: 941.55 | BK43: -0.33132 | BL43: 0.00024544 | BM43: 0.11963 | BN43: 0.01533 | BO43: 1.5118 | BP43: 0.66146 | BQ43: 239.71 | BR43: 267.45 | BS43: 0.78502 | BT43: 1.7834 | BU43: 1.8808 | BV43: 168.49 | BW43: 40.655 | BX43: 6.9654e-06 | BY43: 0.015441 | CC43: 185.65 | CD43: 0.76018 | CE43: 516.97 | CF43: 0.0019344 | CG43: 242.17 | CH43: 243.65 | CI43: 0.58444 | CJ43: 2.4019 | CK43: 3.0624 | CL43: 483.24 | CM43: 0.18086 | CN43: 0.00010053 | CO43: 0.092671 | CP43: 0.0050798 | CQ43: 25.466 | CR43: 0.039268 | CS43: 451.96 | CT43: 481.81 | CU43: 1.1035 | CV43: 2.3541 | CW43: 2.6209 | CX43: 156.26 | CY43: 20.412 | CZ43: 1.0094e-05 | DA43: 0.028532
P44: 0.08 | Q44: 0.07678251378 | R44: -1.248047787 | S44: 0.835728524 | T44: 0.003412343402 | U44: 0.005009303633 | AQ44: 0.08 | AR44: 0.835728524 | AS44: 0.003412343402 | AT44: 0.005009303633 | BA44: 72.186 | BB44: 0.043754 | BC44: 638.45 | BD44: 0.0015663 | BE44: -65.513 | BF44: -65.444 | BG44: -0.18235 | BH44: 1.9507 | BI44: 2.4363 | BJ44: 936.75 | BK44: -0.32881 | BL44: 0.00024282 | BM44: 0.11933 | BN44: 0.01521 | BO44: 1.5733 | BP44: 0.6356 | BQ44: 241.78 | BR44: 269.59 | BS44: 0.78781 | BT44: 1.7892 | BU44: 1.8871 | BV44: 168.64 | BW44: 40.165 | BX44: 6.9925e-06 | BY44: 0.015551 | CC44: 187.07 | CD44: 0.78018 | CE44: 515 | CF44: 0.0019417 | CG44: 246.49 | CH44: 248 | CI44: 0.59384 | CJ44: 2.4075 | CK44: 3.0735 | CL44: 477.17 | CM44: 0.19642 | CN44: 9.9432e-05 | CO44: 0.092328 | CP44: 0.0049687 | CQ44: 26.192 | CR44: 0.03818 | CS44: 454.69 | CT44: 484.48 | CU44: 1.1077 | CV44: 2.3614 | CW44: 2.6345 | CX44: 155.62 | CY44: 20.381 | CZ44: 1.0149e-05 | DA44: 0.028738
P45: 0.082 | Q45: 0.07874174737 | R45: -1.24700578 | S45: 0.8461553966 | T45: 0.003536760766 | U45: 0.00505968319 | AQ45: 0.082 | AR45: 0.8461553966 | AS45: 0.003536760766 | AT45: 0.00505968319 | BA45: 73.396 | BB45: 0.045637 | BC45: 637.36 | BD45: 0.001569 | BE45: -62.563 | BF45: -62.492 | BG45: -0.17383 | BH45: 1.9554 | BI45: 2.4418 | BJ45: 931.96 | BK45: -0.32627 | BL45: 0.00024023 | BM45: 0.11903 | BN45: 0.015091 | BO45: 1.6368 | BP45: 0.61095 | BQ45: 243.85 | BR45: 271.73 | BS45: 0.79062 | BT45: 1.7951 | BU45: 1.8934 | BV45: 168.78 | BW45: 39.685 | BX45: 7.0196e-06 | BY45: 0.015662 | CC45: 188.47 | CD45: 0.80018 | CE45: 513.05 | CF45: 0.0019491 | CG45: 250.73 | CH45: 252.29 | CI45: 0.60306 | CJ45: 2.4131 | CK45: 3.0846 | CL45: 471.2 | CM45: 0.21226 | CN45: 9.8363e-05 | CO45: 0.091991 | CP45: 0.0048602 | CQ45: 26.922 | CR45: 0.037144 | CS45: 457.37 | CT45: 487.09 | CU45: 1.1117 | CV45: 2.3685 | CW45: 2.6481 | CX45: 154.98 | CY45: 20.355 | CZ45: 1.0203e-05 | DA45: 0.028941
P46: 0.084 | Q46: 0.08070439137 | R46: -1.245999251 | S46: 0.8562854153 | T46: 0.003661562627 | U46: 0.005106675151 | AQ46: 0.084 | AR46: 0.8562854153 | AS46: 0.003661562627 | AT46: 0.005106675151 | BA46: 74.606 | BB46: 0.047584 | BC46: 636.27 | BD46: 0.0015717 | BE46: -59.607 | BF46: -59.533 | BG46: -0.16531 | BH46: 1.9602 | BI46: 2.4472 | BJ46: 927.17 | BK46: -0.3237 | BL46: 0.00023769 | BM46: 0.11874 | BN46: 0.014972 | BO46: 1.7023 | BP46: 0.58744 | BQ46: 245.93 | BR46: 273.88 | BS46: 0.79345 | BT46: 1.8009 | BU46: 1.8997 | BV46: 168.92 | BW46: 39.214 | BX46: 7.0469e-06 | BY46: 0.015774 | CC46: 189.84 | CD46: 0.82018 | CE46: 511.12 | CF46: 0.0019565 | CG46: 254.91 | CH46: 256.52 | CI46: 0.61211 | CJ46: 2.4186 | CK46: 3.0957 | CL46: 465.31 | CM46: 0.22839 | CN46: 9.7321e-05 | CO46: 0.091658 | CP46: 0.0047543 | CQ46: 27.658 | CR46: 0.036156 | CS46: 460 | CT46: 489.65 | CU46: 1.1157 | CV46: 2.3755 | CW46: 2.6617 | CX46: 154.33 | CY46: 20.334 | CZ46: 1.0257e-05 | DA46: 0.029143
P47: 0.086 | Q47: 0.08267040623 | R47: -1.245026989 | S47: 0.8661273676 | T47: 0.003786677332 | U47: 0.005150299678 | AQ47: 0.086 | AR47: 0.8661273676 | AS47: 0.003786677332 | AT47: 0.005150299678 | BA47: 75.816 | BB47: 0.049598 | BC47: 635.17 | BD47: 0.0015744 | BE47: -56.645 | BF47: -56.567 | BG47: -0.15681 | BH47: 1.9649 | BI47: 2.4527 | BJ47: 922.38 | BK47: -0.32111 | BL47: 0.00023518 | BM47: 0.11844 | BN47: 0.014853 | BO47: 1.7699 | BP47: 0.56501 | BQ47: 248.01 | BR47: 276.03 | BS47: 0.7963 | BT47: 1.8068 | BU47: 1.9061 | BV47: 169.05 | BW47: 38.753 | BX47: 7.0742e-06 | BY47: 0.015886 | CC47: 191.19 | CD47: 0.84018 | CE47: 509.2 | CF47: 0.0019638 | CG47: 259.03 | CH47: 260.68 | CI47: 0.621 | CJ47: 2.4239 | CK47: 3.1068 | CL47: 459.51 | CM47: 0.24483 | CN47: 9.6304e-05 | CO47: 0.09133 | CP47: 0.0046508 | CQ47: 28.399 | CR47: 0.035213 | CS47: 462.58 | CT47: 492.16 | CU47: 1.1195 | CV47: 2.3824 | CW47: 2.6754 | CX47: 153.68 | CY47: 20.318 | CZ47: 1.0312e-05 | DA47: 0.029342
P48: 0.088 | Q48: 0.08463975239 | R48: -1.24408783 | S48: 0.8756896976 | T48: 0.003912035158 | U48: 0.005190577069 | AQ48: 0.088 | AR48: 0.8756896976 | AS48: 0.003912035158 | AT48: 0.005190577069 | BA48: 77.026 | BB48: 0.051678 | BC48: 634.07 | BD48: 0.0015771 | BE48: -53.676 | BF48: -53.594 | BG48: -0.14831 | BH48: 1.9696 | BI48: 2.4582 | BJ48: 917.6 | BK48: -0.3185 | BL48: 0.00023272 | BM48: 0.11815 | BN48: 0.014734 | BO48: 1.8395 | BP48: 0.54361 | BQ48: 250.1 | BR48: 278.19 | BS48: 0.79917 | BT48: 1.8127 | BU48: 1.9124 | BV48: 169.18 | BW48: 38.3 | BX48: 7.1015e-06 | BY48: 0.015999 | CC48: 192.51 | CD48: 0.86018 | CE48: 507.3 | CF48: 0.0019712 | CG48: 263.08 | CH48: 264.77 | CI48: 0.62973 | CJ48: 2.4292 | CK48: 3.1179 | CL48: 453.8 | CM48: 0.26159 | CN48: 9.531e-05 | CO48: 0.091006 | CP48: 0.0045495 | CQ48: 29.145 | CR48: 0.034311 | CS48: 465.1 | CT48: 494.62 | CU48: 1.1233 | CV48: 2.3891 | CW48: 2.6892 | CX48: 153.02 | CY48: 20.307 | CZ48: 1.0366e-05 | DA48: 0.029539
P49: 0.09 | Q49: 0.08661239032 | R49: -1.243180657 | S49: 0.8849805228 | T49: 0.004037568213 | U49: 0.005227527752 | AQ49: 0.09 | AR49: 0.8849805228 | AS49: 0.004037568213 | AT49: 0.005227527752 | BA49: 78.236 | BB49: 0.053828 | BC49: 632.97 | BD49: 0.0015798 | BE49: -50.7 | BF49: -50.615 | BG49: -0.13983 | BH49: 1.9744 | BI49: 2.4637 | BJ49: 912.82 | BK49: -0.31587 | BL49: 0.00023029 | BM49: 0.11785 | BN49: 0.014616 | BO49: 1.9114 | BP49: 0.52318 | BQ49: 252.19 | BR49: 280.35 | BS49: 0.80206 | BT49: 1.8185 | BU49: 1.9188 | BV49: 169.31 | BW49: 37.857 | BX49: 7.1289e-06 | BY49: 0.016112 | CC49: 193.81 | CD49: 0.88018 | CE49: 505.42 | CF49: 0.0019786 | CG49: 267.07 | CH49: 268.81 | CI49: 0.63831 | CJ49: 2.4344 | CK49: 3.129 | CL49: 448.16 | CM49: 0.27868 | CN49: 9.4339e-05 | CO49: 0.090687 | CP49: 0.0044505 | CQ49: 29.897 | CR49: 0.033449 | CS49: 467.58 | CT49: 497.02 | CU49: 1.127 | CV49: 2.3958 | CW49: 2.7029 | CX49: 152.35 | CY49: 20.3 | CZ49: 1.042e-05 | DA49: 0.029734
P50: 0.092 | Q50: 0.08858828048 | R50: -1.242304397 | S50: 0.8940076491 | T50: 0.004163210346 | U50: 0.005261172292 | AQ50: 0.092 | AR50: 0.8940076491 | AS50: 0.004163210346 | AT50: 0.005261172292 | BA50: 79.446 | BB50: 0.056048 | BC50: 631.87 | BD50: 0.0015826 | BE50: -47.718 | BF50: -47.629 | BG50: -0.13136 | BH50: 1.9791 | BI50: 2.4692 | BJ50: 908.04 | BK50: -0.3132 | BL50: 0.00022789 | BM50: 0.11756 | BN50: 0.014497 | BO50: 1.9854 | BP50: 0.50368 | BQ50: 254.29 | BR50: 282.52 | BS50: 0.80497 | BT50: 1.8244 | BU50: 1.9252 | BV50: 169.43 | BW50: 37.422 | BX50: 7.1564e-06 | BY50: 0.016226 | CC50: 195.08 | CD50: 0.90018 | CE50: 503.54 | CF50: 0.0019859 | CG50: 271.01 | CH50: 272.8 | CI50: 0.64675 | CJ50: 2.4395 | CK50: 3.1402 | CL50: 442.6 | CM50: 0.29611 | CN50: 9.3389e-05 | CO50: 0.090371 | CP50: 0.0043535 | CQ50: 30.654 | CR50: 0.032622 | CS50: 470.02 | CT50: 499.38 | CU50: 1.1307 | CV50: 2.4023 | CW50: 2.7168 | CX50: 151.69 | CY50: 20.297 | CZ50: 1.0474e-05 | DA50: 0.029927
P51: 0.094 | Q51: 0.09056738333 | R51: -1.241458021 | S51: 0.9027785864 | T51: 0.004288897055 | U51: 0.005291531391 | AQ51: 0.094 | AR51: 0.9027785864 | AS51: 0.004288897055 | AT51: 0.005291531391 | BA51: 80.655 | BB51: 0.058341 | BC51: 630.76 | BD51: 0.0015854 | BE51: -44.729 | BF51: -44.637 | BG51: -0.1229 | BH51: 1.9839 | BI51: 2.4747 | BJ51: 903.26 | BK51: -0.31051 | BL51: 0.00022554 | BM51: 0.11726 | BN51: 0.014379 | BO51: 2.0617 | BP51: 0.48504 | BQ51: 256.39 | BR51: 284.69 | BS51: 0.8079 | BT51: 1.8303 | BU51: 1.9317 | BV51: 169.55 | BW51: 36.995 | BX51: 7.1839e-06 | BY51: 0.01634 | CC51: 196.34 | CD51: 0.92018 | CE51: 501.68 | CF51: 0.0019933 | CG51: 274.9 | CH51: 276.73 | CI51: 0.65505 | CJ51: 2.4445 | CK51: 3.1513 | CL51: 437.12 | CM51: 0.3139 | CN51: 9.2459e-05 | CO51: 0.090059 | CP51: 0.0042586 | CQ51: 31.417 | CR51: 0.03183 | CS51: 472.41 | CT51: 501.7 | CU51: 1.1342 | CV51: 2.4088 | CW51: 2.7308 | CX51: 151.01 | CY51: 20.298 | CZ51: 1.0527e-05 | DA51: 0.030119
P52: 0.096 | Q52: 0.09254965936 | R52: -1.240640541 | S52: 0.9113005618 | T52: 0.004414565412 | U52: 0.005318625885 | AQ52: 0.096 | AR52: 0.9113005618 | AS52: 0.004414565412 | AT52: 0.005318625885 | BA52: 81.865 | BB52: 0.060708 | BC52: 629.65 | BD52: 0.0015882 | BE52: -41.734 | BF52: -41.637 | BG52: -0.11444 | BH52: 1.9886 | BI52: 2.4803 | BJ52: 898.49 | BK52: -0.3078 | BL52: 0.00022321 | BM52: 0.11697 | BN52: 0.014262 | BO52: 2.1403 | BP52: 0.46723 | BQ52: 258.49 | BR52: 286.86 | BS52: 0.81086 | BT52: 1.8362 | BU52: 1.9381 | BV52: 169.66 | BW52: 36.577 | BX52: 7.2115e-06 | BY52: 0.016455 | CC52: 197.57 | CD52: 0.94018 | CE52: 499.83 | CF52: 0.0020007 | CG52: 278.73 | CH52: 280.61 | CI52: 0.66321 | CJ52: 2.4495 | CK52: 3.1626 | CL52: 431.7 | CM52: 0.33208 | CN52: 9.1549e-05 | CO52: 0.089751 | CP52: 0.0041657 | CQ52: 32.185 | CR52: 0.03107 | CS52: 474.76 | CT52: 503.97 | CU52: 1.1377 | CV52: 2.4151 | CW52: 2.7449 | CX52: 150.33 | CY52: 20.304 | CZ52: 1.0581e-05 | DA52: 0.030309
P53: 0.098 | Q53: 0.09453506903 | R53: -1.23985101 | S53: 0.9195805333 | T53: 0.004540153978 | U53: 0.005342476751 | AQ53: 0.098 | AR53: 0.9195805333 | AS53: 0.004540153978 | AT53: 0.005342476751 | BA53: 83.075 | BB53: 0.06315 | BC53: 628.54 | BD53: 0.001591 | BE53: -38.732 | BF53: -38.631 | BG53: -0.106 | BH53: 1.9934 | BI53: 2.4859 | BJ53: 893.72 | BK53: -0.30506 | BL53: 0.00022093 | BM53: 0.11667 | BN53: 0.014144 | BO53: 2.2212 | BP53: 0.4502 | BQ53: 260.6 | BR53: 289.03 | BS53: 0.81383 | BT53: 1.8421 | BU53: 1.9446 | BV53: 169.77 | BW53: 36.167 | BX53: 7.2391e-06 | BY53: 0.01657 | CC53: 198.79 | CD53: 0.96018 | CE53: 497.99 | CF53: 0.0020081 | CG53: 282.51 | CH53: 284.44 | CI53: 0.67125 | CJ53: 2.4544 | CK53: 3.1738 | CL53: 426.35 | CM53: 0.35064 | CN53: 9.0656e-05 | CO53: 0.089446 | CP53: 0.0040747 | CQ53: 32.96 | CR53: 0.03034 | CS53: 477.06 | CT53: 506.2 | CU53: 1.1411 | CV53: 2.4214 | CW53: 2.759 | CX53: 149.65 | CY53: 20.313 | CZ53: 1.0635e-05 | DA53: 0.030497
C54: Saturation CURVE calculation- specification of a RANGE of T to calculate Psat and | P54: 0.1 | Q54: 0.09652357283 | R54: -1.23908852 | S54: 0.9276252019 | T54: 0.004665602731 | U54: 0.005363105105 | AQ54: 0.1 | AR54: 0.9276252019 | AS54: 0.004665602731 | AT54: 0.005363105105 | BA54: 84.285 | BB54: 0.06567 | BC54: 627.43 | BD54: 0.0015938 | BE54: -35.723 | BF54: -35.618 | BG54: -0.097569 | BH54: 1.9981 | BI54: 2.4915 | BJ54: 888.96 | BK54: -0.30228 | BL54: 0.00021867 | BM54: 0.11638 | BN54: 0.014027 | BO54: 2.3046 | BP54: 0.43392 | BQ54: 262.72 | BR54: 291.21 | BS54: 0.81682 | BT54: 1.848 | BU54: 1.9511 | BV54: 169.87 | BW54: 35.764 | BX54: 7.2669e-06 | BY54: 0.016686 | CC54: 199.99 | CD54: 0.98018 | CE54: 496.16 | CF54: 0.0020155 | CG54: 286.24 | CH54: 288.22 | CI54: 0.67917 | CJ54: 2.4592 | CK54: 3.1852 | CL54: 421.06 | CM54: 0.36961 | CN54: 8.9781e-05 | CO54: 0.089144 | CP54: 0.0039855 | CQ54: 33.741 | CR54: 0.029638 | CS54: 479.33 | CT54: 508.38 | CU54: 1.1445 | CV54: 2.4276 | CW54: 2.7733 | CX54: 148.97 | CY54: 20.326 | CZ54: 1.0689e-05 | DA54: 0.030684
C55: saturated liquid and vapor densities | P55: 0.102 | Q55: 0.09851513128 | R55: -1.238352198 | S55: 0.9354410236 | T55: 0.004790853002 | U55: 0.005380532205 | AQ55: 0.102 | AR55: 0.9354410236 | AS55: 0.004790853002 | AT55: 0.005380532205 | BA55: 85.495 | BB55: 0.068269 | BC55: 626.31 | BD55: 0.0015967 | BE55: -32.708 | BF55: -32.599 | BG55: -0.089146 | BH55: 2.0029 | BI55: 2.4971 | BJ55: 884.19 | BK55: -0.29949 | BL55: 0.00021645 | BM55: 0.11609 | BN55: 0.01391 | BO55: 2.3904 | BP55: 0.41834 | BQ55: 264.84 | BR55: 293.4 | BS55: 0.81982 | BT55: 1.8539 | BU55: 1.9576 | BV55: 169.97 | BW55: 35.37 | BX55: 7.2946e-06 | BY55: 0.016803 | CC55: 201.16 | CD55: 1.0002 | CE55: 494.34 | CF55: 0.0020229 | CG55: 289.93 | CH55: 291.96 | CI55: 0.68697 | CJ55: 2.4639 | CK55: 3.1966 | CL55: 415.84 | CM55: 0.389 | CN55: 8.8923e-05 | CO55: 0.088845 | CP55: 0.003898 | CQ55: 34.528 | CR55: 0.028962 | CS55: 481.56 | CT55: 510.53 | CU55: 1.1478 | CV55: 2.4337 | CW55: 2.7878 | CX55: 148.27 | CY55: 20.343 | CZ55: 1.0743e-05 | DA55: 0.03087
P56: 0.104 | Q56: 0.1005097049 | R56: =Gtilde_rchain_rhotilde_Ttilde_Ptilde($N$13,P56,$N$18,$N$19) -> -1.237641209 | S56: 0.9430342202 | T56: 0.004915847401 | U56: 0.005394779448 | AQ56: 0.104 | AR56: 0.9430342202 | AS56: 0.004915847401 | AT56: 0.005394779448 | BA56: 86.705 | BB56: 0.070948 | BC56: 625.19 | BD56: 0.0015995 | BE56: -29.685 | BF56: -29.572 | BG56: -0.080733 | BH56: 2.0077 | BI56: 2.5027 | BJ56: 879.43 | BK56: -0.29666 | BL56: 0.00021426 | BM56: 0.1158 | BN56: 0.013793 | BO56: 2.4787 | BP56: 0.40344 | BQ56: 266.96 | BR56: 295.59 | BS56: 0.82285 | BT56: 1.8599 | BU56: 1.9641 | BV56: 170.06 | BW56: 34.984 | BX56: 7.3225e-06 | BY56: 0.016919 | CC56: 202.32 | CD56: 1.0202 | CE56: 492.52 | CF56: 0.0020304 | CG56: 293.57 | CH56: 295.65 | CI56: 0.69466 | CJ56: 2.4686 | CK56: 3.2081 | CL56: 410.67 | CM56: 0.40884 | CN56: 8.808e-05 | CO56: 0.088549 | CP56: 0.0038123 | CQ56: 35.322 | CR56: 0.028311 | CS56: 483.75 | CT56: 512.63 | CU56: 1.151 | CV56: 2.4397 | CW56: 2.8023 | CX56: 147.58 | CY56: 20.364 | CZ56: 1.0797e-05 | DA56: 0.031054
C57: n-heptane | P57: 0.106 | Q57: 0.1025072541 | R57: -1.236954749 | S57: 0.9504107901 | T57: 0.00504052976 | U57: 0.005405868378 | AQ57: 0.106 | AR57: 0.9504107901 | AS57: 0.00504052976 | AT57: 0.005405868378 | BA57: 87.915 | BB57: 0.073711 | BC57: 624.06 | BD57: 0.0016024 | BE57: -26.657 | BF57: -26.538 | BG57: -0.07233 | BH57: 2.0125 | BI57: 2.5084 | BJ57: 874.67 | BK57: -0.2938 | BL57: 0.0002121 | BM57: 0.1155 | BN57: 0.013676 | BO57: 2.5696 | BP57: 0.38917 | BQ57: 269.09 | BR57: 297.78 | BS57: 0.82589 | BT57: 1.8658 | BU57: 1.9706 | BV57: 170.15 | BW57: 34.604 | BX57: 7.3504e-06 | BY57: 0.017037 | CC57: 203.47 | CD57: 1.0402 | CE57: 490.72 | CF57: 0.0020378 | CG57: 297.17 | CH57: 299.29 | CI57: 0.70223 | CJ57: 2.4732 | CK57: 3.2196 | CL57: 405.56 | CM57: 0.42913 | CN57: 8.7253e-05 | CO57: 0.088256 | CP57: 0.0037282 | CQ57: 36.122 | CR57: 0.027684 | CS57: 485.9 | CT57: 514.7 | CU57: 1.1542 | CV57: 2.4456 | CW57: 2.8171 | CX57: 146.88 | CY57: 20.388 | CZ57: 1.0851e-05 | DA57: 0.031237
C58: e* [J/mol] | D58: 4048.156093 | F58: Pctilde | G58: =PctildeSLEoS_rchain(D66) -> 0.01037855957 | P58: 0.108 | Q58: 0.1045077396 | R58: -1.236292049 | S58: 0.957576518 | T58: 0.005164845072 | U58: 0.005413820681 | AQ58: 0.108 | AR58: 0.957576518 | AS58: 0.005164845072 | AT58: 0.005413820681 | BA58: 89.125 | BB58: 0.076557 | BC58: 622.94 | BD58: 0.0016053 | BE58: -23.621 | BF58: -23.498 | BG58: -0.063936 | BH58: 2.0173 | BI58: 2.514 | BJ58: 869.91 | BK58: -0.29091 | BL58: 0.00020997 | BM58: 0.11521 | BN58: 0.01356 | BO58: 2.6631 | BP58: 0.37551 | BQ58: 271.22 | BR58: 299.97 | BS58: 0.82895 | BT58: 1.8717 | BU58: 1.9772 | BV58: 170.24 | BW58: 34.233 | BX58: 7.3784e-06 | BY58: 0.017155 | CC58: 204.59 | CD58: 1.0602 | CE58: 488.92 | CF58: 0.0020453 | CG58: 300.73 | CH58: 302.9 | CI58: 0.7097 | CJ58: 2.4778 | CK58: 3.2313 | CL58: 400.51 | CM58: 0.44991 | CN58: 8.6439e-05 | CO58: 0.087965 | CP58: 0.0036456 | CQ58: 36.929 | CR58: 0.027079 | CS58: 488.02 | CT58: 516.73 | CU58: 1.1573 | CV58: 2.4515 | CW58: 2.832 | CX58: 146.17 | CY58: 20.415 | CZ58: 1.0906e-05 | DA58: 0.031418
C59: v* [cm3/mol] | D59: 13.09 | F59: Pc [MPa] | G59: =G58*D64 -> 3.209627897 | P59: 0.11 | Q59: 0.1065111219 | R59: -1.235652369 | S59: 0.9645369846 | T59: 0.005288739437 | U59: 0.005418658193 | AQ59: 0.11 | AR59: 0.9645369846 | AS59: 0.005288739437 | AT59: 0.005418658193 | BA59: 90.335 | BB59: 0.07949 | BC59: 621.81 | BD59: 0.0016082 | BE59: -20.579 | BF59: -20.451 | BG59: -0.055552 | BH59: 2.022 | BI59: 2.5197 | BJ59: 865.16 | BK59: -0.28799 | BL59: 0.00020787 | BM59: 0.11492 | BN59: 0.013443 | BO59: 2.7592 | BP59: 0.36242 | BQ59: 273.36 | BR59: 302.17 | BS59: 0.83203 | BT59: 1.8776 | BU59: 1.9838 | BV59: 170.32 | BW59: 33.868 | BX59: 7.4065e-06 | BY59: 0.017273 | CC59: 205.71 | CD59: 1.0802 | CE59: 487.13 | CF59: 0.0020529 | CG59: 304.25 | CH59: 306.46 | CI59: 0.71707 | CJ59: 2.4822 | CK59: 3.243 | CL59: 395.5 | CM59: 0.47118 | CN59: 8.5639e-05 | CO59: 0.087676 | CP59: 0.0035647 | CQ59: 37.742 | CR59: 0.026495 | CS59: 490.1 | CT59: 518.72 | CU59: 1.1603 | CV59: 2.4573 | CW59: 2.8471 | CX59: 145.46 | CY59: 20.446 | CZ59: 1.096e-05 | DA59: 0.031599
C60: r | D60: 9.57 | F60: Tctilde | G60: =TctildeSLEoS_rchain(D66) -> 1.142203547 | P60: 0.112 | Q60: 0.1085173615 | R60: -1.235035 | S60: 0.9712975753 | T60: 0.005412160004 | U60: 0.005420402892 | AQ60: 0.112 | AR60: 0.9712975753 | AS60: 0.005412160004 | AT60: 0.005420402892 | BA60: 91.545 | BB60: 0.08251 | BC60: 620.68 | BD60: 0.0016111 | BE60: -17.529 | BF60: -17.397 | BG60: -0.047176 | BH60: 2.0268 | BI60: 2.5254 | BJ60: 860.4 | BK60: -0.28504 | BL60: 0.0002058 | BM60: 0.11463 | BN60: 0.013327 | BO60: 2.8581 | BP60: 0.34988 | BQ60: 275.5 | BR60: 304.37 | BS60: 0.83512 | BT60: 1.8836 | BU60: 1.9904 | BV60: 170.4 | BW60: 33.511 | BX60: 7.4346e-06 | BY60: 0.017392 | CC60: 206.8 | CD60: 1.1002 | CE60: 485.34 | CF60: 0.0020604 | CG60: 307.72 | CH60: 309.99 | CI60: 0.72434 | CJ60: 2.4867 | CK60: 3.2549 | CL60: 390.55 | CM60: 0.49297 | CN60: 8.4853e-05 | CO60: 0.08739 | CP60: 0.0034852 | CQ60: 38.563 | CR60: 0.025932 | CS60: 492.15 | CT60: 520.68 | CU60: 1.1633 | CV60: 2.463 | CW60: 2.8623 | CX60: 144.75 | CY60: 20.48 | CZ60: 1.1015e-05 | DA60: 0.031778
C61: M [kg/mol] | D61: 0.100125198 | F61: Tc [K] | G61: =G60*D63 -> 556.1484541 | P61: 0.114 | Q61: 0.110526419 | R61: -1.234439258 | S61: 0.9778634888 | T61: 0.005535054929 | U61: 0.005419076908 | AQ61: 0.114 | AR61: 0.9778634888 | AS61: 0.005535054929 | AT61: 0.005419076908 | BA61: 92.754 | BB61: 0.085621 | BC61: 619.54 | BD61: 0.0016141 | BE61: -14.474 | BF61: -14.335 | BG61: -0.03881 | BH61: 2.0316 | BI61: 2.5311 | BJ61: 855.65 | BK61: -0.28206 | BL61: 0.00020376 | BM61: 0.11434 | BN61: 0.013212 | BO61: 2.9598 | BP61: 0.33786 | BQ61: 277.65 | BR61: 306.58 | BS61: 0.83823 | BT61: 1.8895 | BU61: 1.997 | BV61: 170.47 | BW61: 33.161 | BX61: 7.4628e-06 | BY61: 0.017511 | CC61: 207.88 | CD61: 1.1202 | CE61: 483.56 | CF61: 0.002068 | CG61: 311.16 | CH61: 313.48 | CI61: 0.73152 | CJ61: 2.4911 | CK61: 3.2669 | CL61: 385.65 | CM61: 0.51531 | CN61: 8.4079e-05 | CO61: 0.087106 | CP61: 0.0034072 | CQ61: 39.391 | CR61: 0.025386 | CS61: 494.17 | CT61: 522.6 | CU61: 1.1663 | CV61: 2.4686 | CW61: 2.8778 | CX61: 144.03 | CY61: 20.518 | CZ61: 1.107e-05 | DA61: 0.031957
F62: Tc [C] | G62: =G61-273.15 -> 282.9984541 | P62: 0.116 | Q62: 0.112538255 | R62: -1.23386449 | S62: 0.9842397448 | T62: 0.005657373318 | U62: 0.005414702522 | AQ62: 0.116 | AR62: 0.9842397448 | AS62: 0.005657373318 | AT62: 0.005414702522 | BA62: 93.964 | BB62: 0.088823 | BC62: 618.4 | BD62: 0.0016171 | BE62: -11.411 | BF62: -11.267 | BG62: -0.030453 | BH62: 2.0364 | BI62: 2.5369 | BJ62: 850.9 | BK62: -0.27904 | BL62: 0.00020174 | BM62: 0.11405 | BN62: 0.013096 | BO62: 3.0643 | BP62: 0.32634 | BQ62: 279.8 | BR62: 308.79 | BS62: 0.84136 | BT62: 1.8955 | BU62: 2.0037 | BV62: 170.54 | BW62: 32.817 | BX62: 7.4911e-06 | BY62: 0.017631 | CC62: 208.95 | CD62: 1.1402 | CE62: 481.78 | CF62: 0.0020756 | CG62: 314.57 | CH62: 316.93 | CI62: 0.7386 | CJ62: 2.4954 | CK62: 3.279 | CL62: 380.79 | CM62: 0.5382 | CN62: 8.3316e-05 | CO62: 0.086824 | CP62: 0.0033305 | CQ62: 40.227 | CR62: 0.024859 | CS62: 496.15 | CT62: 524.49 | CU62: 1.1691 | CV62: 2.4742 | CW62: 2.8936 | CX62: 143.31 | CY62: 20.558 | CZ62: 1.1125e-05 | DA62: 0.032134
C63: T* [K] | D63: =D58/8.314 -> 486.9083586 | P63: 0.118 | Q63: 0.1145528302 | R63: -1.233310064 | S63: 0.9904311924 | T63: 0.005779065189 | U63: 0.005407302163 | AQ63: 0.118 | AR63: 0.9904311924 | AS63: 0.005779065189 | AT63: 0.005407302163 | BA63: 95.174 | BB63: 0.092118 | BC63: 617.26 | BD63: 0.0016201 | BE63: -8.3412 | BF63: -8.192 | BG63: -0.022104 | BH63: 2.0412 | BI63: 2.5426 | BJ63: 846.15 | BK63: -0.27599 | BL63: 0.00019976 | BM63: 0.11376 | BN63: 0.012981 | BO63: 3.1717 | BP63: 0.31529 | BQ63: 281.96 | BR63: 311 | BS63: 0.8445 | BT63: 1.9014 | BU63: 2.0103 | BV63: 170.6 | BW63: 32.48 | BX63: 7.5195e-06 | BY63: 0.017752 | CC63: 210 | CD63: 1.1602 | CE63: 480 | CF63: 0.0020833 | CG63: 317.93 | CH63: 320.35 | CI63: 0.7456 | CJ63: 2.4997 | CK63: 3.2913 | CL63: 375.98 | CM63: 0.56169 | CN63: 8.2566e-05 | CO63: 0.086544 | CP63: 0.0032553 | CQ63: 41.07 | CR63: 0.024349 | CS63: 498.1 | CT63: 526.35 | CU63: 1.172 | CV63: 2.4797 | CW63: 2.9095 | CX63: 142.59 | CY63: 20.602 | CZ63: 1.118e-05 | DA63: 0.032311
C64: P* [MPa] | D64: =(D58/(D59*0.000001))/1000000 -> 309.2556221 | P64: 0.12 | Q64: 0.1165701052 | R64: -1.232775376 | S64: 0.9964425163 | T64: 0.005900081425 | U64: 0.005396898415 | AQ64: 0.12 | AR64: 0.9964425163 | AS64: 0.005900081425 | AT64: 0.005396898415 | BA64: 96.384 | BB64: 0.095509 | BC64: 616.12 | BD64: 0.0016231 | BE64: -5.2648 | BF64: -5.1098 | BG64: -0.013765 | BH64: 2.046 | BI64: 2.5484 | BJ64: 841.4 | BK64: -0.27291 | BL64: 0.0001978 | BM64: 0.11347 | BN64: 0.012866 | BO64: 3.282 | BP64: 0.30469 | BQ64: 284.11 | BR64: 313.22 | BS64: 0.84766 | BT64: 1.9074 | BU64: 2.017 | BV64: 170.65 | BW64: 32.15 | BX64: 7.5479e-06 | BY64: 0.017873 | CC64: 211.04 | CD64: 1.1802 | CE64: 478.23 | CF64: 0.002091 | CG64: 321.27 | CH64: 323.74 | CI64: 0.75251 | CJ64: 2.5039 | CK64: 3.3037 | CL64: 371.22 | CM64: 0.58578 | CN64: 8.1826e-05 | CO64: 0.086265 | CP64: 0.0031813 | CQ64: 41.92 | CR64: 0.023855 | CS64: 500.02 | CT64: 528.17 | CU64: 1.1747 | CV64: 2.4852 | CW64: 2.9257 | CX64: 141.86 | CY64: 20.649 | CZ64: 1.1236e-05 | DA64: 0.032487
C65: rho* [kg/m3] | D65: =D61/D60/D59*1000000 -> 799.2668552 | P65: 0.122 | Q65: 0.1185900407 | R65: -1.232259842 | S65: 1.002278244 | T65: 0.006020373732 | U65: 0.005383514017 | AQ65: 0.122 | AR65: 1.002278244 | AS65: 0.006020373732 | AT65: 0.005383514017 | BA65: 97.594 | BB65: 0.098996 | BC65: 614.97 | BD65: 0.0016261 | BE65: -2.1815 | BF65: -2.0205 | BG65: -0.0054339 | BH65: 2.0509 | BI65: 2.5542 | BJ65: 836.66 | BK65: -0.26978 | BL65: 0.00019586 | BM65: 0.11319 | BN65: 0.012751 | BO65: 3.3954 | BP65: 0.29452 | BQ65: 286.28 | BR65: 315.43 | BS65: 0.85083 | BT65: 1.9134 | BU65: 2.0237 | BV65: 170.71 | BW65: 31.826 | BX65: 7.5765e-06 | BY65: 0.017995 | CC65: 212.06 | CD65: 1.2002 | CE65: 476.47 | CF65: 0.0020988 | CG65: 324.57 | CH65: 327.09 | CI65: 0.75933 | CJ65: 2.5081 | CK65: 3.3162 | CL65: 366.49 | CM65: 0.61052 | CN65: 8.1096e-05 | CO65: 0.085988 | CP65: 0.0031087 | CQ65: 42.779 | CR65: 0.023376 | CS65: 501.91 | CT65: 529.97 | CU65: 1.1775 | CV65: 2.4906 | CW65: 2.9422 | CX65: 141.12 | CY65: 20.699 | CZ65: 1.1292e-05 | DA65: 0.032662
C66: rchain | D66: =D60 -> 9.57 | P66: 0.124 | Q66: 0.1206125973 | R66: -1.231762903 | S66: 1.007942754 | T66: 0.006139894606 | U66: 0.00536717186 | AQ66: 0.124 | AR66: 1.007942754 | AS66: 0.006139894606 | AT66: 0.00536717186 | BA66: 98.804 | BB66: 0.10258 | BC66: 613.81 | BD66: 0.0016292 | BE66: 0.9087 | BF66: 1.0758 | BG66: 0.0028885 | BH66: 2.0557 | BI66: 2.56 | BJ66: 831.91 | BK66: -0.26663 | BL66: 0.00019396 | BM66: 0.1129 | BN66: 0.012636 | BO66: 3.5118 | BP66: 0.28476 | BQ66: 288.45 | BR66: 317.66 | BS66: 0.85402 | BT66: 1.9193 | BU66: 2.0305 | BV66: 170.75 | BW66: 31.509 | BX66: 7.6051e-06 | BY66: 0.018117 | CC66: 213.07 | CD66: 1.2202 | CE66: 474.7 | CF66: 0.0021066 | CG66: 327.83 | CH66: 330.4 | CI66: 0.76608 | CJ66: 2.5123 | CK66: 3.329 | CL66: 361.81 | CM66: 0.63591 | CN66: 8.0377e-05 | CO66: 0.085713 | CP66: 0.0030373 | CQ66: 43.646 | CR66: 0.022912 | CS66: 503.77 | CT66: 531.73 | CU66: 1.1801 | CV66: 2.4959 | CW66: 2.959 | CX66: 140.38 | CY66: 20.752 | CZ66: 1.1348e-05 | DA66: 0.032836
P67: 0.126 | Q67: 0.1226377359 | R67: -1.231284019 | S67: 1.013440278 | T67: 0.006258597288 | U67: 0.005347894997 | AQ67: 0.126 | AR67: 1.013440278 | AS67: 0.006258597288 | AT67: 0.005347894997 | BA67: 100.01 | BB67: 0.10627 | BC67: 612.66 | BD67: 0.0016322 | BE67: 4.0058 | BF67: 4.1793 | BG67: 0.011202 | BH67: 2.0605 | BI67: 2.5659 | BJ67: 827.16 | BK67: -0.26343 | BL67: 0.00019208 | BM67: 0.11261 | BN67: 0.012522 | BO67: 3.6313 | BP67: 0.27538 | BQ67: 290.62 | BR67: 319.88 | BS67: 0.85722 | BT67: 1.9253 | BU67: 2.0372 | BV67: 170.79 | BW67: 31.197 | BX67: 7.6338e-06 | BY67: 0.018239 | CC67: 214.07 | CD67: 1.2402 | CE67: 472.94 | CF67: 0.0021144 | CG67: 331.07 | CH67: 333.69 | CI67: 0.77275 | CJ67: 2.5164 | CK67: 3.3419 | CL67: 357.17 | CM67: 0.66201 | CN67: 7.9667e-05 | CO67: 0.085439 | CP67: 0.0029671 | CQ67: 44.521 | CR67: 0.022461 | CS67: 505.6 | CT67: 533.46 | CU67: 1.1828 | CV67: 2.5012 | CW67: 2.976 | CX67: 139.64 | CY67: 20.809 | CZ67: 1.1405e-05 | DA67: 0.03301
B68: Ttilde | C68: Psattilde | D68: rhoLtilde | E68: rhoVtilde | F68: T [C] | G68: Psat [MPa] | H68: rhoL [kg/m3] | I68: rhoV [kg/m3] | J68: ZL | K68: ZV | L68: fL [MPa] | M68: fV [MPa] | P68: 0.128 | Q68: 0.1246654171 | R68: -1.23082267 | S68: 1.018774912 | T68: 0.006376435736 | U68: 0.005325706634 | AQ68: 0.128 | AR68: 1.018774912 | AS68: 0.006376435736 | AT68: 0.005325706634 | BA68: 101.22 | BB68: 0.11006 | BC68: 611.5 | BD68: 0.0016353 | BE68: 7.1098 | BF68: 7.2898 | BG68: 0.019508 | BH68: 2.0653 | BI68: 2.5717 | BJ68: 822.42 | BK68: -0.2602 | BL68: 0.00019022 | BM68: 0.11232 | BN68: 0.012407 | BO68: 3.7541 | BP68: 0.26638 | BQ68: 292.79 | BR68: 322.11 | BS68: 0.86044 | BT68: 1.9313 | BU68: 2.044 | BV68: 170.83 | BW68: 30.892 | BX68: 7.6626e-06 | BY68: 0.018363 | CC68: 215.06 | CD68: 1.2602 | CE68: 471.17 | CF68: 0.0021224 | CG68: 334.28 | CH68: 336.95 | CI68: 0.77934 | CJ68: 2.5204 | CK68: 3.355 | CL68: 352.56 | CM68: 0.68882 | CN68: 7.8966e-05 | CO68: 0.085167 | CP68: 0.0028981 | CQ68: 45.405 | CR68: 0.022024 | CS68: 507.4 | CT68: 535.16 | CU68: 1.1853 | CV68: 2.5065 | CW68: 2.9934 | CX68: 138.9 | CY68: 20.868 | CZ68: 1.1462e-05 | DA68: 0.033183
B69: =(F69+273.15)/$D$63 -> 0.6123328852 | C69: =PsatSLEoS_rchain_Ttilde_VECTOR3($D$66,B69) -> 1.979212193e-05 | D69: 0.8633787899 | E69: 0.0003103706868 | F69: 25 | G69: =C69*$D$64 -> 0.006120824979 | H69: =D69*$D$65 -> 690.0700502 | I69: =E69*$D$65 -> 0.2480690028 | J69: =C69/D69/B69*$D$66 -> 0.0003582740362 | K69: =C69/E69/B69*$D$66 -> 0.996634724 | L69: =C69*$D$64*EXP(lnPhiSLEoS_rchain_rhotilde_Ttilde_Ptilde($D$66,D69,B69,C69)) -> 0.006100295033 | M69: =C69*$D$64*EXP(lnPhiSLEoS_rchain_rhotilde_Ttilde_Ptilde($D$66,E69,B69,C69)) -> 0.006100295017 | P69: 0.13 | Q69: 0.1266956017 | R69: -1.230378357 | S69: 1.023950617 | T69: 0.006493364584 | U69: 0.005300630142 | AQ69: 0.13 | AR69: 1.023950617 | AS69: 0.006493364584 | AT69: 0.005300630142 | BA69: 102.43 | BB69: 0.11396 | BC69: 610.34 | BD69: 0.0016384 | BE69: 10.221 | BF69: 10.408 | BG69: 0.027805 | BH69: 2.0701 | BI69: 2.5776 | BJ69: 817.68 | BK69: -0.25693 | BL69: 0.00018839 | BM69: 0.11204 | BN69: 0.012293 | BO69: 3.8801 | BP69: 0.25772 | BQ69: 294.97 | BR69: 324.34 | BS69: 0.86367 | BT69: 1.9373 | BU69: 2.0508 | BV69: 170.86 | BW69: 30.593 | BX69: 7.6914e-06 | BY69: 0.018486 | CC69: 216.03 | CD69: 1.2802 | CE69: 469.41 | CF69: 0.0021303 | CG69: 337.45 | CH69: 340.18 | CI69: 0.78586 | CJ69: 2.5245 | CK69: 3.3683 | CL69: 347.99 | CM69: 0.7164 | CN69: 7.8274e-05 | CO69: 0.084895 | CP69: 0.0028303 | CQ69: 46.298 | CR69: 0.021599 | CS69: 509.18 | CT69: 536.83 | CU69: 1.1879 | CV69: 2.5117 | CW69: 3.0111 | CX69: 138.15 | CY69: 20.93 | CZ69: 1.1519e-05 | DA69: 0.033355
B70: =(F70+273.15)/$D$63 -> 0.6308168562 | C70: =PsatSLEoS_rchain_Ttilde_VECTOR3($D$66,B70) -> 3.02549832e-05 | D70: 0.8530099712 | E70: 0.0004612012903 | F70: 34 | G70: =C70*$D$64 -> 0.00935652365 | H70: =D70*$D$65 -> 681.7825971 | I70: =E70*$D$65 -> 0.3686229049 | J70: =C70/D70/B70*$D$66 -> 0.0005380857072 | K70: =C70/E70/B70*$D$66 -> 0.9952107317 | L70: =C70*$D$64*EXP(lnPhiSLEoS_rchain_rhotilde_Ttilde_Ptilde($D$66,D70,B70,C70)) -> 0.009311932764 | M70: =C70*$D$64*EXP(lnPhiSLEoS_rchain_rhotilde_Ttilde_Ptilde($D$66,E70,B70,C70)) -> 0.009311923858 | P70: 0.132 | Q70: =hrho_rchain_rhotilde_Ttilde_Ptilde($N$13,P70,$N$18,$N$19) -> 0.1287282506 | R70: -1.229950597 | S70: =TSpinodalSLEoS_rchain_rhotilde($N$13,P70) -> 1.028971228 | T70: =PSpinodalSLEoS_rchain_rhotilde($N$13,P70) -> 0.006609339118 | U70: =Ptilde_rchain_rhotilde_Ttilde($N$13,P70,$N$18) -> 0.005272689049 | AQ70: 0.132 | AR70: =TSpinodalSLEoS_rchain_rhotilde($H$13,AQ70) -> 1.028971228 | AS70: =PSpinodalSLEoS_rchain_rhotilde($H$13,AQ70) -> 0.006609339118 | AT70: =Ptilde_rchain_rhotilde_Ttilde($H$13,AQ70,$H$16) -> 0.005272689049 | BA70: 103.64 | BB70: 0.11796 | BC70: 609.17 | BD70: 0.0016416 | BE70: 13.339 | BF70: 13.532 | BG70: 0.036094 | BH70: 2.0749 | BI70: 2.5835 | BJ70: 812.93 | BK70: -0.25361 | BL70: 0.00018658 | BM70: 0.11175 | BN70: 0.01218 | BO70: 4.0094 | BP70: 0.24941 | BQ70: 297.16 | BR70: 326.58 | BS70: 0.86691 | BT70: 1.9433 | BU70: 2.0576 | BV70: 170.89 | BW70: 30.3 | BX70: 7.7204e-06 | BY70: 0.018611 | CC70: 216.99 | CD70: 1.3002 | CE70: 467.65 | CF70: 0.0021383 | CG70: 340.6 | CH70: 343.38 | CI70: 0.79231 | CJ70: 2.5284 | CK70: 3.3819 | CL70: 343.46 | CM70: 0.74476 | CN70: 7.759e-05 | CO70: 0.084625 | CP70: 0.0027636 | CQ70: 47.2 | CR70: 0.021186 | CS70: 510.92 | CT70: 538.47 | CU70: 1.1903 | CV70: 2.5168 | CW70: 3.0292 | CX70: 137.39 | CY70: 20.995 | CZ70: 1.1577e-05 | DA70: 0.033527
B71: 0.6349244053 | C71: =PsatSLEoS_rchain_Ttilde_VECTOR3($D$66,B71) -> 3.312121273e-05 | D71: 0.8506577084 | E71: 0.0005018150126 | F71: 36 | G71: 0.01024292125 | H71: 679.9025115 | I71: 0.401084107 | J71: 0.0005868691834 | K71: 0.9948383011 | L71: 0.01019031871 | M71: 0.01019031871 | P71: 0.134 | Q71: 0.1307633245 | R71: -1.229538925 | S71: 1.033840457 | T71: 0.006724315238 | U71: 0.005241907048 | AQ71: 0.134 | AR71: 1.033840457 | AS71: 0.006724315238 | AT71: 0.005241907048 | BA71: 104.85 | BB71: 0.12207 | BC71: 608 | BD71: 0.0016447 | BE71: 16.464 | BF71: 16.664 | BG71: 0.044376 | BH71: 2.0798 | BI71: 2.5894 | BJ71: 808.19 | BK71: -0.25026 | BL71: 0.00018479 | BM71: 0.11146 | BN71: 0.012066 | BO71: 4.1421 | BP71: 0.24142 | BQ71: 299.34 | BR71: 328.82 | BS71: 0.87017 | BT71: 1.9492 | BU71: 2.0645 | BV71: 170.91 | BW71: 30.012 | BX71: 7.7494e-06 | BY71: 0.018735 | CC71: 217.94 | CD71: 1.3202 | CE71: 465.89 | CF71: 0.0021464 | CG71: 343.72 | CH71: 346.55 | CI71: 0.79869 | CJ71: 2.5324 | CK71: 3.3957 | CL71: 338.96 | CM71: 0.77394 | CN71: 7.6915e-05 | CO71: 0.084356 | CP71: 0.002698 | CQ71: 48.111 | CR71: 0.020785 | CS71: 512.64 | CT71: 540.08 | CU71: 1.1928 | CV71: 2.5219 | CW71: 3.0477 | CX71: 136.63 | CY71: 21.063 | CZ71: 1.1635e-05 | DA71: 0.033699
B72: 0.6390319544 | C72: =PsatSLEoS_rchain_Ttilde_VECTOR3($D$66,B72) -> 3.621111174e-05 | D72: 0.8482878764 | E72: 0.0005453194796 | F72: 38 | G72: 0.01119848989 | H72: 678.0083833 | I72: 0.4358557855 | J72: 0.0006392753531 | K72: 0.9944437198 | L72: 0.01113660774 | M72: 0.01113660774 | P72: 0.136 | Q72: 0.1328007843 | R72: -1.229142893 | S72: 1.038561897 | T72: 0.006838249436 | U72: 0.005208307998 | AQ72: 0.136 | AR72: 1.038561897 | AS72: 0.006838249436 | AT72: 0.005208307998 | BA72: 106.06 | BB72: 0.1263 | BC72: 606.83 | BD72: 0.0016479 | BE72: 19.596 | BF72: 19.804 | BG72: 0.052649 | BH72: 2.0846 | BI72: 2.5954 | BJ72: 803.44 | BK72: -0.24686 | BL72: 0.00018303 | BM72: 0.11118 | BN72: 0.011953 | BO72: 4.2783 | BP72: 0.23374 | BQ72: 301.54 | BR72: 331.06 | BS72: 0.87344 | BT72: 1.9552 | BU72: 2.0713 | BV72: 170.92 | BW72: 29.73 | BX72: 7.7786e-06 | BY72: 0.018861 | CC72: 218.89 | CD72: 1.3402 | CE72: 464.12 | CF72: 0.0021546 | CG72: 346.81 | CH72: 349.7 | CI72: 0.805 | CJ72: 2.5363 | CK72: 3.4097 | CL72: 334.49 | CM72: 0.80399 | CN72: 7.6246e-05 | CO72: 0.084088 | CP72: 0.0026335 | CQ72: 49.032 | CR72: 0.020395 | CS72: 514.34 | CT72: 541.67 | CU72: 1.1952 | CV72: 2.5269 | CW72: 3.0665 | CX72: 135.87 | CY72: 21.134 | CZ72: 1.1694e-05 | DA72: 0.03387
B73: 0.6431395036 | C73: =PsatSLEoS_rchain_Ttilde_VECTOR3($D$66,B73) -> 3.953808563e-05 | D73: 0.8459004296 | E73: 0.0005918676259 | F73: 40 | G73: 0.01222737527 | H73: 676.1001762 | I73: 0.4730601761 | J73: 0.000695509624 | K73: 0.9940261368 | L73: 0.0121547593 | M73: 0.0121547593 | P73: 0.138 | Q73: 0.134840591 | R73: -1.22876207 | S73: 1.043139032 | T73: 0.00695109876 | U73: 0.00517191592 | AQ73: 0.138 | AR73: 1.043139032 | AS73: 0.00695109876 | AT73: 0.00517191592 | BA73: 107.27 | BB73: 0.13063 | BC73: 605.65 | BD73: 0.0016511 | BE73: 22.734 | BF73: 22.95 | BG73: 0.060914 | BH73: 2.0894 | BI73: 2.6013 | BJ73: 798.7 | BK73: -0.24342 | BL73: 0.00018129 | BM73: 0.11089 | BN73: 0.01184 | BO73: 4.418 | BP73: 0.22635 | BQ73: 303.73 | BR73: 333.3 | BS73: 0.87672 | BT73: 1.9612 | BU73: 2.0782 | BV73: 170.93 | BW73: 29.454 | BX73: 7.8079e-06 | BY73: 0.018987 | CC73: 219.82 | CD73: 1.3602 | CE73: 462.36 | CF73: 0.0021628 | CG73: 349.88 | CH73: 352.82 | CI73: 0.81125 | CJ73: 2.5402 | CK73: 3.424 | CL73: 330.05 | CM73: 0.83494 | CN73: 7.5586e-05 | CO73: 0.08382 | CP73: 0.00257 | CQ73: 49.962 | CR73: 0.020015 | CS73: 516 | CT73: 543.23 | CU73: 1.1975 | CV73: 2.5319 | CW73: 3.0858 | CX73: 135.11 | CY73: 21.208 | CZ73: 1.1753e-05 | DA73: 0.034041
B74: 0.6472470527 | C74: =PsatSLEoS_rchain_Ttilde_VECTOR3($D$66,B74) -> 4.311602499e-05 | D74: 0.8434953189 | E74: 0.0006416167259 | F74: 42 | G74: 0.01333387313 | H74: 674.177851 | I74: 0.5128229828 | J74: 0.0007557843495 | K74: 0.9935846982 | L74: 0.01324887121 | M74: 0.01324887121 | P74: 0.14 | Q74: 0.1368827054 | R74: -1.228396038 | S74: 1.047575234 | T74: 0.007062820796 | U74: 0.005132755005 | AQ74: 0.14 | AR74: 1.047575234 | AS74: 0.007062820796 | AT74: 0.005132755005 | BA74: 108.48 | BB74: 0.13508 | BC74: 604.47 | BD74: 0.0016543 | BE74: 25.88 | BF74: 26.104 | BG74: 0.069172 | BH74: 2.0942 | BI74: 2.6073 | BJ74: 793.96 | BK74: -0.23994 | BL74: 0.00017957 | BM74: 0.11061 | BN74: 0.011727 | BO74: 4.5613 | BP74: 0.21924 | BQ74: 305.93 | BR74: 335.55 | BS74: 0.88001 | BT74: 1.9672 | BU74: 2.0851 | BV74: 170.94 | BW74: 29.184 | BX74: 7.8372e-06 | BY74: 0.019113 | CC74: 220.73 | CD74: 1.3802 | CE74: 460.59 | CF74: 0.0021711 | CG74: 352.92 | CH74: 355.91 | CI74: 0.81744 | CJ74: 2.544 | CK74: 3.4385 | CL74: 325.65 | CM74: 0.86683 | CN74: 7.4932e-05 | CO74: 0.083554 | CP74: 0.0025076 | CQ74: 50.902 | CR74: 0.019645 | CS74: 517.64 | CT74: 544.76 | CU74: 1.1998 | CV74: 2.5369 | CW74: 3.1055 | CX74: 134.34 | CY74: 21.284 | CZ74: 1.1812e-05 | DA74: 0.034211
B75: 0.6513546018 | C75: =PsatSLEoS_rchain_Ttilde_VECTOR3($D$66,B75) -> 4.695933878e-05 | D75: 0.8410724921 | E75: 0.0006947288496 | F75: 44 | G75: 0.01452243953 | H75: 672.2413658 | I75: 0.5552737428 | J75: 0.0008203194252 | K75: 0.9931185437 | L75: 0.01442317903 | M75: 0.01442317902 | P75: 0.142 | Q75: 0.1389270886 | R75: -1.228044393 | S75: 1.051873772 | T75: 0.007173373635 | U75: 0.005090849612 | AQ75: 0.142 | AR75: 1.051873772 | AS75: 0.007173373635 | AT75: 0.005090849612 | BA75: 109.69 | BB75: 0.13965 | BC75: 603.29 | BD75: 0.0016576 | BE75: 29.033 | BF75: 29.265 | BG75: 0.077422 | BH75: 2.0991 | BI75: 2.6133 | BJ75: 789.21 | BK75: -0.23641 | BL75: 0.00017787 | BM75: 0.11032 | BN75: 0.011615 | BO75: 4.7082 | BP75: 0.2124 | BQ75: 308.14 | BR75: 337.8 | BS75: 0.88332 | BT75: 1.9732 | BU75: 2.0921 | BV75: 170.93 | BW75: 28.918 | BX75: 7.8667e-06 | BY75: 0.01924 | CC75: 221.64 | CD75: 1.4002 | CE75: 458.82 | CF75: 0.0021795 | CG75: 355.93 | CH75: 358.99 | CI75: 0.82356 | CJ75: 2.5479 | CK75: 3.4534 | CL75: 321.27 | CM75: 0.8997 | CN75: 7.4285e-05 | CO75: 0.083288 | CP75: 0.0024461 | CQ75: 51.853 | CR75: 0.019285 | CS75: 519.26 | CT75: 546.26 | CU75: 1.202 | CV75: 2.5418 | CW75: 3.1257 | CX75: 133.56 | CY75: 21.364 | CZ75: 1.1872e-05 | DA75: 0.034381
B76: 0.6554621509 | C76: =PsatSLEoS_rchain_Ttilde_VECTOR3($D$66,B76) -> 5.108295795e-05 | D76: 0.8386318933 | E76: 0.0007513708742 | F76: 46 | G76: 0.01579769194 | H76: 670.2906761 | I76: 0.6005458358 | J76: 0.0008893423657 | K76: 0.9926268072 | L76: 0.01568205514 | M76: 0.01568205511 | P76: 0.144 | Q76: 0.1409737015 | R76: -1.227706749 | S76: 1.056037814 | T76: 0.007282715856 | U76: 0.005046224272 | AQ76: 0.144 | AR76: 1.056037814 | AS76: 0.007282715856 | AT76: 0.005046224272 | BA76: 110.9 | BB76: 0.14434 | BC76: 602.1 | BD76: 0.0016609 | BE76: 32.194 | BF76: 32.433 | BG76: 0.085664 | BH76: 2.1039 | BI76: 2.6193 | BJ76: 784.47 | BK76: -0.23283 | BL76: 0.00017619 | BM76: 0.11004 | BN76: 0.011502 | BO76: 4.8588 | BP76: 0.20581 | BQ76: 310.34 | BR76: 340.05 | BS76: 0.88664 | BT76: 1.9792 | BU76: 2.099 | BV76: 170.93 | BW76: 28.658 | BX76: 7.8962e-06 | BY76: 0.019368 | CC76: 222.54 | CD76: 1.4202 | CE76: 457.05 | CF76: 0.0021879 | CG76: 358.93 | CH76: 362.03 | CI76: 0.82963 | CJ76: 2.5517 | CK76: 3.4685 | CL76: 316.93 | CM76: 0.93361 | CN76: 7.3644e-05 | CO76: 0.083022 | CP76: 0.0023856 | CQ76: 52.814 | CR76: 0.018934 | CS76: 520.85 | CT76: 547.74 | CU76: 1.2043 | CV76: 2.5467 | CW76: 3.1464 | CX76: 132.79 | CY76: 21.446 | CZ76: 1.1933e-05 | DA76: 0.034551
B77: 0.6595697 | C77: =PsatSLEoS_rchain_Ttilde_VECTOR3($D$66,B77) -> 5.550233851e-05 | D77: 0.8361734632 | E77: 0.0008117144943 | F77: 48 | G77: 0.01716441022 | H77: 668.3257344 | I77: 0.6487764912 | J77: 0.0009630883791 | K77: 0.9921086182 | L77: 0.01703000759 | M77: 0.0170300075 | P77: 0.146 | Q77: 0.1430225052 | R77: -1.227382727 | S77: 1.060070433 | T77: 0.007390806496 | U77: 0.004998903686 | AQ77: 0.146 | AR77: 1.060070433 | AS77: 0.007390806496 | AT77: 0.004998903686 | BA77: 112.11 | BB77: 0.14914 | BC77: 600.91 | BD77: 0.0016642 | BE77: 35.361 | BF77: 35.609 | BG77: 0.093899 | BH77: 2.1087 | BI77: 2.6254 | BJ77: 779.72 | BK77: -0.2292 | BL77: 0.00017454 | BM77: 0.10975 | BN77: 0.01139 | BO77: 5.0133 | BP77: 0.19947 | BQ77: 312.56 | BR77: 342.31 | BS77: 0.88997 | BT77: 1.9853 | BU77: 2.106 | BV77: 170.91 | BW77: 28.403 | BX77: 7.9259e-06 | BY77: 0.019496 | CC77: 223.43 | CD77: 1.4402 | CE77: 455.28 | CF77: 0.0021965 | CG77: 361.89 | CH77: 365.06 | CI77: 0.83564 | CJ77: 2.5554 | CK77: 3.484 | CL77: 312.61 | CM77: 0.9686 | CN77: 7.3009e-05 | CO77: 0.082757 | CP77: 0.0023261 | CQ77: 53.786 | CR77: 0.018592 | CS77: 522.41 | CT77: 549.19 | CU77: 1.2064 | CV77: 2.5516 | CW77: 3.1676 | CX77: 132 | CY77: 21.531 | CZ77: 1.1995e-05 | DA77: 0.034721
B78: 0.6636772492 | C78: =PsatSLEoS_rchain_Ttilde_VECTOR3($D$66,B78) -> 6.023346393e-05 | D78: 0.833697139 | E78: 0.0008759362296 | F78: 50 | G78: 0.01862753736 | H78: 666.3464905 | I78: 0.7001067956 | J78: 0.001041800438 | K78: 0.9915631018 | L78: 0.01847167856 | M78: 0.01847167833 | P78: 0.148 | Q78: 0.1450734607 | R78: -1.227071967 | S78: 1.063974607 | T78: 0.007497605033 | U78: 0.004948912729 | AQ78: 0.148 | AR78: 1.063974607 | AS78: 0.007497605033 | AT78: 0.004948912729 | BA78: 113.32 | BB78: 0.15408 | BC78: 599.71 | BD78: 0.0016675 | BE78: 38.535 | BF78: 38.792 | BG78: 0.10213 | BH78: 2.1136 | BI78: 2.6314 | BJ78: 774.98 | BK78: -0.22553 | BL78: 0.0001729 | BM78: 0.10947 | BN78: 0.011278 | BO78: 5.1716 | BP78: 0.19336 | BQ78: 314.77 | BR78: 344.56 | BS78: 0.89331 | BT78: 1.9913 | BU78: 2.113 | BV78: 170.9 | BW78: 28.154 | BX78: 7.9556e-06 | BY78: 0.019625 | CC78: 224.31 | CD78: 1.4602 | CE78: 453.5 | CF78: 0.0022051 | CG78: 364.84 | CH78: 368.06 | CI78: 0.84159 | CJ78: 2.5592 | CK78: 3.4999 | CL78: 308.32 | CM78: 1.0047 | CN78: 7.2381e-05 | CO78: 0.082493 | CP78: 0.0022676 | CQ78: 54.77 | CR78: 0.018258 | CS78: 523.95 | CT78: 550.61 | CU78: 1.2086 | CV78: 2.5564 | CW78: 3.1893 | CX78: 131.22 | CY78: 21.62 | CZ78: 1.2057e-05 | DA78: 0.03489
B79: 0.6677847983 | C79: =PsatSLEoS_rchain_Ttilde_VECTOR3($D$66,B79) -> 6.529284692e-05 | D79: 0.8312028541 | E79: 0.0009442174323 | F79: 52 | G79: 0.02019217999 | H79: 664.3528912 | I79: 0.7546816978 | J79: 0.001125729349 | K79: 0.9909893802 | L79: 0.02001184257 | M79: 0.020011842 | P79: 0.15 | Q79: 0.1471265292 | R79: -1.226774116 | S79: 1.067753227 | T79: 0.007603071363 | U79: 0.004896276455 | AQ79: 0.15 | AR79: 1.067753227 | AS79: 0.007603071363 | AT79: 0.004896276455 | BA79: 114.53 | BB79: 0.15913 | BC79: 598.51 | BD79: 0.0016708 | BE79: 41.717 | BF79: 41.982 | BG79: 0.11035 | BH79: 2.1184 | BI79: 2.6375 | BJ79: 770.23 | BK79: -0.2218 | BL79: 0.00017129 | BM79: 0.10919 | BN79: 0.011167 | BO79: 5.3338 | BP79: 0.18748 | BQ79: 316.99 | BR79: 346.83 | BS79: 0.89667 | BT79: 1.9973 | BU79: 2.1201 | BV79: 170.87 | BW79: 27.909 | BX79: 7.9855e-06 | BY79: 0.019754 | CC79: 225.18 | CD79: 1.4802 | CE79: 451.71 | CF79: 0.0022138 | CG79: 367.77 | CH79: 371.04 | CI79: 0.84749 | CJ79: 2.5629 | CK79: 3.5161 | CL79: 304.06 | CM79: 1.042 | CN79: 7.1757e-05 | CO79: 0.082228 | CP79: 0.0022099 | CQ79: 55.765 | CR79: 0.017933 | CS79: 525.47 | CT79: 552.01 | CU79: 1.2106 | CV79: 2.5611 | CW79: 3.2117 | CX79: 130.43 | CY79: 21.71 | CZ79: 1.2119e-05 | DA79: 0.03506
B80: 0.6718923474 | C80: =PsatSLEoS_rchain_Ttilde_VECTOR3($D$66,B80) -> 7.069753055e-05 | D80: 0.8286905383 | E80: 0.001016744293 | F80: 54 | G80: 0.02186360879 | H80: 662.3448805 | I80: 0.8126500134 | J80: 0.001215133816 | K80: 0.9903865736 | L80: 0.02165540436 | M80: 0.02165540303 | P80: 0.152 | Q80: 0.1491816719 | R80: -1.226488835 | S80: 1.071409096 | T80: 0.007707165777 | U80: 0.004841020089 | AQ80: 0.152 | AR80: 1.071409096 | AS80: 0.007707165777 | AT80: 0.004841020089 | BA80: 115.74 | BB80: 0.16432 | BC80: 597.3 | BD80: 0.0016742 | BE80: 44.905 | BF80: 45.18 | BG80: 0.11856 | BH80: 2.1232 | BI80: 2.6436 | BJ80: 765.48 | BK80: -0.21803 | BL80: 0.00016969 | BM80: 0.10891 | BN80: 0.011055 | BO80: 5.5001 | BP80: 0.18181 | BQ80: 319.21 | BR80: 349.09 | BS80: 0.90003 | BT80: 2.0033 | BU80: 2.1271 | BV80: 170.84 | BW80: 27.669 | BX80: 8.0155e-06 | BY80: 0.019884 | CC80: 226.04 | CD80: 1.5002 | CE80: 449.92 | CF80: 0.0022226 | CG80: 370.67 | CH80: 374 | CI80: 0.85333 | CJ80: 2.5666 | CK80: 3.5327 | CL80: 299.82 | CM80: 1.0806 | CN80: 7.1139e-05 | CO80: 0.081964 | CP80: 0.0021531 | CQ80: 56.771 | CR80: 0.017615 | CS80: 526.96 | CT80: 553.38 | CU80: 1.2127 | CV80: 2.5659 | CW80: 3.2346 | CX80: 129.64 | CY80: 21.804 | CZ80: 1.2182e-05 | DA80: 0.035229
B81: 0.6759998965 | C81: =PsatSLEoS_rchain_Ttilde_VECTOR3($D$66,B81) -> 7.646508862e-05 | D81: 0.8261601179 | E81: 0.001093707843 | F81: 56 | G81: 0.02364725855 | H81: 660.3223993 | I81: 0.8741644285 | J81: 0.001310280502 | K81: 0.9897538002 | L81: 0.02340739643 | M81: 0.02340739352 | P81: 0.154 | Q81: 0.1512388499 | R81: -1.226215796 | S81: 1.074944934 | T81: 0.007809848948 | U81: 0.00478316904 | AQ81: 0.154 | AR81: 1.074944934 | AS81: 0.007809848948 | AT81: 0.00478316904 | BA81: 116.95 | BB81: 0.16963 | BC81: 596.09 | BD81: 0.0016776 | BE81: 48.101 | BF81: 48.385 | BG81: 0.12677 | BH81: 2.1281 | BI81: 2.6497 | BJ81: 760.74 | BK81: -0.21419 | BL81: 0.00016811 | BM81: 0.10862 | BN81: 0.010944 | BO81: 5.6705 | BP81: 0.17635 | BQ81: 321.44 | BR81: 351.35 | BS81: 0.90341 | BT81: 2.0093 | BU81: 2.1342 | BV81: 170.81 | BW81: 27.434 | BX81: 8.0456e-06 | BY81: 0.020014 | CC81: 226.89 | CD81: 1.5202 | CE81: 448.13 | CF81: 0.0022315 | CG81: 373.55 | CH81: 376.94 | CI81: 0.85913 | CJ81: 2.5702 | CK81: 3.5497 | CL81: 295.6 | CM81: 1.1204 | CN81: 7.0526e-05 | CO81: 0.0817 | CP81: 0.0020973 | CQ81: 57.79 | CR81: 0.017304 | CS81: 528.42 | CT81: 554.73 | CU81: 1.2147 | CV81: 2.5706 | CW81: 3.2582 | CX81: 128.84 | CY81: 21.901 | CZ81: 1.2246e-05 | DA81: 0.035399
B82: 0.6801074456 | C82: =PsatSLEoS_rchain_Ttilde_VECTOR3($D$66,B82) -> 8.261362536e-05 | D82: 0.8236115149 | E82: 0.001175303962 | F82: 58 | G82: 0.0255487281 | H82: 658.2853855 | I82: 0.9393815014 | J82: 0.001411444089 | K82: 0.989090178 | L82: 0.02527297637 | M82: 0.02527297027 | P82: 0.156 | Q82: 0.1532980245 | R82: -1.22595468 | S82: 1.078363384 | T82: 0.007911081905 | U82: 0.004722748895 | AQ82: 0.156 | AR82: 1.078363384 | AS82: 0.007911081905 | AT82: 0.004722748895 | BA82: 118.16 | BB82: 0.17508 | BC82: 594.88 | BD82: 0.001681 | BE82: 51.304 | BF82: 51.598 | BG82: 0.13497 | BH82: 2.1329 | BI82: 2.6559 | BJ82: 755.99 | BK82: -0.21031 | BL82: 0.00016656 | BM82: 0.10834 | BN82: 0.010833 | BO82: 5.845 | BP82: 0.17109 | BQ82: 323.67 | BR82: 353.62 | BS82: 0.90679 | BT82: 2.0153 | BU82: 2.1414 | BV82: 170.76 | BW82: 27.204 | BX82: 8.0759e-06 | BY82: 0.020145 | CC82: 227.74 | CD82: 1.5402 | CE82: 446.33 | CF82: 0.0022405 | CG82: 376.41 | CH82: 379.86 | CI82: 0.86488 | CJ82: 2.5739 | CK82: 3.5672 | CL82: 291.41 | CM82: 1.1617 | CN82: 6.9918e-05 | CO82: 0.081437 | CP82: 0.0020423 | CQ82: 58.821 | CR82: 0.017001 | CS82: 529.87 | CT82: 556.05 | CU82: 1.2166 | CV82: 2.5753 | CW82: 3.2825 | CX82: 128.04 | CY82: 22 | CZ82: 1.2311e-05 | DA82: 0.035568
B83: 0.6842149948 | C83: =PsatSLEoS_rchain_Ttilde_VECTOR3($D$66,B83) -> 8.916177422e-05 | D83: 0.821044648 | E83: 0.00126173337 | F83: 60 | G83: 0.02757377995 | H83: 656.2337738 | I83: 1.008461662 | J83: 0.001518907329 | K83: 0.9883948248 | L83: 0.02725742376 | M83: 0.02725741156 | P83: 0.158 | Q83: 0.155359157 | R83: -1.225705181 | S83: 1.081667009 | T83: 0.008010826021 | U83: 0.004659785423 | AQ83: 0.158 | AR83: 1.081667009 | AS83: 0.008010826021 | AT83: 0.004659785423 | BA83: 119.37 | BB83: 0.18066 | BC83: 593.66 | BD83: 0.0016845 | BE83: 54.514 | BF83: 54.818 | BG83: 0.14316 | BH83: 2.1377 | BI83: 2.662 | BJ83: 751.23 | BK83: -0.20637 | BL83: 0.00016502 | BM83: 0.10806 | BN83: 0.010723 | BO83: 6.0238 | BP83: 0.16601 | BQ83: 325.9 | BR83: 355.89 | BS83: 0.91019 | BT83: 2.0214 | BU83: 2.1485 | BV83: 170.71 | BW83: 26.979 | BX83: 8.1062e-06 | BY83: 0.020277 | CC83: 228.57 | CD83: 1.5602 | CE83: 444.52 | CF83: 0.0022496 | CG83: 379.25 | CH83: 382.76 | CI83: 0.87057 | CJ83: 2.5775 | CK83: 3.5851 | CL83: 287.24 | CM83: 1.2044 | CN83: 6.9314e-05 | CO83: 0.081173 | CP83: 0.0019881 | CQ83: 59.866 | CR83: 0.016704 | CS83: 531.29 | CT83: 557.35 | CU83: 1.2185 | CV83: 2.5799 | CW83: 3.3075 | CX83: 127.24 | CY83: 22.102 | CZ83: 1.2377e-05 | DA83: 0.035738
B84: 0.6883225439 | C84: =PsatSLEoS_rchain_Ttilde_VECTOR3($D$66,B84) -> 9.61286958e-05 | D84: 0.8184594315 | E84: 0.001353201631 | F84: 62 | G84: 0.02972833962 | H84: 654.1674959 | I84: 1.081569212 | J84: 0.00163296109 | K84: 0.9876668598 | L84: 0.02936613688 | M84: 0.02936611348 | P84: 0.16 | Q84: 0.1574222088 | R84: -1.225467001 | S84: 1.0848583 | T84: 0.008109042993 | U84: 0.004594304577 | AQ84: 0.16 | AR84: 1.0848583 | AS84: 0.008109042993 | AT84: 0.004594304577 | BA84: 120.58 | BB84: 0.18637 | BC84: 592.44 | BD84: 0.0016879 | BE84: 57.731 | BF84: 58.046 | BG84: 0.15134 | BH84: 2.1426 | BI84: 2.6682 | BJ84: 746.48 | BK84: -0.20236 | BL84: 0.00016349 | BM84: 0.10778 | BN84: 0.010613 | BO84: 6.2069 | BP84: 0.16111 | BQ84: 328.14 | BR84: 358.17 | BS84: 0.91359 | BT84: 2.0274 | BU84: 2.1557 | BV84: 170.66 | BW84: 26.758 | BX84: 8.1367e-06 | BY84: 0.020409 | CC84: 229.4 | CD84: 1.5802 | CE84: 442.7 | CF84: 0.0022588 | CG84: 382.08 | CH84: 385.65 | CI84: 0.87622 | CJ84: 2.5811 | CK84: 3.6035 | CL84: 283.1 | CM84: 1.2485 | CN84: 6.8714e-05 | CO84: 0.080908 | CP84: 0.0019348 | CQ84: 60.923 | CR84: 0.016414 | CS84: 532.69 | CT84: 558.62 | CU84: 1.2204 | CV84: 2.5845 | CW84: 3.3332 | CX84: 126.43 | CY84: 22.207 | CZ84: 1.2443e-05 | DA84: 0.035908
B85: 0.692430093 | C85: =PsatSLEoS_rchain_Ttilde_VECTOR3($D$66,B85) -> 0.0001035342185 | D85: 0.8158557759 | E85: 0.001449921182 | F85: 64 | G85: 0.03201853915 | H85: 652.0864803 | I85: 1.158873944 | J85: 0.001753906837 | K85: 0.9869053852 | L85: 0.03160462914 | M85: 0.03160462914 | P85: 0.162 | Q85: 0.1594871411 | R85: -1.225239849 | S85: 1.087939674 | T85: 0.008205694826 | U85: 0.004526332497 | AQ85: 0.162 | AR85: 1.087939674 | AS85: 0.008205694826 | AT85: 0.004526332497 | BA85: 121.79 | BB85: 0.19223 | BC85: 591.21 | BD85: 0.0016914 | BE85: 60.956 | BF85: 61.281 | BG85: 0.15952 | BH85: 2.1474 | BI85: 2.6745 | BJ85: 741.73 | BK85: -0.1983 | BL85: 0.00016199 | BM85: 0.1075 | BN85: 0.010502 | BO85: 6.3944 | BP85: 0.15639 | BQ85: 330.38 | BR85: 360.44 | BS85: 0.91701 | BT85: 2.0334 | BU85: 2.1629 | BV85: 170.6 | BW85: 26.542 | BX85: 8.1673e-06 | BY85: 0.020542 | CC85: 230.22 | CD85: 1.6002 | CE85: 440.88 | CF85: 0.0022682 | CG85: 384.88 | CH85: 388.51 | CI85: 0.88183 | CJ85: 2.5847 | CK85: 3.6225 | CL85: 278.97 | CM85: 1.2943 | CN85: 6.8119e-05 | CO85: 0.080644 | CP85: 0.0018823 | CQ85: 61.994 | CR85: 0.016131 | CS85: 534.06 | CT85: 559.87 | CU85: 1.2223 | CV85: 2.5891 | CW85: 3.3598 | CX85: 125.62 | CY85: 22.315 | CZ85: 1.251e-05 | DA85: 0.036078
B86: 0.6965376421 | C86: =PsatSLEoS_rchain_Ttilde_VECTOR3($D$66,B86) -> 0.0001113983727 | D86: 0.8132335875 | E86: 0.001552104756 | F86: 66 | G86: 0.03445057305 | H86: 649.9906521 | I86: 1.240545887 | J86: 0.001882048825 | K86: 0.9861095471 | L86: 0.03397852496 | M86: 0.03397852496 | P86: 0.164 | Q86: 0.1615539155 | R86: -1.225023448 | S86: 1.090913481 | T86: 0.008300743818 | U86: 0.004455895508 | AQ86: 0.164 | AR86: 1.090913481 | AS86: 0.008300743818 | AT86: 0.004455895508 | BA86: 123 | BB86: 0.19822 | BC86: 589.98 | BD86: 0.001695 | BE86: 64.188 | BF86: 64.524 | BG86: 0.1677 | BH86: 2.1523 | BI86: 2.6807 | BJ86: 736.97 | BK86: -0.19418 | BL86: 0.0001605 | BM86: 0.10721 | BN86: 0.010393 | BO86: 6.5864 | BP86: 0.15183 | BQ86: 332.62 | BR86: 362.72 | BS86: 0.92043 | BT86: 2.0394 | BU86: 2.1701 | BV86: 170.53 | BW86: 26.331 | BX86: 8.1981e-06 | BY86: 0.020675 | CC86: 231.03 | CD86: 1.6202 | CE86: 439.05 | CF86: 0.0022777 | CG86: 387.67 | CH86: 391.36 | CI86: 0.88739 | CJ86: 2.5883 | CK86: 3.642 | CL86: 274.87 | CM86: 1.3418 | CN86: 6.7527e-05 | CO86: 0.080379 | CP86: 0.0018305 | CQ86: 63.079 | CR86: 0.015853 | CS86: 535.41 | CT86: 561.1 | CU86: 1.2241 | CV86: 2.5937 | CW86: 3.3872 | CX86: 124.81 | CY86: 22.426 | CZ86: 1.2578e-05 | DA86: 0.036248
B87: 0.7006451913 | C87: =PsatSLEoS_rchain_Ttilde_VECTOR3($D$66,B87) -> 0.0001197420372 | D87: 0.8105927869 | E87: 0.001659974626 | F87: 68 | G87: 0.0370308982 | H87: 647.8799476 | I87: 1.326762699 | J87: 0.002017705138 | K87: 0.9852784525 | L87: 0.03649357215 | M87: 0.03649357215 | P87: 0.166 | Q87: 0.1636224934 | R87: -1.224817525 | S87: 1.093782005 | T87: 0.008394152543 | U87: 0.004383020127 | AQ87: 0.166 | AR87: 1.093782005 | AS87: 0.008394152543 | AT87: 0.004383020127 | BA87: 124.21 | BB87: 0.20436 | BC87: 588.74 | BD87: 0.0016985 | BE87: 67.427 | BF87: 67.774 | BG87: 0.17586 | BH87: 2.1571 | BI87: 2.687 | BJ87: 732.21 | BK87: -0.19 | BL87: 0.00015903 | BM87: 0.10693 | BN87: 0.010283 | BO87: 6.7829 | BP87: 0.14743 | BQ87: 334.87 | BR87: 365 | BS87: 0.92386 | BT87: 2.0455 | BU87: 2.1774 | BV87: 170.46 | BW87: 26.123 | BX87: 8.2289e-06 | BY87: 0.020809 | CC87: 231.83 | CD87: 1.6402 | CE87: 437.21 | CF87: 0.0022872 | CG87: 390.44 | CH87: 394.19 | CI87: 0.89291 | CJ87: 2.5918 | CK87: 3.6621 | CL87: 270.78 | CM87: 1.3911 | CN87: 6.6939e-05 | CO87: 0.080114 | CP87: 0.0017796 | CQ87: 64.179 | CR87: 0.015581 | CS87: 536.74 | CT87: 562.3 | CU87: 1.2258 | CV87: 2.5982 | CW87: 3.4155 | CX87: 123.99 | CY87: 22.539 | CZ87: 1.2647e-05 | DA87: 0.036419
B88: 0.7047527404 | C88: =PsatSLEoS_rchain_Ttilde_VECTOR3($D$66,B88) -> 0.0001285863168 | D88: 0.8079332169 | E88: 0.00177375386 | F88: 70 | G88: 0.03976604139 | H88: 645.7542415 | I88: 1.41770267 | J88: 0.002161197504 | K88: 0.9844112484 | L88: 0.03915555576 | M88: 0.03915555576 | P88: 0.168 | Q88: 0.1656928364 | R88: -1.224621818 | S88: 1.096547464 | T88: 0.00848588384 | U88: 0.004307733059 | AQ88: 0.168 | AR88: 1.096547464 | AS88: 0.00848588384 | AT88: 0.004307733059 | BA88: 125.42 | BB88: 0.21064 | BC88: 587.5 | BD88: 0.0017021 | BE88: 70.674 | BF88: 71.032 | BG88: 0.18402 | BH88: 2.1619 | BI88: 2.6933 | BJ88: 727.45 | BK88: -0.18575 | BL88: 0.00015758 | BM88: 0.10665 | BN88: 0.010173 | BO88: 6.9842 | BP88: 0.14318 | BQ88: 337.12 | BR88: 367.28 | BS88: 0.9273 | BT88: 2.0515 | BU88: 2.1847 | BV88: 170.38 | BW88: 25.921 | BX88: 8.2599e-06 | BY88: 0.020944 | CC88: 232.63 | CD88: 1.6602 | CE88: 435.36 | CF88: 0.002297 | CG88: 393.19 | CH88: 397.01 | CI88: 0.89839 | CJ88: 2.5954 | CK88: 3.6829 | CL88: 266.72 | CM88: 1.4422 | CN88: 6.6354e-05 | CO88: 0.079848 | CP88: 0.0017295 | CQ88: 65.294 | CR88: 0.015315 | CS88: 538.05 | CT88: 563.47 | CU88: 1.2275 | CV88: 2.6027 | CW88: 3.4448 | CX88: 123.17 | CY88: 22.655 | CZ88: 1.2717e-05 | DA88: 0.03659
B89: 0.7088602895 | C89: =PsatSLEoS_rchain_Ttilde_VECTOR3($D$66,B89) -> 0.0001379531593 | D89: 0.8052548261 | E89: 0.001893675087 | F89: 72 | G89: 0.04266279008 | H89: 643.6134925 | I89: 1.513551732 | J89: 0.00231286138 | K89: 0.9835070447 | L89: 0.04197045646 | M89: 0.04197045646 | P89: 0.17 | Q89: 0.167764906 | R89: -1.224436071 | S89: 1.099212015 | T89: 0.008575900794 | U89: 0.004230061203 | AQ89: 0.17 | AR89: 1.099212015 | AS89: 0.008575900794 | AT89: 0.004230061203 | BA89: 126.63 | BB89: 0.21707 | BC89: 586.25 | BD89: 0.0017057 | BE89: 73.928 | BF89: 74.298 | BG89: 0.19218 | BH89: 2.1668 | BI89: 2.6996 | BJ89: 722.68 | BK89: -0.18143 | BL89: 0.00015614 | BM89: 0.10637 | BN89: 0.010064 | BO89: 7.1902 | BP89: 0.13908 | BQ89: 339.38 | BR89: 369.57 | BS89: 0.93075 | BT89: 2.0575 | BU89: 2.192 | BV89: 170.29 | BW89: 25.722 | BX89: 8.2911e-06 | BY89: 0.021079 | CC89: 233.41 | CD89: 1.6802 | CE89: 433.49 | CF89: 0.0023068 | CG89: 395.93 | CH89: 399.81 | CI89: 0.90383 | CJ89: 2.5989 | CK89: 3.7043 | CL89: 262.67 | CM89: 1.4953 | CN89: 6.5772e-05 | CO89: 0.079582 | CP89: 0.0016801 | CQ89: 66.424 | CR89: 0.015055 | CS89: 539.33 | CT89: 564.63 | CU89: 1.2292 | CV89: 2.6072 | CW89: 3.4751 | CX89: 122.34 | CY89: 22.774 | CZ89: 1.2788e-05 | DA89: 0.036761
B90: 0.7129678386 | C90: =PsatSLEoS_rchain_Ttilde_VECTOR3($D$66,B90) -> 0.0001478648084 | D90: 0.8025574853 | E90: 0.002019972889 | F90: 74 | G90: 0.0457280233 | H90: 641.4575974 | I90: 1.614497379 | J90: 0.002473037338 | K90: 0.9825649825 | L90: 0.04494428249 | M90: 0.04494428249 | P90: 0.172 | Q90: 0.1698386639 | R90: -1.224260038 | S90: 1.101777756 | T90: 0.008664166729 | U90: 0.004150031655 | AQ90: 0.172 | AR90: 1.101777756 | AS90: 0.008664166729 | AT90: 0.004150031655 | BA90: 127.84 | BB90: 0.22365 | BC90: 585 | BD90: 0.0017094 | BE90: 77.189 | BF90: 77.571 | BG90: 0.20032 | BH90: 2.1716 | BI90: 2.706 | BJ90: 717.92 | BK90: -0.17704 | BL90: 0.00015472 | BM90: 0.10609 | BN90: 0.0099555 | BO90: 7.401 | BP90: 0.13512 | BQ90: 341.63 | BR90: 371.85 | BS90: 0.93421 | BT90: 2.0636 | BU90: 2.1994 | BV90: 170.2 | BW90: 25.528 | BX90: 8.3224e-06 | BY90: 0.021215 | CC90: 234.19 | CD90: 1.7002 | CE90: 431.62 | CF90: 0.0023168 | CG90: 398.65 | CH90: 402.59 | CI90: 0.90924 | CJ90: 2.6024 | CK90: 3.7264 | CL90: 258.65 | CM90: 1.5505 | CN90: 6.5193e-05 | CO90: 0.079315 | CP90: 0.0016314 | CQ90: 67.57 | CR90: 0.014799 | CS90: 540.59 | CT90: 565.75 | CU90: 1.2308 | CV90: 2.6116 | CW90: 3.5065 | CX90: 121.52 | CY90: 22.896 | CZ90: 1.286e-05 | DA90: 0.036933
B91: 0.7170753877 | C91: =PsatSLEoS_rchain_Ttilde_VECTOR3($D$66,B91) -> 0.000158344071 | D91: 0.7998410788 | E91: 0.002152887659 | F91: 76 | G91: 0.04896879419 | H91: 639.2864637 | I91: 1.720731749 | J91: 0.002642075493 | K91: 0.9815842007 | L91: 0.04808314596 | M91: 0.04808314595 | P91: 0.174 | Q91: 0.1719140718 | R91: -1.224093477 | S91: 1.104246726 | T91: 0.008750645188 | U91: 0.004067671704 | AQ91: 0.174 | AR91: 1.104246726 | AS91: 0.008750645188 | AT91: 0.004067671704 | BA91: 129.05 | BB91: 0.23039 | BC91: 583.74 | BD91: 0.0017131 | BE91: 80.457 | BF91: 80.852 | BG91: 0.20846 | BH91: 2.1764 | BI91: 2.7123 | BJ91: 713.15 | BK91: -0.17259 | BL91: 0.00015331 | BM91: 0.10581 | BN91: 0.0098469 | BO91: 7.6167 | BP91: 0.13129 | BQ91: 343.89 | BR91: 374.14 | BS91: 0.93768 | BT91: 2.0696 | BU91: 2.2068 | BV91: 170.1 | BW91: 25.338 | BX91: 8.3538e-06 | BY91: 0.021351 | CC91: 234.97 | CD91: 1.7202 | CE91: 429.74 | CF91: 0.002327 | CG91: 401.36 | CH91: 405.36 | CI91: 0.9146 | CJ91: 2.6059 | CK91: 3.7493 | CL91: 254.63 | CM91: 1.6078 | CN91: 6.4617e-05 | CO91: 0.079047 | CP91: 0.0015835 | CQ91: 68.733 | CR91: 0.014549 | CS91: 541.83 | CT91: 566.86 | CU91: 1.2324 | CV91: 2.6161 | CW91: 3.539 | CX91: 120.69 | CY91: 23.02 | CZ91: 1.2934e-05 | DA91: 0.037106
B92: 0.7211829369 | C92: =PsatSLEoS_rchain_Ttilde_VECTOR3($D$66,B92) -> 0.0001694142578 | D92: 0.7971054865 | E92: 0.002292664875 | F92: 78 | G92: 0.05239231168 | H92: 637.0999955 | I92: 1.832451045 | J92: 0.002820334721 | K92: 0.9805638427 | L92: 0.0513932411 | M92: 0.05139324108 | P92: 0.176 | Q92: 0.1739910914 | R92: -1.223936155 | S92: 1.10662091 | T92: 0.008835299927 | U92: 0.003983008839 | AQ92: 0.176 | AR92: 1.10662091 | AS92: 0.008835299927 | AT92: 0.003983008839 | BA92: 130.26 | BB92: 0.23727 | BC92: 582.48 | BD92: 0.0017168 | BE92: 83.733 | BF92: 84.141 | BG92: 0.2166 | BH92: 2.1813 | BI92: 2.7187 | BJ92: 708.37 | BK92: -0.16806 | BL92: 0.00015192 | BM92: 0.10553 | BN92: 0.0097385 | BO92: 7.8375 | BP92: 0.12759 | BQ92: 346.16 | BR92: 376.43 | BS92: 0.94115 | BT92: 2.0757 | BU92: 2.2142 | BV92: 169.99 | BW92: 25.152 | BX92: 8.3854e-06 | BY92: 0.021488 | CC92: 235.73 | CD92: 1.7402 | CE92: 427.84 | CF92: 0.0023373 | CG92: 404.05 | CH92: 408.12 | CI92: 0.91993 | CJ92: 2.6094 | CK92: 3.7731 | CL92: 250.64 | CM92: 1.6676 | CN92: 6.4043e-05 | CO92: 0.078778 | CP92: 0.0015363 | CQ92: 69.912 | CR92: 0.014304 | CS92: 543.05 | CT92: 567.94 | CU92: 1.234 | CV92: 2.6205 | CW92: 3.5727 | CX92: 119.85 | CY92: 23.148 | CZ92: 1.3008e-05 | DA92: 0.037279
B93: 0.725290486 | C93: =PsatSLEoS_rchain_Ttilde_VECTOR3($D$66,B93) -> 0.0001810991778 | D93: 0.7943505836 | E93: 0.002439555146 | F93: 80 | G93: 0.05600593888 | H93: 634.8980929 | I93: 1.94985557 | J93: 0.003008182751 | K93: 0.9795030572 | L93: 0.05488083855 | M93: 0.05488083851 | P93: 0.178 | Q93: 0.1760696845 | R93: -1.223787846 | S93: 1.108902236 | T93: 0.008918094897 | U93: 0.003896070749 | AQ93: 0.178 | AR93: 1.108902236 | AS93: 0.008918094897 | AT93: 0.003896070749 | BA93: 131.47 | BB93: 0.24431 | BC93: 581.21 | BD93: 0.0017205 | BE93: 87.017 | BF93: 87.437 | BG93: 0.22473 | BH93: 2.1861 | BI93: 2.7252 | BJ93: 703.6 | BK93: -0.16345 | BL93: 0.00015055 | BM93: 0.10525 | BN93: 0.0096304 | BO93: 8.0634 | BP93: 0.12402 | BQ93: 348.43 | BR93: 378.72 | BS93: 0.94463 | BT93: 2.0817 | BU93: 2.2217 | BV93: 169.88 | BW93: 24.97 | BX93: 8.4172e-06 | BY93: 0.021626 | CC93: 236.49 | CD93: 1.7602 | CE93: 425.93 | CF93: 0.0023478 | CG93: 406.73 | CH93: 410.86 | CI93: 0.92522 | CJ93: 2.6129 | CK93: 3.7977 | CL93: 246.66 | CM93: 1.7297 | CN93: 6.3471e-05 | CO93: 0.078509 | CP93: 0.0014899 | CQ93: 71.109 | CR93: 0.014063 | CS93: 544.24 | CT93: 569 | CU93: 1.2355 | CV93: 2.6249 | CW93: 3.6077 | CX93: 119.01 | CY93: 23.277 | CZ93: 1.3083e-05 | DA93: 0.037453
B94: 0.7293980351 | C94: =PsatSLEoS_rchain_Ttilde_VECTOR3($D$66,B94) -> 0.0001934231329 | D94: 0.7915762401 | E94: 0.002593814268 | F94: 82 | G94: 0.05981719129 | H94: 632.6806521 | I94: 2.073149773 | J94: 0.003205996265 | K94: 0.9784009986 | L94: 0.0585522795 | M94: 0.05855227941 | P94: 0.18 | Q94: 0.178149813 | R94: -1.223648331 | S94: 1.111092582 | T94: 0.00899899424 | U94: 0.003806885327 | AQ94: 0.18 | AR94: 1.111092582 | AS94: 0.00899899424 | AT94: 0.003806885327 | BA94: 132.68 | BB94: 0.25152 | BC94: 579.94 | BD94: 0.0017243 | BE94: 90.308 | BF94: 90.742 | BG94: 0.23285 | BH94: 2.1909 | BI94: 2.7316 | BJ94: 698.82 | BK94: -0.15877 | BL94: 0.00014919 | BM94: 0.10497 | BN94: 0.0095226 | BO94: 8.2945 | BP94: 0.12056 | BQ94: 350.69 | BR94: 381.02 | BS94: 0.94812 | BT94: 2.0877 | BU94: 2.2292 | BV94: 169.76 | BW94: 24.792 | BX94: 8.4491e-06 | BY94: 0.021764 | CC94: 237.24 | CD94: 1.7802 | CE94: 424 | CF94: 0.0023585 | CG94: 409.39 | CH94: 413.59 | CI94: 0.93048 | CJ94: 2.6164 | CK94: 3.8232 | CL94: 242.7 | CM94: 1.7945 | CN94: 6.2901e-05 | CO94: 0.078238 | CP94: 0.0014441 | CQ94: 72.325 | CR94: 0.013827 | CS94: 545.41 | CT94: 570.03 | CU94: 1.237 | CV94: 2.6293 | CW94: 3.6441 | CX94: 118.17 | CY94: 23.41 | CZ94: 1.316e-05 | DA94: 0.037627
B95: 0.7335055842 | C95: =PsatSLEoS_rchain_Ttilde_VECTOR3($D$66,B95) -> 0.0002064109118 | D95: 0.7887823211 | E95: 0.002755703277 | F95: 84 | G95: 0.06383373492 | H95: 630.4475653 | I95: 2.202542292 | J95: 0.003414161001 | K95: 0.9772568266 | L95: 0.06241396955 | M95: 0.06241396938 | P95: 0.182 | Q95: 0.1802314388 | R95: -1.223517393 | S95: 1.113193777 | T95: 0.00907796227 | U95: 0.003715480669 | AQ95: 0.182 | AR95: 1.113193777 | AS95: 0.00907796227 | AT95: 0.003715480669 | BA95: 133.89 | BB95: 0.25888 | BC95: 578.66 | BD95: 0.0017281 | BE95: 93.606 | BF95: 94.054 | BG95: 0.24097 | BH95: 2.1958 | BI95: 2.7381 | BJ95: 694.04 | BK95: -0.15401 | BL95: 0.00014784 | BM95: 0.10469 | BN95: 0.009415 | BO95: 8.5309 | BP95: 0.11722 | BQ95: 352.97 | BR95: 383.31 | BS95: 0.95161 | BT95: 2.0938 | BU95: 2.2367 | BV95: 169.63 | BW95: 24.618 | BX95: 8.4812e-06 | BY95: 0.021903 | CC95: 237.99 | CD95: 1.8002 | CE95: 422.06 | CF95: 0.0023693 | CG95: 412.04 | CH95: 416.31 | CI95: 0.93571 | CJ95: 2.6198 | CK95: 3.8497 | CL95: 238.76 | CM95: 1.8621 | CN95: 6.2333e-05 | CO95: 0.077965 | CP95: 0.0013991 | CQ95: 73.559 | CR95: 0.013595 | CS95: 546.56 | CT95: 571.04 | CU95: 1.2384 | CV95: 2.6336 | CW95: 3.682 | CX95: 117.33 | CY95: 23.545 | CZ95: 1.3238e-05 | DA95: 0.037802
B96: 0.7376131333 | C96: =PsatSLEoS_rchain_Ttilde_VECTOR3($D$66,B96) -> 0.0002200877832 | D96: 0.7859686867 | E96: 0.002925488523 | F96: 86 | G96: 0.06806338431 | H96: 628.1987205 | I96: 2.338246012 | J96: 0.003633071869 | K96: 0.9760697071 | L96: 0.06647237246 | M96: 0.06647237214 | P96: 0.184 | Q96: 0.1823145238 | R96: -1.223394827 | S96: 1.1152076 | T96: 0.009154963466 | U96: 0.003621885076 | AQ96: 0.184 | AR96: 1.1152076 | AS96: 0.009154963466 | AT96: 0.003621885076 | BA96: 135.1 | BB96: 0.26641 | BC96: 577.38 | BD96: 0.001732 | BE96: 96.912 | BF96: 97.374 | BG96: 0.24908 | BH96: 2.2006 | BI96: 2.7447 | BJ96: 689.25 | BK96: -0.14917 | BL96: 0.00014651 | BM96: 0.10442 | BN96: 0.0093077 | BO96: 8.7727 | BP96: 0.11399 | BQ96: 355.24 | BR96: 385.61 | BS96: 0.95511 | BT96: 2.0998 | BU96: 2.2443 | BV96: 169.5 | BW96: 24.448 | BX96: 8.5134e-06 | BY96: 0.022042 | CC96: 238.73 | CD96: 1.8202 | CE96: 420.1 | CF96: 0.0023804 | CG96: 414.68 | CH96: 419.01 | CI96: 0.94091 | CJ96: 2.6233 | CK96: 3.8773 | CL96: 234.83 | CM96: 1.9326 | CN96: 6.1767e-05 | CO96: 0.077692 | CP96: 0.0013547 | CQ96: 74.813 | CR96: 0.013367 | CS96: 547.69 | CT96: 572.02 | CU96: 1.2398 | CV96: 2.6379 | CW96: 3.7214 | CX96: 116.48 | CY96: 23.683 | CZ96: 1.3318e-05 | DA96: 0.037979
B97: 0.7417206825 | C97: =PsatSLEoS_rchain_Ttilde_VECTOR3($D$66,B97) -> 0.0002344794895 | D97: 0.7831351914 | E97: 0.003103441738 | F97: 88 | G97: 0.07251410039 | H97: 625.9340016 | I97: 2.480478118 | J97: 0.003863133072 | K97: 0.9748388121 | L97: 0.07073400369 | M97: 0.07073400309 | P97: 0.186 | Q97: 0.1843990302 | R97: -1.22328043 | S97: 1.117135782 | T97: 0.009229962464 | U97: 0.00352612706 | AQ97: 0.186 | AR97: 1.117135782 | AS97: 0.009229962464 | AT97: 0.00352612706 | BA97: 136.31 | BB97: 0.2741 | BC97: 576.09 | BD97: 0.0017358 | BE97: 100.23 | BF97: 100.7 | BG97: 0.25719 | BH97: 2.2054 | BI97: 2.7512 | BJ97: 684.46 | BK97: -0.14424 | BL97: 0.00014519 | BM97: 0.10414 | BN97: 0.0092006 | BO97: 9.0201 | BP97: 0.11086 | BQ97: 357.52 | BR97: 387.91 | BS97: 0.95862 | BT97: 2.1059 | BU97: 2.252 | BV97: 169.36 | BW97: 24.282 | BX97: 8.5459e-06 | BY97: 0.022182 | CC97: 239.46 | CD97: 1.8402 | CE97: 418.12 | CF97: 0.0023916 | CG97: 417.31 | CH97: 421.71 | CI97: 0.94608 | CJ97: 2.6268 | CK97: 3.9061 | CL97: 230.91 | CM97: 2.0062 | CN97: 6.1202e-05 | CO97: 0.077417 | CP97: 0.001311 | CQ97: 76.086 | CR97: 0.013143 | CS97: 548.8 | CT97: 572.98 | CU97: 1.2412 | CV97: 2.6423 | CW97: 3.7625 | CX97: 115.64 | CY97: 23.823 | CZ97: 1.3399e-05 | DA97: 0.038156
B98: 0.7458282316 | C98: =PsatSLEoS_rchain_Ttilde_VECTOR3($D$66,B98) -> 0.0002496122393 | D98: 0.7802816844 | E98: 0.003289840122 | F98: 90 | G98: 0.07719398835 | H98: 623.6532881 | I98: 2.629460168 | J98: 0.004104758235 | K98: 0.9735633196 | L98: 0.07520542377 | M98: 0.07520542269 | P98: 0.188 | Q98: 0.18648492 | R98: -1.223174004 | S98: 1.118980009 | T98: 0.009302924042 | U98: 0.003428235343 | AQ98: 0.188 | AR98: 1.118980009 | AS98: 0.009302924042 | AT98: 0.003428235343 | BA98: 137.52 | BB98: 0.28196 | BC98: 574.79 | BD98: 0.0017398 | BE98: 103.55 | BF98: 104.04 | BG98: 0.26529 | BH98: 2.2103 | BI98: 2.7578 | BJ98: 679.67 | BK98: -0.13922 | BL98: 0.00014389 | BM98: 0.10386 | BN98: 0.0090938 | BO98: 9.2731 | BP98: 0.10784 | BQ98: 359.8 | BR98: 390.21 | BS98: 0.96213 | BT98: 2.1119 | BU98: 2.2596 | BV98: 169.21 | BW98: 24.119 | BX98: 8.5785e-06 | BY98: 0.022323 | CC98: 240.18 | CD98: 1.8602 | CE98: 416.13 | CF98: 0.0024031 | CG98: 419.92 | CH98: 424.39 | CI98: 0.95121 | CJ98: 2.6302 | CK98: 3.9361 | CL98: 227.01 | CM98: 2.0832 | CN98: 6.0637e-05 | CO98: 0.07714 | CP98: 0.0012679 | CQ98: 77.381 | CR98: 0.012923 | CS98: 549.88 | CT98: 573.92 | CU98: 1.2425 | CV98: 2.6466 | CW98: 3.8053 | CX98: 114.78 | CY98: 23.966 | CZ98: 1.3481e-05 | DA98: 0.038334
B99: 0.7499357807 | C99: =PsatSLEoS_rchain_Ttilde_VECTOR3($D$66,B99) -> 0.0002655127003 | D99: 0.7774080094 | E99: 0.00348496643 | F99: 92 | G99: 0.08211129529 | H99: 621.3564549 | I99: 2.785418159 | J99: 0.004358370552 | K99: 0.9722424141 | L99: 0.07989323154 | M99: 0.07989322964 | P99: 0.19 | Q99: 0.1885721554 | R99: -1.223075359 | S99: 1.120741924 | T99: 0.009373813115 | U99: 0.003328238856 | AQ99: 0.19 | AR99: 1.120741924 | AS99: 0.009373813115 | AT99: 0.003328238856 | BA99: 138.73 | BB99: 0.28999 | BC99: 573.49 | BD99: 0.0017437 | BE99: 106.88 | BF99: 107.38 | BG99: 0.27339 | BH99: 2.2151 | BI99: 2.7644 | BJ99: 674.87 | BK99: -0.13412 | BL99: 0.0001426 | BM99: 0.10358 | BN99: 0.0089872 | BO99: 9.5317 | BP99: 0.10491 | BQ99: 362.09 | BR99: 392.51 | BS99: 0.96565 | BT99: 2.118 | BU99: 2.2673 | BV99: 169.06 | BW99: 23.96 | BX99: 8.6112e-06 | BY99: 0.022464 | CC99: 240.9 | CD99: 1.8802 | CE99: 414.12 | CF99: 0.0024148 | CG99: 422.53 | CH99: 427.07 | CI99: 0.95633 | CJ99: 2.6337 | CK99: 3.9675 | CL99: 223.12 | CM99: 2.1637 | CN99: 6.0074e-05 | CO99: 0.076861 | CP99: 0.0012255 | CQ99: 78.697 | CR99: 0.012707 | CS99: 550.94 | CT99: 574.83 | CU99: 1.2438 | CV99: 2.6509 | CW99: 3.8501 | CX99: 113.93 | CY99: 24.111 | CZ99: 1.3565e-05 | DA99: 0.038514
B100: 0.7540433298 | C100: =PsatSLEoS_rchain_Ttilde_VECTOR3($D$66,B100) -> 0.0002822079912 | D100: 0.7745140042 | E100: 0.003689109078 | F100: 94 | G100: 0.08727440789 | H100: 619.0433725 | I100: 2.948582611 | J100: 0.004624402932 | K100: 0.9708752863 | L100: 0.08480405727 | M100: 0.08480405399 | P100: 0.192 | Q100: 0.1906606985 | R100: -1.222984308 | S100: 1.122423128 | T100: 0.009442594722 | U100: 0.00322616675 | AQ100: 0.192 | AR100: 1.122423128 | AS100: 0.009442594722 | AT100: 0.00322616675 | BA100: 139.94 | BB100: 0.2982 | BC100: 572.19 | BD100: 0.0017477 | BE100: 110.21 | BF100: 110.73 | BG100: 0.28148 | BH100: 2.2199 | BI100: 2.7711 | BJ100: 670.06 | BK100: -0.12892 | BL100: 0.00014132 | BM100: 0.1033 | BN100: 0.008881 | BO100: 9.7963 | BP100: 0.10208 | BQ100: 364.37 | BR100: 394.81 | BS100: 0.96917 | BT100: 2.124 | BU100: 2.2751 | BV100: 168.89 | BW100: 23.806 | BX100: 8.6442e-06 | BY100: 0.022606 | CC100: 241.61 | CD100: 1.9002 | CE100: 412.09 | CF100: 0.0024267 | CG100: 425.12 | CH100: 429.73 | CI100: 0.96141 | CJ100: 2.6372 | CK100: 4.0003 | CL100: 219.25 | CM100: 2.2479 | CN100: 5.9511e-05 | CO100: 0.076581 | CP100: 0.0011838 | CQ100: 80.036 | CR100: 0.012494 | CS100: 551.98 | CT100: 575.72 | CU100: 1.245 | CV100: 2.6551 | CW100: 3.8969 | CX100: 113.07 | CY100: 24.259 | CZ100: 1.3651e-05 | DA100: 0.038694
B101: 0.7581508789 | C101: =PsatSLEoS_rchain_Ttilde_VECTOR3($D$66,B101) -> 0.0002997256888 | D101: 0.7715995007 | E101: 0.003902562243 | F101: 96 | G101: 0.09269185434 | H101: 616.7139064 | I101: 3.119188652 | J101: 0.0049032984 | K101: 0.96946118 | L101: 0.08994455561 | M101: 0.08994455007 | P101: 0.194 | Q101: 0.1927505117 | R101: -1.22290067 | S101: 1.124025179 | T101: 0.00950923402 | U101: 0.003122048389 | AQ101: 0.194 | AR101: 1.124025179 | AS101: 0.00950923402 | AT101: 0.003122048389 | BA101: 141.15 | BB101: 0.30658 | BC101: 570.87 | BD101: 0.0017517 | BE101: 113.56 | BF101: 114.09 | BG101: 0.28956 | BH101: 2.2248 | BI101: 2.7778 | BJ101: 665.26 | BK101: -0.12363 | BL101: 0.00014005 | BM101: 0.10302 | BN101: 0.008775 | BO101: 10.067 | BP101: 0.099337 | BQ101: 366.66 | BR101: 397.12 | BS101: 0.9727 | BT101: 2.1301 | BU101: 2.2829 | BV101: 168.72 | BW101: 23.654 | BX101: 8.6774e-06 | BY101: 0.022749 | CC101: 242.32 | CD101: 1.9202 | CE101: 410.03 | CF101: 0.0024388 | CG101: 427.7 | CH101: 432.39 | CI101: 0.96647 | CJ101: 2.6406 | CK101: 4.0346 | CL101: 215.38 | CM101: 2.3362 | CN101: 5.8949e-05 | CO101: 0.076298 | CP101: 0.0011427 | CQ101: 81.398 | CR101: 0.012285 | CS101: 552.99 | CT101: 576.58 | CU101: 1.2462 | CV101: 2.6594 | CW101: 3.9459 | CX101: 112.21 | CY101: 24.409 | CZ101: 1.3738e-05 | DA101: 0.038876
B102: 0.7622584281 | C102: =PsatSLEoS_rchain_Ttilde_VECTOR3($D$66,B102) -> 0.0003180937658 | D102: 0.7686643247 | E102: 0.004125625992 | F102: 98 | G102: 0.09837228542 | H102: 614.3679175 | I102: 3.297476112 | J102: 0.005195509406 | K102: 0.9679992168 | L102: 0.09532139847 | M102: 0.09532138931 | P102: 0.196 | Q102: 0.1948415574 | R102: -1.222824269 | S102: 1.125549595 | T102: 0.009573696274 | U102: 0.003015913356 | AQ102: 0.196 | AR102: 1.125549595 | AS102: 0.009573696274 | AT102: 0.003015913356 | BA102: 142.36 | BB102: 0.31514 | BC102: 569.55 | BD102: 0.0017558 | BE102: 116.91 | BF102: 117.46 | BG102: 0.29764 | BH102: 2.2296 | BI102: 2.7845 | BJ102: 660.44 | BK102: -0.11823 | BL102: 0.0001388 | BM102: 0.10274 | BN102: 0.0086692 | BO102: 10.343 | BP102: 0.096681 | BQ102: 368.96 | BR102: 399.42 | BS102: 0.97624 | BT102: 2.1362 | BU102: 2.2907 | BV102: 168.54 | BW102: 23.507 | BX102: 8.7107e-06 | BY102: 0.022893 | CC102: 243.02 | CD102: 1.9402 | CE102: 407.95 | CF102: 0.0024513 | CG102: 430.28 | CH102: 435.03 | CI102: 0.97151 | CJ102: 2.6441 | CK102: 4.0707 | CL102: 211.53 | CM102: 2.4288 | CN102: 5.8387e-05 | CO102: 0.076014 | CP102: 0.0011023 | CQ102: 82.785 | CR102: 0.01208 | CS102: 553.99 | CT102: 577.42 | CU102: 1.2474 | CV102: 2.6636 | CW102: 3.9972 | CX102: 111.35 | CY102: 24.562 | CZ102: 1.3827e-05 | DA102: 0.039059
B103: 0.7663659772 | C103: =PsatSLEoS_rchain_Ttilde_VECTOR3($D$66,B103) -> 0.0003373406569 | D103: 0.7657082956 | E103: 0.004358606404 | F103: 100 | G103: 0.1043244947 | H103: 612.0052615 | I103: 3.483689633 | J103: 0.005501499221 | K103: 0.9664886438 | L103: 0.1009412678 | M103: 0.100941253 | P103: 0.198 | Q103: 0.196933798 | R103: -1.222754932 | S103: 1.126997857 | T103: 0.009635946847 | U103: 0.002907791457 | AQ103: 0.198 | AR103: 1.126997857 | AS103: 0.009635946847 | AT103: 0.002907791457 | BA103: 143.57 | BB103: 0.32388 | BC103: 568.23 | BD103: 0.0017599 | BE103: 120.27 | BF103: 120.84 | BG103: 0.30572 | BH103: 2.2344 | BI103: 2.7913 | BJ103: 655.63 | BK103: -0.11274 | BL103: 0.00013756 | BM103: 0.10247 | BN103: 0.0085638 | BO103: 10.626 | BP103: 0.094109 | BQ103: 371.25 | BR103: 401.73 | BS103: 0.97978 | BT103: 2.1422 | BU103: 2.2986 | BV103: 168.36 | BW103: 23.363 | BX103: 8.7443e-06 | BY103: 0.023037 | CC103: 243.72 | CD103: 1.9602 | CE103: 405.85 | CF103: 0.0024639 | CG103: 432.84 | CH103: 437.67 | CI103: 0.97653 | CJ103: 2.6476 | CK103: 4.1085 | CL103: 207.7 | CM103: 2.5259 | CN103: 5.7824e-05 | CO103: 0.075727 | CP103: 0.0010625 | CQ103: 84.196 | CR103: 0.011877 | CS103: 554.96 | CT103: 578.24 | CU103: 1.2485 | CV103: 2.6679 | CW103: 4.051 | CX103: 110.48 | CY103: 24.716 | CZ103: 1.3919e-05 | DA103: 0.039244
B104: 0.7704735263 | C104: =PsatSLEoS_rchain_Ttilde_VECTOR3($D$66,B104) -> 0.0003574952035 | D104: 0.7627312266 | E104: 0.004601815713 | F104: 102 | G104: 0.1105574016 | H104: 609.6257888 | I104: 3.678078773 | J104: 0.005821741386 | K104: 0.9649286771 | L104: 0.1068108485 | M104: 0.1068108248 | P104: 0.2 | Q104: 0.1990271959 | R104: -1.222692492 | S104: 1.128371408 | T104: 0.009695951196 | U104: 0.002797712721 | AQ104: 0.2 | AR104: 1.128371408 | AS104: 0.009695951196 | AT104: 0.002797712721 | BA104: 144.78 | BB104: 0.3328 | BC104: 566.9 | BD104: 0.001764 | BE104: 123.63 | BF104: 124.22 | BG104: 0.31379 | BH104: 2.2393 | BI104: 2.7981 | BJ104: 650.8 | BK104: -0.10714 | BL104: 0.00013633 | BM104: 0.10219 | BN104: 0.0084586 | BO104: 10.915 | BP104: 0.091617 | BQ104: 373.55 | BR104: 404.04 | BS104: 0.98332 | BT104: 2.1483 | BU104: 2.3065 | BV104: 168.17 | BW104: 23.222 | BX104: 8.778e-06 | BY104: 0.023181 | CC104: 244.41 | CD104: 1.9802 | CE104: 403.73 | CF104: 0.0024769 | CG104: 435.4 | CH104: 440.31 | CI104: 0.98152 | CJ104: 2.651 | CK104: 4.1484 | CL104: 203.87 | CM104: 2.628 | CN104: 5.7261e-05 | CO104: 0.075437 | CP104: 0.0010233 | CQ104: 85.634 | CR104: 0.011678 | CS104: 555.9 | CT104: 579.03 | CU104: 1.2496 | CV104: 2.6721 | CW104: 4.1075 | CX104: 109.62 | CY104: 24.873 | CZ104: 1.4012e-05 | DA104: 0.03943
B105: 0.7745810754 | C105: =PsatSLEoS_rchain_Ttilde_VECTOR3($D$66,B105) -> 0.0003785866558 | D105: 0.7597329238 | E105: 0.004855572461 | F105: 104 | G105: 0.1170800517 | H105: 607.2293448 | I105: 3.880898132 | J105: 0.006156720107 | K105: 0.9633185386 | L105: 0.1129368206 | M105: 0.1129367836 | P105: 0.202 | Q105: 0.2011217137 | R105: -1.222636785 | S105: 1.129671654 | T105: 0.00975367486 | U105: 0.002685707399 | AQ105: 0.202 | AR105: 1.129671654 | AS105: 0.00975367486 | AT105: 0.002685707399 | BA105: 145.99 | BB105: 0.34191 | BC105: 565.56 | BD105: 0.0017682 | BE105: 127.01 | BF105: 127.61 | BG105: 0.32186 | BH105: 2.2441 | BI105: 2.8049 | BJ105: 645.98 | BK105: -0.10143 | BL105: 0.00013512 | BM105: 0.10191 | BN105: 0.0083537 | BO105: 11.21 | BP105: 0.089202 | BQ105: 375.85 | BR105: 406.34 | BS105: 0.98687 | BT105: 2.1543 | BU105: 2.3145 | BV105: 167.96 | BW105: 23.085 | BX105: 8.812e-06 | BY105: 0.023327 | CC105: 245.09 | CD105: 2.0002 | CE105: 401.57 | CF105: 0.0024902 | CG105: 437.95 | CH105: 442.93 | CI105: 0.9865 | CJ105: 2.6545 | CK105: 4.1904 | CL105: 200.06 | CM105: 2.7353 | CN105: 5.6698e-05 | CO105: 0.075145 | CP105: 0.00098467 | CQ105: 87.099 | CR105: 0.011481 | CS105: 556.83 | CT105: 579.79 | CU105: 1.2506 | CV105: 2.6763 | CW105: 4.167 | CX105: 108.75 | CY105: 25.032 | CZ105: 1.4107e-05 | DA105: 0.039618
B106: 0.7786886245 | C106: =PsatSLEoS_rchain_Ttilde_VECTOR3($D$66,B106) -> 0.0004006446629 | D106: 0.7567131866 | E106: 0.005120201658 | F106: 106 | G106: 0.1239016145 | H106: 604.8157689 | I106: 4.092407477 | J106: 0.006506930485 | K106: 0.9616574564 | L106: 0.1193258524 | M106: 0.1193257953 | P106: 0.204 | Q106: 0.203217314 | R106: -1.222587653 | S106: 1.130899967 | T106: 0.009809083455 | U106: 0.002571805975 | AQ106: 0.204 | AR106: 1.130899967 | AS106: 0.009809083455 | AT106: 0.002571805975 | BA106: 147.2 | BB106: 0.35121 | BC106: 564.21 | BD106: 0.0017724 | BE106: 130.39 | BF106: 131.01 | BG106: 0.32992 | BH106: 2.2489 | BI106: 2.8118 | BJ106: 641.14 | BK106: -0.095606 | BL106: 0.00013391 | BM106: 0.10163 | BN106: 0.008249 | BO106: 11.512 | BP106: 0.086863 | BQ106: 378.15 | BR106: 408.65 | BS106: 0.99042 | BT106: 2.1604 | BU106: 2.3226 | BV106: 167.76 | BW106: 22.952 | BX106: 8.8462e-06 | BY106: 0.023473 | CC106: 245.77 | CD106: 2.0202 | CE106: 399.39 | CF106: 0.0025038 | CG106: 440.5 | CH106: 445.56 | CI106: 0.99146 | CJ106: 2.658 | CK106: 4.2347 | CL106: 196.26 | CM106: 2.8483 | CN106: 5.6133e-05 | CO106: 0.07485 | CP106: 0.00094669 | CQ106: 88.592 | CR106: 0.011288 | CS106: 557.73 | CT106: 580.53 | CU106: 1.2516 | CV106: 2.6805 | CW106: 4.2295 | CX106: 107.88 | CY106: 25.193 | CZ106: 1.4204e-05 | DA106: 0.039808
B107: 0.7827961737 | C107: =PsatSLEoS_rchain_Ttilde_VECTOR3($D$66,B107) -> 0.0004236992647 | D107: 0.7536718073 | E107: 0.005396034968 | F107: 108 | G107: 0.1310313797 | H107: 602.3848953 | I107: 4.312871899 | J107: 0.00687287878 | K107: 0.9599446635 | L107: 0.1259845929 | M107: 0.1259845064 | P107: 0.206 | Q107: 0.2053139596 | R107: -1.222544941 | S107: 1.132057684 | T107: 0.009862142666 | U107: 0.002456039159 | AQ107: 0.206 | AR107: 1.132057684 | AS107: 0.009862142666 | AT107: 0.002456039159 | BA107: 148.41 | BB107: 0.3607 | BC107: 562.86 | BD107: 0.0017766 | BE107: 133.78 | BF107: 134.42 | BG107: 0.33798 | BH107: 2.2537 | BI107: 2.8187 | BJ107: 636.3 | BK107: -0.089668 | BL107: 0.00013272 | BM107: 0.10135 | BN107: 0.0081447 | BO107: 11.821 | BP107: 0.084594 | BQ107: 380.45 | BR107: 410.96 | BS107: 0.99398 | BT107: 2.1665 | BU107: 2.3306 | BV107: 167.54 | BW107: 22.822 | BX107: 8.8806e-06 | BY107: 0.02362 | CC107: 246.44 | CD107: 2.0402 | CE107: 397.18 | CF107: 0.0025178 | CG107: 443.04 | CH107: 448.17 | CI107: 0.9964 | CJ107: 2.6616 | CK107: 4.2816 | CL107: 192.47 | CM107: 2.9673 | CN107: 5.5568e-05 | CO107: 0.074552 | CP107: 0.00090932 | CQ107: 90.115 | CR107: 0.011097 | CS107: 558.6 | CT107: 581.24 | CU107: 1.2525 | CV107: 2.6847 | CW107: 4.2955 | CX107: 107 | CY107: 25.356 | CZ107: 1.4304e-05 | DA107: 0.04
B108: 0.7869037228 | C108: =PsatSLEoS_rchain_Ttilde_VECTOR3($D$66,B108) -> 0.0004477808778 | D108: 0.7506085704 | E108: 0.005683410849 | F108: 110 | G108: 0.1384787539 | H108: 599.9365516 | I108: 4.542561916 | J108: 0.007255082617 | K108: 0.9581793989 | L108: 0.1329196637 | M108: 0.1329195342 | P108: 0.208 | Q108: 0.2074116133 | R108: -1.222508496 | S108: 1.13314611 | T108: 0.009912818239 | U108: 0.002338437896 | AQ108: 0.208 | AR108: 1.13314611 | AS108: 0.009912818239 | AT108: 0.002338437896 | BA108: 149.62 | BB108: 0.37038 | BC108: 561.5 | BD108: 0.0017809 | BE108: 137.18 | BF108: 137.84 | BG108: 0.34603 | BH108: 2.2586 | BI108: 2.8257 | BJ108: 631.46 | BK108: -0.08361 | BL108: 0.00013154 | BM108: 0.10108 | BN108: 0.0080406 | BO108: 12.137 | BP108: 0.082396 | BQ108: 382.76 | BR108: 413.27 | BS108: 0.99753 | BT108: 2.1725 | BU108: 2.3388 | BV108: 167.31 | BW108: 22.695 | BX108: 8.9153e-06 | BY108: 0.023767 | CC108: 247.11 | CD108: 2.0602 | CE108: 394.94 | CF108: 0.0025321 | CG108: 445.57 | CH108: 450.79 | CI108: 1.0013 | CJ108: 2.6651 | CK108: 4.3314 | CL108: 188.69 | CM108: 3.0928 | CN108: 5.5e-05 | CO108: 0.07425 | CP108: 0.00087255 | CQ108: 91.669 | CR108: 0.010909 | CS108: 559.45 | CT108: 581.93 | CU108: 1.2534 | CV108: 2.6889 | CW108: 4.3652 | CX108: 106.13 | CY108: 25.52 | CZ108: 1.4406e-05 | DA108: 0.040194
B109: 0.7910112719 | C109: =PsatSLEoS_rchain_Ttilde_VECTOR3($D$66,B109) -> 0.0004729209692 | D109: 0.7475232539 | E109: 0.00598268382 | F109: 112 | G109: 0.1462534685 | H109: 597.4705604 | I109: 4.781760883 | J109: 0.00765408233 | K109: 0.9563608409 | L109: 0.140137654 | M109: 0.140137654 | P109: 0.21 | Q109: 0.2095102378 | R109: -1.222478171 | S109: 1.134166518 | T109: 0.009961075976 | U109: 0.002219033363 | AQ109: 0.21 | AR109: 1.134166518 | AS109: 0.009961075976 | AT109: 0.002219033363 | BA109: 150.83 | BB109: 0.38025 | BC109: 560.13 | BD109: 0.0017853 | BE109: 140.58 | BF109: 141.26 | BG109: 0.35408 | BH109: 2.2634 | BI109: 2.8327 | BJ109: 626.61 | BK109: -0.077427 | BL109: 0.00013037 | BM109: 0.1008 | BN109: 0.0079368 | BO109: 12.459 | BP109: 0.080263 | BQ109: 385.06 | BR109: 415.59 | BS109: 1.0011 | BT109: 2.1786 | BU109: 2.347 | BV109: 167.08 | BW109: 22.572 | BX109: 8.9501e-06 | BY109: 0.023915 | CC109: 247.77 | CD109: 2.0802 | CE109: 392.66 | CF109: 0.0025468 | CG109: 448.1 | CH109: 453.39 | CI109: 1.0062 | CJ109: 2.6686 | CK109: 4.3842 | CL109: 184.92 | CM109: 3.2253 | CN109: 5.4431e-05 | CO109: 0.073945 | CP109: 0.00083638 | CQ109: 93.256 | CR109: 0.010723 | CS109: 560.28 | CT109: 582.59 | CU109: 1.2543 | CV109: 2.693 | CW109: 4.4389 | CX109: 105.25 | CY109: 25.686 | CZ109: 1.4511e-05 | DA109: 0.04039
B110: 0.795118821 | C110: =PsatSLEoS_rchain_Ttilde_VECTOR3($D$66,B110) -> 0.0004991496408 | D110: 0.7444156258 | E110: 0.00629419277 | F110: 114 | G110: 0.1543648327 | H110: 594.9867362 | I110: 5.030739662 | J110: 0.008070402338 | K110: 0.9544883396 | L110: 0.1476451075 | M110: 0.1476451075 | P110: 0.212 | Q110: 0.211609796 | R110: -1.222453823 | S110: 1.135120149 | T110: 0.01000688173 | U110: 0.002097856977 | AQ110: 0.212 | AR110: 1.135120149 | AS110: 0.01000688173 | AT110: 0.002097856977 | BA110: 152.04 | BB110: 0.39033 | BC110: 558.76 | BD110: 0.0017897 | BE110: 144 | BF110: 144.7 | BG110: 0.36212 | BH110: 2.2682 | BI110: 2.8397 | BJ110: 621.75 | BK110: -0.071115 | BL110: 0.00012921 | BM110: 0.10052 | BN110: 0.0078333 | BO110: 12.789 | BP110: 0.078195 | BQ110: 387.37 | BR110: 417.9 | BS110: 1.0047 | BT110: 2.1846 | BU110: 2.3553 | BV110: 166.84 | BW110: 22.452 | BX110: 8.9853e-06 | BY110: 0.024064 | CC110: 248.43 | CD110: 2.1002 | CE110: 390.34 | CF110: 0.0025619 | CG110: 450.62 | CH110: 456 | CI110: 1.0111 | CJ110: 2.6722 | CK110: 4.4404 | CL110: 181.17 | CM110: 3.3653 | CN110: 5.386e-05 | CO110: 0.073636 | CP110: 0.0008008 | CQ110: 94.875 | CR110: 0.01054 | CS110: 561.08 | CT110: 583.22 | CU110: 1.2551 | CV110: 2.6972 | CW110: 4.5169 | CX110: 104.37 | CY110: 25.853 | CZ110: 1.4619e-05 | DA110: 0.040588
B111: 0.7992263701 | C111: =PsatSLEoS_rchain_Ttilde_VECTOR3($D$66,B111) -> 0.0005264988783 | D111: 0.7412854475 | E111: 0.006618304443 | F111: 116 | G111: 0.1628227381 | H111: 592.4848884 | I111: 5.289791379 | J111: 0.008504604245 | K111: 0.9525611005 | L111: 0.1554485221 | M111: 0.1554485221 | P111: 0.214 | Q111: 0.2137102511 | R111: -1.22243531 | S111: 1.136008215 | T111: 0.01005020138 | U111: 0.001974940393 | AQ111: 0.214 | AR111: 1.136008215 | AS111: 0.01005020138 | AT111: 0.001974940393 | BA111: 153.25 | BB111: 0.4006 | BC111: 557.38 | BD111: 0.0017941 | BE111: 147.42 | BF111: 148.14 | BG111: 0.37016 | BH111: 2.273 | BI111: 2.8468 | BJ111: 616.88 | BK111: -0.06467 | BL111: 0.00012806 | BM111: 0.10024 | BN111: 0.0077301 | BO111: 13.125 | BP111: 0.076189 | BQ111: 389.69 | BR111: 420.21 | BS111: 1.0082 | BT111: 2.1907 | BU111: 2.3636 | BV111: 166.59 | BW111: 22.335 | BX111: 9.0207e-06 | BY111: 0.024214 | CC111: 249.08 | CD111: 2.1202 | CE111: 387.99 | CF111: 0.0025774 | CG111: 453.14 | CH111: 458.61 | CI111: 1.016 | CJ111: 2.6758 | CK111: 4.5003 | CL111: 177.43 | CM111: 3.5135 | CN111: 5.3286e-05 | CO111: 0.073323 | CP111: 0.0007658 | CQ111: 96.53 | CR111: 0.010359 | CS111: 561.86 | CT111: 583.83 | CU111: 1.2558 | CV111: 2.7014 | CW111: 4.5997 | CX111: 103.49 | CY111: 26.022 | CZ111: 1.4729e-05 | DA111: 0.040789
B112: 0.8033339193 | C112: =PsatSLEoS_rchain_Ttilde_VECTOR3($D$66,B112) -> 0.0005550005556 | D112: 0.7381324713 | E112: 0.006955387333 | F112: 118 | G112: 0.1716370421 | H112: 589.9648191 | I112: 5.55921056 | J112: 0.008957255042 | K112: 0.9505783768 | L112: 0.163554338 | M112: 0.163554338 | P112: 0.216 | Q112: 0.215811566 | R112: -1.222422495 | S112: 1.136831898 | T112: 0.01009100086 | U112: 0.001850315507 | AQ112: 0.216 | AR112: 1.136831898 | AS112: 0.01009100086 | AT112: 0.001850315507 | BA112: 154.46 | BB112: 0.41108 | BC112: 555.99 | BD112: 0.0017986 | BE112: 150.85 | BF112: 151.59 | BG112: 0.3782 | BH112: 2.2778 | BI112: 2.854 | BJ112: 612.01 | BK112: -0.058088 | BL112: 0.00012692 | BM112: 0.099962 | BN112: 0.0076271 | BO112: 13.469 | BP112: 0.074243 | BQ112: 392 | BR112: 422.52 | BS112: 1.0118 | BT112: 2.1968 | BU112: 2.372 | BV112: 166.33 | BW112: 22.222 | BX112: 9.0563e-06 | BY112: 0.024365 | CC112: 249.73 | CD112: 2.1402 | CE112: 385.6 | CF112: 0.0025934 | CG112: 455.66 | CH112: 461.21 | CI112: 1.0209 | CJ112: 2.6794 | CK112: 4.5644 | CL112: 173.69 | CM112: 3.6704 | CN112: 5.2709e-05 | CO112: 0.073006 | CP112: 0.00073139 | CQ112: 98.223 | CR112: 0.010181 | CS112: 562.62 | CT112: 584.4 | CU112: 1.2565 | CV112: 2.7055 | CW112: 4.6876 | CX112: 102.61 | CY112: 26.192 | CZ112: 1.4842e-05 | DA112: 0.040993
B113: 0.8074414684 | C113: =PsatSLEoS_rchain_Ttilde_VECTOR3($D$66,B113) -> 0.0005846868833 | D113: 0.7349564409 | E113: 0.007305818059 | F113: 120 | G113: 0.1808177058 | H113: 587.4263232 | I113: 5.839298224 | J113: 0.009428934929 | K113: 0.9485394245 | L113: 0.1719689316 | M113: 0.1719689316 | P113: 0.218 | Q113: 0.2179137039 | R113: -1.222415244 | S113: 1.137592352 | T113: 0.01012924612 | U113: 0.001724014462 | AQ113: 0.218 | AR113: 1.137592352 | AS113: 0.01012924612 | AT113: 0.001724014462 | BA113: 155.67 | BB113: 0.42177 | BC113: 554.59 | BD113: 0.0018031 | BE113: 154.29 | BF113: 155.05 | BG113: 0.38623 | BH113: 2.2826 | BI113: 2.8612 | BJ113: 607.13 | BK113: -0.051363 | BL113: 0.0001258 | BM113: 0.099683 | BN113: 0.0075245 | BO113: 13.821 | BP113: 0.072354 | BQ113: 394.32 | BR113: 424.83 | BS113: 1.0154 | BT113: 2.2029 | BU113: 2.3804 | BV113: 166.06 | BW113: 22.112 | BX113: 9.0922e-06 | BY113: 0.024516 | CC113: 250.37 | CD113: 2.1602 | CE113: 383.16 | CF113: 0.0026099 | CG113: 458.18 | CH113: 463.82 | CI113: 1.0258 | CJ113: 2.6831 | CK113: 4.6331 | CL113: 169.98 | CM113: 3.8369 | CN113: 5.2129e-05 | CO113: 0.072684 | CP113: 0.00069756 | CQ113: 99.953 | CR113: 0.010005 | CS113: 563.34 | CT113: 584.95 | CU113: 1.2572 | CV113: 2.7097 | CW113: 4.7812 | CX113: 101.73 | CY113: 26.362 | CZ113: 1.4959e-05 | DA113: 0.041199
B114: 0.8115490175 | C114: =PsatSLEoS_rchain_Ttilde_VECTOR3($D$66,B114) -> 0.0006155903997 | D114: 0.7317570905 | E114: 0.007669981669 | F114: 122 | G114: 0.190374792 | H114: 584.8691885 | I114: 6.130362128 | J114: 0.009920237746 | K114: 0.9464435018 | L114: 0.1806986082 | M114: 0.1806986082 | P114: 0.22 | Q114: 0.2200166281 | R114: -1.222413426 | S114: 1.138290705 | T114: 0.01016490315 | U114: 0.001596069646 | AQ114: 0.22 | AR114: 1.138290705 | AS114: 0.01016490315 | AT114: 0.001596069646 | BA114: 156.88 | BB114: 0.43266 | BC114: 553.19 | BD114: 0.0018077 | BE114: 157.73 | BF114: 158.52 | BG114: 0.39426 | BH114: 2.2875 | BI114: 2.8685 | BJ114: 602.25 | BK114: -0.044489 | BL114: 0.00012468 | BM114: 0.099405 | BN114: 0.0074221 | BO114: 14.18 | BP114: 0.070521 | BQ114: 396.63 | BR114: 427.14 | BS114: 1.0189 | BT114: 2.2089 | BU114: 2.389 | BV114: 165.78 | BW114: 22.006 | BX114: 9.1284e-06 | BY114: 0.024668 | CC114: 251 | CD114: 2.1802 | CE114: 380.68 | CF114: 0.0026269 | CG114: 460.7 | CH114: 466.42 | CI114: 1.0307 | CJ114: 2.6867 | CK114: 4.7069 | CL114: 166.27 | CM114: 4.0136 | CN114: 5.1546e-05 | CO114: 0.072358 | CP114: 0.00066431 | CQ114: 101.72 | CR114: 0.0098304 | CS114: 564.04 | CT114: 585.47 | CU114: 1.2578 | CV114: 2.7138 | CW114: 4.8811 | CX114: 100.84 | CY114: 26.534 | CZ114: 1.5079e-05 | DA114: 0.041408
B115: 0.8156565666 | C115: =PsatSLEoS_rchain_Ttilde_VECTOR3($D$66,B115) -> 0.0006477439613 | D115: 0.7285341448 | E115: 0.008048271969 | F115: 124 | G115: 0.2003184617 | H115: 582.2931948 | I115: 6.432717027 | J115: 0.01043177143 | K115: 0.9442898684 | L115: 0.1897495949 | M115: 0.1897495949 | P115: 0.222 | Q115: 0.2221203017 | R115: -1.222416914 | S115: 1.138928056 | T115: 0.01019793794 | U115: 0.001466513697 | AQ115: 0.222 | AR115: 1.138928056 | AS115: 0.01019793794 | AT115: 0.001466513697 | BA115: 158.09 | BB115: 0.44377 | BC115: 551.77 | BD115: 0.0018123 | BE115: 161.19 | BF115: 161.99 | BG115: 0.40229 | BH115: 2.2923 | BI115: 2.8758 | BJ115: 597.35 | BK115: -0.037463 | BL115: 0.00012357 | BM115: 0.099126 | BN115: 0.00732 | BO115: 14.547 | BP115: 0.068741 | BQ115: 398.95 | BR115: 429.46 | BS115: 1.0225 | BT115: 2.215 | BU115: 2.3976 | BV115: 165.5 | BW115: 21.902 | BX115: 9.1648e-06 | BY115: 0.02482 | CC115: 251.64 | CD115: 2.2002 | CE115: 378.15 | CF115: 0.0026445 | CG115: 463.21 | CH115: 469.03 | CI115: 1.0356 | CJ115: 2.6904 | CK115: 4.7864 | CL115: 162.58 | CM115: 4.2014 | CN115: 5.0958e-05 | CO115: 0.072026 | CP115: 0.00063163 | CQ115: 103.54 | CR115: 0.0096582 | CS115: 564.72 | CT115: 585.97 | CU115: 1.2584 | CV115: 2.7179 | CW115: 4.9878 | CX115: 99.957 | CY115: 26.705 | CZ115: 1.5203e-05 | DA115: 0.041621
B116: 0.8197641158 | C116: =PsatSLEoS_rchain_Ttilde_VECTOR3($D$66,B116) -> 0.0006811807333 | D116: 0.7252873187 | E116: 0.008441091874 | F116: 126 | G116: 0.2106589714 | H116: 579.6981144 | I116: 6.746684957 | J116: 0.01096415852 | K116: 0.9420777846 | L116: 0.1991280332 | M116: 0.1991280332 | P116: 0.224 | Q116: 0.2242246884 | R116: -1.222425582 | S116: 1.13950548 | T116: 0.01022831649 | U116: 0.001335379505 | AQ116: 0.224 | AR116: 1.13950548 | AS116: 0.01022831649 | AT116: 0.001335379505 | BA116: 159.3 | BB116: 0.45509 | BC116: 550.35 | BD116: 0.001817 | BE116: 164.65 | BF116: 165.48 | BG116: 0.41031 | BH116: 2.2971 | BI116: 2.8831 | BJ116: 592.45 | BK116: -0.030278 | BL116: 0.00012247 | BM116: 0.098847 | BN116: 0.0072182 | BO116: 14.923 | BP116: 0.067013 | BQ116: 401.27 | BR116: 431.77 | BS116: 1.0261 | BT116: 2.2211 | BU116: 2.4062 | BV116: 165.2 | BW116: 21.802 | BX116: 9.2016e-06 | BY116: 0.024974 | CC116: 252.26 | CD116: 2.2202 | CE116: 375.56 | CF116: 0.0026627 | CG116: 465.73 | CH116: 471.65 | CI116: 1.0404 | CJ116: 2.6942 | CK116: 4.8723 | CL116: 158.9 | CM116: 4.4013 | CN116: 5.0366e-05 | CO116: 0.071688 | CP116: 0.00059953 | CQ116: 105.4 | CR116: 0.0094878 | CS116: 565.36 | CT116: 586.43 | CU116: 1.2589 | CV116: 2.7221 | CW116: 5.1021 | CX116: 99.07 | CY116: 26.877 | CZ116: 1.533e-05 | DA116: 0.041837
B117: 0.8238716649 | C117: =PsatSLEoS_rchain_Ttilde_VECTOR3($D$66,B117) -> 0.0007159341803 | D117: 0.7220163166 | E117: 0.008848853781 | F117: 128 | G117: 0.2214066703 | H117: 577.0837108 | I117: 7.072595534 | J117: 0.01151803665 | K117: 0.9398065109 | L117: 0.2088399724 | M117: 0.2088399723 | P117: 0.226 | Q117: 0.2263297514 | R117: -1.222439307 | S117: 1.140024026 | T117: 0.01025600481 | U117: 0.001202700214 | AQ117: 0.226 | AR117: 1.140024026 | AS117: 0.01025600481 | AT117: 0.001202700214 | BA117: 160.51 | BB117: 0.46662 | BC117: 548.92 | BD117: 0.0018217 | BE117: 168.12 | BF117: 168.97 | BG117: 0.41833 | BH117: 2.3019 | BI117: 2.8905 | BJ117: 587.54 | BK117: -0.022928 | BL117: 0.00012138 | BM117: 0.098567 | BN117: 0.0071168 | BO117: 15.306 | BP117: 0.065335 | BQ117: 403.59 | BR117: 434.08 | BS117: 1.0297 | BT117: 2.2272 | BU117: 2.415 | BV117: 164.9 | BW117: 21.705 | BX117: 9.2386e-06 | BY117: 0.025128 | CC117: 252.89 | CD117: 2.2402 | CE117: 372.92 | CF117: 0.0026815 | CG117: 468.26 | CH117: 474.26 | CI117: 1.0453 | CJ117: 2.698 | CK117: 4.9654 | CL117: 155.23 | CM117: 4.6143 | CN117: 4.9768e-05 | CO117: 0.071345 | CP117: 0.00056801 | CQ117: 107.3 | CR117: 0.0093193 | CS117: 565.98 | CT117: 586.86 | CU117: 1.2593 | CV117: 2.7262 | CW117: 5.2248 | CX117: 98.182 | CY117: 27.049 | CZ117: 1.5462e-05 | DA117: 0.042057
B118: 0.827979214 | C118: =PsatSLEoS_rchain_Ttilde_VECTOR3($D$66,B118) -> 0.000752038057 | D118: 0.7187208323 | E118: 0.009271979973 | F118: 130 | G118: 0.2325719971 | H118: 574.4497394 | I118: 7.410786275 | J118: 0.01209405917 | K118: 0.9374753072 | L118: 0.2188913623 | M118: 0.2188913623 | P118: 0.228 | Q118: 0.2284354543 | R118: -1.222457971 | S118: 1.140484719 | T118: 0.01028096893 | U118: 0.001068509227 | AQ118: 0.228 | AR118: 1.140484719 | AS118: 0.01028096893 | AT118: 0.001068509227 | BA118: 161.72 | BB118: 0.47838 | BC118: 547.49 | BD118: 0.0018265 | BE118: 171.6 | BF118: 172.47 | BG118: 0.42635 | BH118: 2.3067 | BI118: 2.898 | BJ118: 582.62 | BK118: -0.015407 | BL118: 0.0001203 | BM118: 0.098288 | BN118: 0.0070156 | BO118: 15.697 | BP118: 0.063705 | BQ118: 405.92 | BR118: 436.39 | BS118: 1.0332 | BT118: 2.2332 | BU118: 2.4238 | BV118: 164.59 | BW118: 21.611 | BX118: 9.276e-06 | BY118: 0.025283 | CC118: 253.5 | CD118: 2.2602 | CE118: 370.22 | CF118: 0.0027011 | CG118: 470.78 | CH118: 476.89 | CI118: 1.0502 | CJ118: 2.7018 | CK118: 5.0666 | CL118: 151.59 | CM118: 4.8416 | CN118: 4.9165e-05 | CO118: 0.070995 | CP118: 0.00053705 | CQ118: 109.26 | CR118: 0.0091524 | CS118: 566.57 | CT118: 587.25 | CU118: 1.2598 | CV118: 2.7303 | CW118: 5.3568 | CX118: 97.293 | CY118: 27.221 | CZ118: 1.5597e-05 | DA118: 0.04228
B119: 0.8320867631 | C119: =PsatSLEoS_rchain_Ttilde_VECTOR3($D$66,B119) -> 0.0007895263987 | D119: 0.7154005479 | E119: 0.009710903048 | F119: 132 | G119: 0.2441654776 | H119: 571.7959462 | I119: 7.76160294 | J119: 0.01269289571 | K119: 0.9350834317 | L119: 0.2292880469 | M119: 0.2292880468 | P119: 0.23 | Q119: 0.2305417609 | R119: -1.222481457 | S119: 1.14088856 | T119: 0.01030317485 | U119: 0.0009328402042 | AQ119: 0.23 | AR119: 1.14088856 | AS119: 0.01030317485 | AT119: 0.0009328402042 | BA119: 162.93 | BB119: 0.49036 | BC119: 546.04 | BD119: 0.0018314 | BE119: 175.09 | BF119: 175.98 | BG119: 0.43436 | BH119: 2.3115 | BI119: 2.9056 | BJ119: 577.7 | BK119: -0.0077094 | BL119: 0.00011923 | BM119: 0.098008 | BN119: 0.0069147 | BO119: 16.098 | BP119: 0.062121 | BQ119: 408.24 | BR119: 438.7 | BS119: 1.0368 | BT119: 2.2393 | BU119: 2.4327 | BV119: 164.26 | BW119: 21.521 | BX119: 9.3136e-06 | BY119: 0.025439 | CC119: 254.12 | CD119: 2.2802 | CE119: 367.46 | CF119: 0.0027214 | CG119: 473.32 | CH119: 479.52 | CI119: 1.0551 | CJ119: 2.7057 | CK119: 5.177 | CL119: 147.95 | CM119: 5.0844 | CN119: 4.8556e-05 | CO119: 0.070638 | CP119: 0.00050668 | CQ119: 111.27 | CR119: 0.0089871 | CS119: 567.13 | CT119: 587.62 | CU119: 1.2601 | CV119: 2.7345 | CW119: 5.4993 | CX119: 96.404 | CY119: 27.392 | CZ119: 1.5738e-05 | DA119: 0.042508
B120: 0.8361943122 | C120: =PsatSLEoS_rchain_Ttilde_VECTOR3($D$66,B120) -> 0.0008284335124 | D120: 0.7120551344 | E120: 0.01016606638 | F120: 134 | G120: 0.2561977212 | H120: 569.122068 | I120: 8.125399903 | J120: 0.01331523284 | K120: 0.9326301401 | L120: 0.2400357572 | M120: 0.240035757 | P120: 0.232 | Q120: 0.2326486347 | R120: =Gtilde_rchain_rhotilde_Ttilde_Ptilde($N$13,P120,$N$18,$N$19) -> -1.22250965 | S120: 1.141236527 | T120: 0.01032258857 | U120: 0.0007957270713 | AQ120: 0.232 | AR120: 1.141236527 | AS120: 0.01032258857 | AT120: 0.0007957270713 | BA120: 164.14 | BB120: 0.50256 | BC120: 544.58 | BD120: 0.0018363 | BE120: 178.58 | BF120: 179.5 | BG120: 0.44237 | BH120: 2.3163 | BI120: 2.9132 | BJ120: 572.76 | BK120: 0.00017261 | BL120: 0.00011816 | BM120: 0.097728 | BN120: 0.0068141 | BO120: 16.506 | BP120: 0.060582 | BQ120: 410.57 | BR120: 441.01 | BS120: 1.0404 | BT120: 2.2454 | BU120: 2.4417 | BV120: 163.93 | BW120: 21.433 | BX120: 9.3516e-06 | BY120: 0.025596 | CC120: 254.73 | CD120: 2.3002 | CE120: 364.63 | CF120: 0.0027425 | CG120: 475.86 | CH120: 482.17 | CI120: 1.06 | CJ120: 2.7096 | CK120: 5.2978 | CL120: 144.34 | CM120: 5.3441 | CN120: 4.794e-05 | CO120: 0.070274 | CP120: 0.00047687 | CQ120: 113.34 | CR120: 0.0088233 | CS120: 567.66 | CT120: 587.95 | CU120: 1.2604 | CV120: 2.7386 | CW120: 5.6535 | CX120: 95.513 | CY120: 27.562 | CZ120: 1.5883e-05 | DA120: 0.042741
B121: 0.8403018614 | C121: =PsatSLEoS_rchain_Ttilde_VECTOR3($D$66,B121) -> 0.0008687939674 | D121: 0.7086842501 | E121: 0.0106379246 | F121: 136 | G121: 0.2686794188 | H121: 566.4278319 | I121: 8.502540539 | J121: 0.01396177477 | K121: 0.930114685 | L121: 0.2511401053 | M121: 0.2511401051 | P121: 0.234 | Q121: 0.2347560397 | R121: -1.222542438 | S121: 1.141529577 | T121: 0.01033917608 | U121: 0.0006572040179 | AQ121: 0.234 | AR121: 1.141529577 | AS121: 0.01033917608 | AT121: 0.0006572040179 | BA121: 165.35 | BB121: 0.51499 | BC121: 543.12 | BD121: 0.0018412 | BE121: 182.09 | BF121: 183.03 | BG121: 0.45038 | BH121: 2.3212 | BI121: 2.9209 | BJ121: 567.82 | BK121: 0.0082458 | BL121: 0.00011711 | BM121: 0.097448 | BN121: 0.0067139 | BO121: 16.924 | BP121: 0.059087 | BQ121: 412.89 | BR121: 443.32 | BS121: 1.044 | BT121: 2.2515 | BU121: 2.4508 | BV121: 163.59 | BW121: 21.349 | BX121: 9.3899e-06 | BY121: 0.025753 | CC121: 255.33 | CD121: 2.3202 | CE121: 361.72 | CF121: 0.0027646 | CG121: 478.41 | CH121: 484.82 | CI121: 1.0649 | CJ121: 2.7136 | CK121: 5.4306 | CL121: 140.75 | CM121: 5.6222 | CN121: 4.7317e-05 | CO121: 0.069902 | CP121: 0.00044764 | CQ121: 115.46 | CR121: 0.008661 | CS121: 568.15 | CT121: 588.25 | CU121: 1.2606 | CV121: 2.7427 | CW121: 5.821 | CX121: 94.621 | CY121: 27.731 | CZ121: 1.6034e-05 | DA121: 0.042978
B122: 0.8444094105 | C122: =PsatSLEoS_rchain_Ttilde_VECTOR3($D$66,B122) -> 0.0009106425861 | D122: 0.7052875407 | E122: 0.01112694413 | F122: 138 | G122: 0.2816213394 | H122: 563.7129547 | I122: 8.893397644 | J122: 0.01463324411 | K122: 0.9275363144 | L122: 0.2626065778 | M122: 0.2626065774 | P122: 0.236 | Q122: 0.2368639397 | R122: -1.222579712 | S122: 1.141768643 | T122: 0.01035290334 | U122: 0.0005173055019 | AQ122: 0.236 | AR122: 1.141768643 | AS122: 0.01035290334 | AT122: 0.0005173055019 | BA122: 166.56 | BB122: 0.52765 | BC122: 541.65 | BD122: 0.0018462 | BE122: 185.6 | BF122: 186.57 | BG122: 0.45838 | BH122: 2.326 | BI122: 2.9286 | BJ122: 562.87 | BK122: 0.016518 | BL122: 0.00011606 | BM122: 0.097167 | BN122: 0.0066139 | BO122: 17.351 | BP122: 0.057633 | BQ122: 415.22 | BR122: 445.63 | BS122: 1.0475 | BT122: 2.2576 | BU122: 2.46 | BV122: 163.24 | BW122: 21.268 | BX122: 9.4286e-06 | BY122: 0.025911 | CC122: 255.93 | CD122: 2.3402 | CE122: 358.73 | CF122: 0.0027876 | CG122: 480.97 | CH122: 487.49 | CI122: 1.0699 | CJ122: 2.7176 | CK122: 5.5771 | CL122: 137.18 | CM122: 5.9204 | CN122: 4.6685e-05 | CO122: 0.069521 | CP122: 0.00041899 | CQ122: 117.65 | CR122: 0.0084999 | CS122: 568.62 | CT122: 588.51 | CU122: 1.2608 | CV122: 2.7468 | CW122: 6.0033 | CX122: 93.728 | CY122: 27.898 | CZ122: 1.6191e-05 | DA122: 0.043221
B123: 0.8485169596 | C123: =PsatSLEoS_rchain_Ttilde_VECTOR3($D$66,B123) -> 0.0009540144336 | D123: 0.7018646384 | E123: 0.01163360373 | F123: 140 | G123: 0.2950343271 | H123: 560.9771423 | I123: 9.298353872 | J123: 0.0153303826 | K123: 0.9248942709 | L123: 0.2744405289 | M123: 0.2744405283 | P123: 0.238 | Q123: 0.2389722986 | R123: -1.222621366 | S123: 1.14195464 | T123: 0.01036373629 | U123: 0.0003760662523 | AQ123: 0.238 | AR123: 1.14195464 | AS123: 0.01036373629 | AT123: 0.0003760662523 | BA123: 167.77 | BB123: 0.54055 | BC123: 540.16 | BD123: 0.0018513 | BE123: 189.12 | BF123: 190.12 | BG123: 0.46638 | BH123: 2.3308 | BI123: 2.9364 | BJ123: 557.9 | BK123: 0.024996 | BL123: 0.00011503 | BM123: 0.096886 | BN123: 0.0065143 | BO123: 17.787 | BP123: 0.05622 | BQ123: 417.55 | BR123: 447.94 | BS123: 1.0511 | BT123: 2.2637 | BU123: 2.4693 | BV123: 162.87 | BW123: 21.19 | BX123: 9.4676e-06 | BY123: 0.026071 | CC123: 256.53 | CD123: 2.3602 | CE123: 355.66 | CF123: 0.0028117 | CG123: 483.54 | CH123: 490.18 | CI123: 1.0748 | CJ123: 2.7217 | CK123: 5.7396 | CL123: 133.63 | CM123: 6.2406 | CN123: 4.6045e-05 | CO123: 0.069131 | CP123: 0.00039092 | CQ123: 119.9 | CR123: 0.00834 | CS123: 569.05 | CT123: 588.73 | CU123: 1.2609 | CV123: 2.7509 | CW123: 6.2028 | CX123: 92.834 | CY123: 28.063 | CZ123: 1.6353e-05 | DA123: 0.043469
B124: 0.8526245087 | C124: =PsatSLEoS_rchain_Ttilde_VECTOR3($D$66,B124) -> 0.0009989448154 | D124: 0.6984151618 | E124: 0.01215839518 | F124: 142 | G124: 0.3089293003 | H124: 558.22009 | I124: 9.717802276 | J124: 0.01605395214 | K124: 0.9221877902 | L124: 0.2866471768 | M124: 0.2866471759 | P124: 0.24 | Q124: 0.2410810805 | R124: -1.222667293 | S124: 1.142088459 | T124: 0.01037164085 | U124: 0.0002335212718 | AQ124: 0.24 | AR124: 1.142088459 | AS124: 0.01037164085 | AT124: 0.0002335212718 | BA124: 168.98 | BB124: 0.55368 | BC124: 538.67 | BD124: 0.0018564 | BE124: 192.65 | BF124: 193.68 | BG124: 0.47438 | BH124: 2.3356 | BI124: 2.9443 | BJ124: 552.93 | BK124: 0.033689 | BL124: 0.000114 | BM124: 0.096605 | BN124: 0.0064149 | BO124: 18.233 | BP124: 0.054846 | BQ124: 419.88 | BR124: 450.24 | BS124: 1.0547 | BT124: 2.2698 | BU124: 2.4787 | BV124: 162.5 | BW124: 21.116 | BX124: 9.507e-06 | BY124: 0.026231 | CC124: 257.12 | CD124: 2.3802 | CE124: 352.49 | CF124: 0.002837 | CG124: 486.13 | CH124: 492.88 | CI124: 1.0798 | CJ124: 2.7259 | CK124: 5.9205 | CL124: 130.12 | CM124: 6.5848 | CN124: 4.5395e-05 | CO124: 0.068731 | CP124: 0.00036344 | CQ124: 122.23 | CR124: 0.0081812 | CS124: 569.44 | CT124: 588.92 | CU124: 1.2609 | CV124: 2.7551 | CW124: 6.4218 | CX124: 91.938 | CY124: 28.225 | CZ124: 1.6523e-05 | DA124: 0.043724
B125: 0.8567320578 | C125: =PsatSLEoS_rchain_Ttilde_VECTOR3($D$66,B125) -> 0.001045469258 | D125: 0.6949387144 | E125: 0.01270182374 | F125: 144 | G125: 0.3233172457 | H125: 555.4414808 | I125: 10.15214672 | J125: 0.01680473546 | K125: 0.9194161007 | L125: 0.2992315947 | M125: 0.2992315932 | P125: 0.242 | Q125: 0.2431902497 | R125: -1.222717392 | S125: 1.142170973 | T125: 0.0103765829 | U125: 8.970583989e-05 | AQ125: 0.242 | AR125: 1.142170973 | AS125: 0.0103765829 | AT125: 8.970583989e-05 | BA125: 170.19 | BB125: 0.56705 | BC125: 537.17 | BD125: 0.0018616 | BE125: 196.19 | BF125: 197.24 | BG125: 0.48238 | BH125: 2.3404 | BI125: 2.9523 | BJ125: 547.95 | BK125: 0.042605 | BL125: 0.00011297 | BM125: 0.096323 | BN125: 0.0063159 | BO125: 18.688 | BP125: 0.05351 | BQ125: 422.21 | BR125: 452.55 | BS125: 1.0583 | BT125: 2.2759 | BU125: 2.4882 | BV125: 162.12 | BW125: 21.044 | BX125: 9.5468e-06 | BY125: 0.026392 | CC125: 257.71 | CD125: 2.4002 | CE125: 349.22 | CF125: 0.0028635 | CG125: 488.73 | CH125: 495.61 | CI125: 1.0849 | CJ125: 2.7302 | CK125: 6.123 | CL125: 126.63 | CM125: 6.9551 | CN125: 4.4735e-05 | CO125: 0.068321 | CP125: 0.00033655 | CQ125: 124.64 | CR125: 0.0080233 | CS125: 569.8 | CT125: 589.06 | CU125: 1.2609 | CV125: 2.7592 | CW125: 6.6633 | CX125: 91.041 | CY125: 28.385 | CZ125: 1.6699e-05 | DA125: 0.043985
B126: 0.860839607 | C126: =PsatSLEoS_rchain_Ttilde_VECTOR3($D$66,B126) -> 0.001093623507 | D126: 0.6914348845 | E126: 0.01326440901 | F126: 146 | G126: 0.3382092179 | H126: 552.6409857 | I126: 10.60180248 | J126: 0.01758353729 | K126: 0.9165784216 | L126: 0.3121987069 | M126: 0.3121987046 | P126: 0.244 | Q126: 0.2452997703 | R126: -1.222771561 | S126: 1.142203036 | T126: 0.01037852828 | U126: -5.534448427e-05 | AQ126: 0.244 | AR126: 1.142203036 | AS126: 0.01037852828 | AT126: -5.534448427e-05 | BA126: 171.4 | BB126: 0.58066 | BC126: 535.65 | BD126: 0.0018669 | BE126: 199.73 | BF126: 200.82 | BG126: 0.49037 | BH126: 2.3452 | BI126: 2.9603 | BJ126: 542.95 | BK126: 0.051754 | BL126: 0.00011196 | BM126: 0.096041 | BN126: 0.0062172 | BO126: 19.153 | BP126: 0.05221 | BQ126: 424.54 | BR126: 454.85 | BS126: 1.0618 | BT126: 2.282 | BU126: 2.4977 | BV126: 161.73 | BW126: 20.976 | BX126: 9.5869e-06 | BY126: 0.026553 | CC126: 258.29 | CD126: 2.4202 | CE126: 345.84 | CF126: 0.0028915 | CG126: 491.36 | CH126: 498.36 | CI126: 1.0899 | CJ126: 2.7345 | CK126: 6.351 | CL126: 123.17 | CM126: 7.3541 | CN126: 4.4063e-05 | CO126: 0.067898 | CP126: 0.00031026 | CQ126: 127.12 | CR126: 0.0078663 | CS126: 570.13 | CT126: 589.16 | CU126: 1.2608 | CV126: 2.7633 | CW126: 6.9312 | CX126: 90.142 | CY126: 28.542 | CZ126: 1.6884e-05 | DA126: 0.044254
B127: 0.8649471561 | C127: =PsatSLEoS_rchain_Ttilde_VECTOR3($D$66,B127) -> 0.001143443517 | D127: 0.6879032444 | E127: 0.01384668559 | F127: 148 | G127: 0.3536163362 | H127: 549.8182628 | I127: 11.06719685 | J127: 0.01839118536 | K127: 0.9136739615 | L127: 0.3255532835 | M127: 0.3255532801 | P127: 0.246 | Q127: 0.2474096067 | R127: -1.222829703 | S127: 1.142185482 | T127: 0.01037744279 | U127: -0.000201593859 | AQ127: 0.246 | AR127: 1.142185482 | AS127: 0.01037744279 | AT127: -0.000201593859 | BA127: 172.61 | BB127: 0.59451 | BC127: 534.13 | BD127: 0.0018722 | BE127: 203.29 | BF127: 204.4 | BG127: 0.49837 | BH127: 2.35 | BI127: 2.9684 | BJ127: 537.95 | BK127: 0.061145 | BL127: 0.00011095 | BM127: 0.095758 | BN127: 0.0061188 | BO127: 19.629 | BP127: 0.050946 | BQ127: 426.87 | BR127: 457.15 | BS127: 1.0654 | BT127: 2.2881 | BU127: 2.5075 | BV127: 161.33 | BW127: 20.911 | BX127: 9.6275e-06 | BY127: 0.026716 | CC127: 258.87 | CD127: 2.4402 | CE127: 342.34 | CF127: 0.0029211 | CG127: 494.01 | CH127: 501.13 | CI127: 1.095 | CJ127: 2.7389 | CK127: 6.6091 | CL127: 119.76 | CM127: 7.7843 | CN127: 4.3379e-05 | CO127: 0.067463 | CP127: 0.00028457 | CQ127: 129.7 | CR127: 0.00771 | CS127: 570.41 | CT127: 589.22 | CU127: 1.2606 | CV127: 2.7674 | CW127: 7.2299 | CX127: 89.241 | CY127: 28.694 | CZ127: 1.7077e-05 | DA127: 0.04453
B128: 0.8690547052 | C128: =PsatSLEoS_rchain_Ttilde_VECTOR3($D$66,B128) -> 0.001194961031 | D128: 0.6843433422 | E128: 0.01444920267 | F128: 150 | G128: 0.3695484171 | H128: 546.972951 | I128: 11.54876877 | J128: 0.0192284607 | K128: 0.910698629 | L128: 0.3392999104 | M128: 0.3392999063 | P128: 0.248 | Q128: 0.2495197232 | R128: -1.222891721 | S128: 1.142119129 | T128: 0.01037329218 | U128: -0.0003490061571 | AQ128: 0.248 | AR128: 1.142119129 | AS128: 0.01037329218 | AT128: -0.0003490061571 | BA128: 173.82 | BB128: 0.60862 | BC128: 532.59 | BD128: 0.0018776 | BE128: 206.85 | BF128: 207.99 | BG128: 0.50636 | BH128: 2.3548 | BI128: 2.9767 | BJ128: 532.93 | BK128: 0.070788 | BL128: 0.00010995 | BM128: 0.095475 | BN128: 0.0060208 | BO128: 20.114 | BP128: 0.049715 | BQ128: 429.2 | BR128: 459.45 | BS128: 1.0689 | BT128: 2.2942 | BU128: 2.5173 | BV128: 160.91 | BW128: 20.849 | BX128: 9.6685e-06 | BY128: 0.02688 | CC128: 259.45 | CD128: 2.4602 | CE128: 338.71 | CF128: 0.0029524 | CG128: 496.68 | CH128: 503.95 | CI128: 1.1002 | CJ128: 2.7435 | CK128: 6.9034 | CL128: 116.39 | CM128: 8.2485 | CN128: 4.2681e-05 | CO128: 0.067015 | CP128: 0.0002595 | CQ128: 132.38 | CR128: 0.0075542 | CS128: 570.64 | CT128: 589.23 | CU128: 1.2603 | CV128: 2.7715 | CW128: 7.5652 | CX128: 88.336 | CY128: 28.842 | CZ128: 1.7279e-05 | DA128: 0.044816
B129: 0.8731622543 | C129: =PsatSLEoS_rchain_Ttilde_VECTOR3($D$66,B129) -> 0.001248220305 | D129: 0.6807547283 | E129: 0.01507252934 | F129: 152 | G129: 0.3860191469 | H129: 544.1046909 | I129: 12.04697313 | J129: 0.02009636735 | K129: 0.9076576857 | L129: 0.3534430748 | M129: 0.3534430687 | P129: 0.25 | Q129: 0.2516300845 | R129: -1.22295752 | S129: 1.142004773 | T129: 0.01036604217 | U129: -0.0004975449625 | AQ129: 0.25 | AR129: 1.142004773 | AS129: 0.01036604217 | AT129: -0.0004975449625 | BA129: 175.03 | BB129: 0.62297 | BC129: 531.05 | BD129: 0.0018831 | BE129: 210.42 | BF129: 211.6 | BG129: 0.51435 | BH129: 2.3596 | BI129: 2.985 | BJ129: 527.9 | BK129: 0.080694 | BL129: 0.00010896 | BM129: 0.095191 | BN129: 0.005923 | BO129: 20.611 | BP129: 0.048518 | BQ129: 431.53 | BR129: 461.75 | BS129: 1.0725 | BT129: 2.3003 | BU129: 2.5272 | BV129: 160.49 | BW129: 20.79 | BX129: 9.7099e-06 | BY129: 0.027044 | CC129: 260.02 | CD129: 2.4802 | CE129: 334.93 | CF129: 0.0029857 | CG129: 499.39 | CH129: 506.79 | CI129: 1.1054 | CJ129: 2.7481 | CK129: 7.2413 | CL129: 113.06 | CM129: 8.75 | CN129: 4.1969e-05 | CO129: 0.066551 | CP129: 0.00023507 | CQ129: 135.16 | CR129: 0.0073987 | CS129: 570.84 | CT129: 589.19 | CU129: 1.26 | CV129: 2.7756 | CW129: 7.9443 | CX129: 87.429 | CY129: 28.985 | CZ129: 1.7492e-05 | DA129: 0.045111
B130: 0.8772698034 | C130: =PsatSLEoS_rchain_Ttilde_VECTOR3($D$66,B130) -> 0.001303254204 | D130: 0.6771369158 | E130: 0.01571724921 | F130: 154 | G130: 0.4030386896 | H130: 541.2130933 | I130: 12.56227635 | J130: 0.02099575037 | K130: 0.904547447 | L130: 0.3679870331 | M130: 0.367987024 | P130: 0.252 | Q130: 0.2537406551 | R130: -1.223027008 | S130: 1.141843197 | T130: 0.01035565839 | U130: -0.0006471735677 | AQ130: 0.252 | AR130: 1.141843197 | AS130: 0.01035565839 | AT130: -0.0006471735677 | BA130: 176.24 | BB130: 0.63758 | BC130: 529.49 | BD130: 0.0018886 | BE130: 214.01 | BF130: 215.21 | BG130: 0.52234 | BH130: 2.3644 | BI130: 2.9934 | BJ130: 522.87 | BK130: 0.090874 | BL130: 0.00010798 | BM130: 0.094907 | BN130: 0.0058256 | BO130: 21.118 | BP130: 0.047353 | BQ130: 433.86 | BR130: 464.05 | BS130: 1.0761 | BT130: 2.3064 | BU130: 2.5373 | BV130: 160.05 | BW130: 20.734 | BX130: 9.7517e-06 | BY130: 0.02721 | CC130: 260.59 | CD130: 2.5002 | CE130: 331 | CF130: 0.0030211 | CG130: 502.13 | CH130: 509.69 | CI130: 1.1108 | CJ130: 2.7529 | CK130: 7.6326 | CL130: 109.79 | CM130: 9.2921 | CN130: 4.1239e-05 | CO130: 0.066072 | CP130: 0.00021127 | CQ130: 138.06 | CR130: 0.0072434 | CS130: 570.98 | CT130: 589.09 | CU130: 1.2595 | CV130: 2.7797 | CW130: 8.3766 | CX130: 86.518 | CY130: 29.123 | CZ130: 1.7716e-05 | DA130: 0.045416
B131: 0.8813773526 | C131: =PsatSLEoS_rchain_Ttilde_VECTOR3($D$66,B131) -> 0.001360099408 | D131: 0.6734894041 | E131: 0.01638396533 | F131: 156 | G131: 0.4206183887 | H131: 538.297758 | I131: 13.09516045 | J131: 0.02192754117 | K131: 0.9013670586 | L131: 0.3829358861 | M131: 0.3829358728 | P131: 0.254 | Q131: 0.2558513998 | R131: -1.223100093 | S131: 1.141635165 | T131: 0.01034210644 | U131: -0.0007978549701 | AQ131: 0.254 | AR131: 1.141635165 | AS131: 0.01034210644 | AT131: -0.0007978549701 | BA131: 177.45 | BB131: 0.65245 | BC131: 527.92 | BD131: 0.0018942 | BE131: 217.6 | BF131: 218.83 | BG131: 0.53033 | BH131: 2.3692 | BI131: 3.0019 | BJ131: 517.82 | BK131: 0.10134 | BL131: 0.000107 | BM131: 0.094622 | BN131: 0.0057286 | BO131: 21.637 | BP131: 0.046218 | BQ131: 436.19 | BR131: 466.34 | BS131: 1.0796 | BT131: 2.3125 | BU131: 2.5475 | BV131: 159.6 | BW131: 20.682 | BX131: 9.794e-06 | BY131: 0.027376 | CC131: 261.16 | CD131: 2.5202 | CE131: 326.9 | CF131: 0.0030591 | CG131: 504.92 | CH131: 512.62 | CI131: 1.1161 | CJ131: 2.7577 | CK131: 8.0897 | CL131: 106.58 | CM131: 9.8783 | CN131: 4.0493e-05 | CO131: 0.065574 | CP131: 0.00018815 | CQ131: 141.08 | CR131: 0.007088 | CS131: 571.07 | CT131: 588.94 | CU131: 1.259 | CV131: 2.7838 | CW131: 8.8743 | CX131: 85.602 | CY131: 29.253 | CZ131: 1.7953e-05 | DA131: 0.045734
B132: 0.8854849017 | C132: =PsatSLEoS_rchain_Ttilde_VECTOR3($D$66,B132) -> 0.001418792761 | D132: 0.6698116717 | E132: 0.01707330027 | F132: 158 | G132: 0.438769638 | H132: 535.3582684 | I132: 13.64612301 | J132: 0.0228927007 | K132: 0.8981156476 | L132: 0.3982935562 | M132: 0.3982935367 | P132: 0.256 | Q132: 0.2579622833 | R132: -1.223176686 | S132: 1.141381425 | T132: 0.01032535185 | U132: -0.0009495518694 | AQ132: 0.256 | AR132: 1.141381425 | AS132: 0.01032535185 | AT132: -0.0009495518694 | BA132: 178.66 | BB132: 0.66757 | BC132: 526.34 | BD132: 0.0018999 | BE132: 221.2 | BF132: 222.47 | BG132: 0.53831 | BH132: 2.3741 | BI132: 3.0105 | BJ132: 512.75 | BK132: 0.1121 | BL132: 0.00010602 | BM132: 0.094336 | BN132: 0.0056318 | BO132: 22.166 | BP132: 0.045113 | BQ132: 438.51 | BR132: 468.63 | BS132: 1.0832 | BT132: 2.3187 | BU132: 2.5579 | BV132: 159.14 | BW132: 20.632 | BX132: 9.8368e-06 | BY132: 0.027544 | CC132: 261.72 | CD132: 2.5402 | CE132: 322.6 | CF132: 0.0030998 | CG132: 507.75 | CH132: 515.62 | CI132: 1.1216 | CJ132: 2.7627 | CK132: 8.6293 | CL132: 103.44 | CM132: 10.513 | CN132: 3.9726e-05 | CO132: 0.065057 | CP132: 0.00016571 | CQ132: 144.25 | CR132: 0.0069323 | CS132: 571.11 | CT132: 588.72 | CU132: 1.2583 | CV132: 2.7879 | CW132: 9.454 | CX132: 84.681 | CY132: 29.376 | CZ132: 1.8204e-05 | DA132: 0.046065
B133: 0.8895924508 | C133: =PsatSLEoS_rchain_Ttilde_VECTOR3($D$66,B133) -> 0.001479371302 | D133: 0.6661031782 | E133: 0.01778589779 | F133: 160 | G133: 0.4575038922 | H133: 532.3941925 | I133: 14.21567859 | J133: 0.02389222152 | K133: 0.8947923168 | L133: 0.4140637925 | M133: 0.4140637645 | P133: 0.258 | Q133: 0.2600732706 | R133: -1.223256701 | S133: 1.141082708 | T133: 0.01030536007 | U133: -0.001102226664 | AQ133: 0.258 | AR133: 1.141082708 | AS133: 0.01030536007 | AT133: -0.001102226664 | BA133: 179.87 | BB133: 0.68296 | BC133: 524.75 | BD133: 0.0019057 | BE133: 224.81 | BF133: 226.11 | BG133: 0.5463 | BH133: 2.3789 | BI133: 3.0192 | BJ133: 507.68 | BK133: 0.12318 | BL133: 0.00010506 | BM133: 0.09405 | BN133: 0.0055354 | BO133: 22.708 | BP133: 0.044037 | BQ133: 440.84 | BR133: 470.92 | BS133: 1.0867 | BT133: 2.3248 | BU133: 2.5684 | BV133: 158.67 | BW133: 20.586 | BX133: 9.88e-06 | BY133: 0.027712 | CC133: 262.28 | CD133: 2.5602 | CE133: 318.09 | CF133: 0.0031438 | CG133: 510.63 | CH133: 518.68 | CI133: 1.1272 | CJ133: 2.7678 | CK133: 9.2743 | CL133: 100.38 | CM133: 11.199 | CN133: 3.8939e-05 | CO133: 0.064519 | CP133: 0.00014399 | CQ133: 147.58 | CR133: 0.0067758 | CS133: 571.08 | CT133: 588.43 | CU133: 1.2575 | CV133: 2.792 | CW133: 10.138 | CX133: 83.753 | CY133: 29.49 | CZ133: 1.8472e-05 | DA133: 0.046411
B134: =(F134+273.15)/$D$63 -> 0.8936999999 | C134: =PsatSLEoS_rchain_Ttilde_VECTOR3($D$66,B134) -> 0.001541872057 | D134: 0.6623633491 | E134: 0.01852242134 | F134: 162 | G134: =C134*$D$64 -> 0.476832602 | H134: =D134*$D$65 -> 529.4050711 | I134: =E134*$D$65 -> 14.80435745 | J134: =C134/D134/B134*$D$66 -> 0.02492712688 | K134: =C134/E134/B134*$D$66 -> 0.8913961593 | L134: =C134*$D$64*EXP(lnPhiSLEoS_rchain_rhotilde_Ttilde_Ptilde($D$66,D134,B134,C134)) -> 0.4302501179 | M134: =C134*$D$64*EXP(lnPhiSLEoS_rchain_rhotilde_Ttilde_Ptilde($D$66,E134,B134,C134)) -> 0.4302500777 | P134: 0.26 | Q134: =hrho_rchain_rhotilde_Ttilde_Ptilde($N$13,P134,$N$18,$N$19) -> 0.2621843266 | R134: -1.22334005 | S134: =TSpinodalSLEoS_rchain_rhotilde($N$13,P134) -> 1.140739731 | T134: =PSpinodalSLEoS_rchain_rhotilde($N$13,P134) -> 0.01028209651 | U134: =Ptilde_rchain_rhotilde_Ttilde($N$13,P134,$N$18) -> -0.001255841447 | AQ134: 0.26 | AR134: =TSpinodalSLEoS_rchain_rhotilde($H$13,AQ134) -> 1.140739731 | AS134: =PSpinodalSLEoS_rchain_rhotilde($H$13,AQ134) -> 0.01028209651 | AT134: =Ptilde_rchain_rhotilde_Ttilde($H$13,AQ134,$H$16) -> -0.001255841447 | BA134: 181.08 | BB134: 0.69861 | BC134: 523.14 | BD134: 0.0019115 | BE134: 228.42 | BF134: 229.76 | BG134: 0.55428 | BH134: 2.3837 | BI134: 3.028 | BJ134: 502.59 | BK134: 0.13458 | BL134: 0.0001041 | BM134: 0.093763 | BN134: 0.0054394 | BO134: 23.262 | BP134: 0.042989 | BQ134: 443.17 | BR134: 473.21 | BS134: 1.0902 | BT134: 2.3309 | BU134: 2.5791 | BV134: 158.19 | BW134: 20.544 | BX134: 9.9238e-06 | BY134: 0.027882 | CC134: 262.84 | CD134: 2.5802 | CE134: 313.34 | CF134: 0.0031914 | CG134: 513.58 | CH134: 521.81 | CI134: 1.133 | CJ134: 2.773 | CK134: 10.056 | CL134: 97.394 | CM134: 11.943 | CN134: 3.8127e-05 | CO134: 0.063957 | CP134: 0.00012302 | CQ134: 151.1 | CR134: 0.0066183 | CS134: 570.99 | CT134: 588.06 | CU134: 1.2566 | CV134: 2.7961 | CW134: 10.959 | CX134: 82.818 | CY134: 29.593 | CZ134: 1.8758e-05 | DA134: 0.046774
B135: 0.897807549 | C135: =PsatSLEoS_rchain_Ttilde_VECTOR3($D$66,B135) -> 0.00160633243 | D135: 0.6585916023 | E135: 0.01928356072 | F135: 164 | G135: 0.4967673349 | H135: 526.3904389 | I135: 15.41271094 | J135: 0.02599847796 | K135: 0.887926224 | L135: 0.446855924 | M135: 0.4468558668 | P135: 0.262 | Q135: 0.2642954164 | R135: -1.223426651 | S135: 1.140353196 | T135: 0.01025552648 | U135: -0.001410358005 | AQ135: 0.262 | AR135: 1.140353196 | AS135: 0.01025552648 | AT135: -0.001410358005 | BA135: 182.29 | BB135: 0.71453 | BC135: 521.53 | BD135: 0.0019174 | BE135: 232.05 | BF135: 233.42 | BG135: 0.56227 | BH135: 2.3885 | BI135: 3.0369 | BJ135: 497.49 | BK135: 0.14633 | BL135: 0.00010315 | BM135: 0.093475 | BN135: 0.0053437 | BO135: 23.827 | BP135: 0.041968 | BQ135: 445.5 | BR135: 475.49 | BS135: 1.0938 | BT135: 2.3371 | BU135: 2.5899 | BV135: 157.7 | BW135: 20.504 | BX135: 9.9681e-06 | BY135: 0.028053 | CC135: 263.39 | CD135: 2.6002 | CE135: 308.33 | CF135: 0.0032433 | CG135: 516.6 | CH135: 525.03 | CI135: 1.1388 | CJ135: 2.7784 | CK135: 11.021 | CL135: 94.502 | CM135: 12.749 | CN135: 3.729e-05 | CO135: 0.063368 | CP135: 0.00010286 | CQ135: 154.82 | CR135: 0.0064591 | CS135: 570.81 | CT135: 587.61 | CU135: 1.2555 | CV135: 2.8001 | CW135: 11.962 | CX135: 81.874 | CY135: 29.682 | CZ135: 1.9067e-05 | DA135: 0.047158
B136: 0.9019150982 | C136: =PsatSLEoS_rchain_Ttilde_VECTOR3($D$66,B136) -> 0.001672789798 | D136: 0.6547873189 | E136: 0.02007002809 | F136: 166 | G136: 0.5173196497 | H136: 523.3498012 | I136: 16.04130824 | J136: 0.02710737051 | K136: 0.8843815454 | L136: 0.4638843688 | M136: 0.463884288 | P136: 0.264 | Q136: 0.2664065052 | R136: -1.22351642 | S136: 1.139923788 | T136: 0.01022561523 | U136: -0.001565737813 | AQ136: 0.264 | AR136: 1.139923788 | AS136: 0.01022561523 | AT136: -0.001565737813 | BA136: 183.5 | BB136: 0.73072 | BC136: 519.9 | BD136: 0.0019235 | BE136: 235.69 | BF136: 237.09 | BG136: 0.57025 | BH136: 2.3933 | BI136: 3.046 | BJ136: 492.37 | BK136: 0.15843 | BL136: 0.0001022 | BM136: 0.093186 | BN136: 0.0052483 | BO136: 24.406 | BP136: 0.040974 | BQ136: 447.83 | BR136: 477.77 | BS136: 1.0973 | BT136: 2.3432 | BU136: 2.6009 | BV136: 157.19 | BW136: 20.468 | BX136: 1.0013e-05 | BY136: 0.028224 | CC136: 263.94 | CD136: 2.6202 | CE136: 303 | CF136: 0.0033003 | CG136: 519.71 | CH136: 528.35 | CI136: 1.1449 | CJ136: 2.7839 | CK136: 12.239 | CL136: 91.707 | CM136: 13.624 | CN136: 3.6422e-05 | CO136: 0.06275 | CP136: 8.3566e-05 | CQ136: 158.79 | CR136: 0.0062977 | CS136: 570.55 | CT136: 587.05 | CU136: 1.2542 | CV136: 2.8042 | CW136: 13.219 | CX136: 80.92 | CY136: 29.756 | CZ136: 1.94e-05 | DA136: 0.047566
B137: 0.9060226473 | C137: =PsatSLEoS_rchain_Ttilde_VECTOR3($D$66,B137) -> 0.00174128218 | D137: 0.6509498564 | E137: 0.02088256879 | F137: 168 | G137: 0.5385013037 | H137: 520.2826446 | I137: 16.69074509 | J137: 0.02825494747 | K137: 0.8807610874 | L137: 0.4813384266 | M137: 0.4813384266 | P137: 0.266 | Q137: 0.2685175584 | R137: -1.223609276 | S137: 1.13945218 | T137: 0.0101923279 | U137: -0.001721942032 | AQ137: 0.266 | AR137: 1.13945218 | AS137: 0.0101923279 | AT137: -0.001721942032 | BA137: 184.71 | BB137: 0.74719 | BC137: 518.25 | BD137: 0.0019296 | BE137: 239.33 | BF137: 240.78 | BG137: 0.57824 | BH137: 2.3981 | BI137: 3.0552 | BJ137: 487.24 | BK137: 0.1709 | BL137: 0.00010126 | BM137: 0.092897 | BN137: 0.0051533 | BO137: 24.997 | BP137: 0.040004 | BQ137: 450.15 | BR137: 480.04 | BS137: 1.1008 | BT137: 2.3493 | BU137: 2.6121 | BV137: 156.67 | BW137: 20.435 | BX137: 1.0058e-05 | BY137: 0.028397 | CC137: 264.49 | CD137: 2.6402 | CE137: 297.33 | CF137: 0.0033633 | CG137: 522.92 | CH137: 531.8 | CI137: 1.1512 | CJ137: 2.7895 | CK137: 13.819 | CL137: 89.018 | CM137: 14.575 | CN137: 3.5521e-05 | CO137: 0.062097 | CP137: 6.5219e-05 | CQ137: 163.05 | CR137: 0.006133 | CS137: 570.18 | CT137: 586.37 | CU137: 1.2527 | CV137: 2.8082 | CW137: 14.842 | CX137: 79.953 | CY137: 29.809 | CZ137: 1.9765e-05 | DA137: 0.048002
B138: 0.9101301964 | C138: =PsatSLEoS_rchain_Ttilde_VECTOR3($D$66,B138) -> 0.00181184646 | D138: 0.6470785411 | E138: 0.02172193853 | F138: 170 | G138: 0.5603237042 | H138: 517.1884306 | I138: 17.36162549 | J138: 0.02944237286 | K138: 0.8770638795 | L138: 0.499220862 | M138: 0.499220862 | P138: 0.268 | Q138: 0.2706285413 | R138: -1.223705139 | S138: 1.138939031 | T138: 0.01015562959 | U138: -0.001878931503 | AQ138: 0.268 | AR138: 1.138939031 | AS138: 0.01015562959 | AT138: -0.001878931503 | BA138: 185.92 | BB138: 0.76393 | BC138: 516.59 | BD138: 0.0019358 | BE138: 242.99 | BF138: 244.47 | BG138: 0.58622 | BH138: 2.4029 | BI138: 3.0645 | BJ138: 482.09 | BK138: 0.18376 | BL138: 0.00010032 | BM138: 0.092607 | BN138: 0.0050587 | BO138: 25.602 | BP138: 0.03906 | BQ138: 452.48 | BR138: 482.31 | BS138: 1.1043 | BT138: 2.3555 | BU138: 2.6235 | BV138: 156.14 | BW138: 20.406 | BX138: 1.0104e-05 | BY138: 0.028571 | CC138: 265.03 | CD138: 2.6602 | CE138: 291.23 | CF138: 0.0034337 | CG138: 526.26 | CH138: 535.39 | CI138: 1.1577 | CJ138: 2.7953 | CK138: 15.949 | CL138: 86.437 | CM138: 15.614 | CN138: 3.458e-05 | CO138: 0.061404 | CP138: 4.7943e-05 | CQ138: 167.68 | CR138: 0.0059638 | CS138: 569.68 | CT138: 585.54 | CU138: 1.2509 | CV138: 2.8122 | CW138: 17.023 | CX138: 78.973 | CY138: 29.834 | CZ138: 2.0169e-05 | DA138: 0.048474
B139: 0.9142377455 | C139: =PsatSLEoS_rchain_Ttilde_VECTOR3($D$66,B139) -> 0.001884520756 | D139: 0.6431726711 | E139: 0.02258893787 | F139: 172 | G139: 0.5827986387 | H139: 514.0665982 | I139: 18.05458933 | J139: 0.03067087263 | K139: 0.873288828 | L139: 0.5175342448 | M139: 0.5175342448 | P139: 0.27 | Q139: 0.2727394194 | R139: -1.223803932 | S139: 1.138384984 | T139: 0.01011548527 | U139: -0.002036666749 | AQ139: 0.27 | AR139: 1.138384984 | AS139: 0.01011548527 | AT139: -0.002036666749 | BA139: 187.13 | BB139: 0.78096 | BC139: 514.92 | BD139: 0.001942 | BE139: 246.66 | BF139: 248.17 | BG139: 0.59421 | BH139: 2.4078 | BI139: 3.074 | BJ139: 476.94 | BK139: 0.19704 | BL139: 9.939e-05 | BM139: 0.092315 | BN139: 0.0049644 | BO139: 26.22 | BP139: 0.038139 | BQ139: 454.8 | BR139: 484.58 | BS139: 1.1078 | BT139: 2.3617 | BU139: 2.635 | BV139: 155.6 | BW139: 20.38 | BX139: 1.0151e-05 | BY139: 0.028746 | CC139: 265.57 | CD139: 2.6802 | CE139: 284.62 | CF139: 0.0035134 | CG139: 529.76 | CH139: 539.17 | CI139: 1.1646 | CJ139: 2.8011 | CK139: 18.976 | CL139: 83.968 | CM139: 16.756 | CN139: 3.3589e-05 | CO139: 0.060661 | CP139: 3.1919e-05 | CQ139: 172.76 | CR139: 0.0057883 | CS139: 569.01 | CT139: 584.53 | CU139: 1.2488 | CV139: 2.8162 | CW139: 20.117 | CX139: 77.977 | CY139: 29.821 | CZ139: 2.0621e-05 | DA139: 0.048992
B140: 0.9183452946 | C140: =PsatSLEoS_rchain_Ttilde_VECTOR3($D$66,B140) -> 0.001959342947 | D140: 0.6392315112 | E140: 0.02348439399 | F140: 174 | G140: 0.6059378219 | H140: 510.9165598 | I140: 18.77029773 | J140: 0.03194171387 | K140: 0.8694348271 | L140: 0.5362809369 | M140: 0.5362809369 | P140: 0.272 | Q140: 0.2748501583 | R140: -1.223905578 | S140: 1.137790672 | T140: 0.01007185985 | U140: -0.002195107965 | AQ140: 0.272 | AR140: 1.137790672 | AS140: 0.01007185985 | AT140: -0.002195107965 | BA140: 188.34 | BB140: 0.79827 | BC140: 513.24 | BD140: 0.0019484 | BE140: 250.33 | BF140: 251.89 | BG140: 0.60219 | BH140: 2.4126 | BI140: 3.0836 | BJ140: 471.76 | BK140: 0.21074 | BL140: 9.8464e-05 | BM140: 0.092023 | BN140: 0.0048705 | BO140: 26.853 | BP140: 0.03724 | BQ140: 457.12 | BR140: 486.85 | BS140: 1.1113 | BT140: 2.3678 | BU140: 2.6468 | BV140: 155.04 | BW140: 20.357 | BX140: 1.0198e-05 | BY140: 0.028922 | CC140: 266.11 | CD140: 2.7002 | CE140: 277.35 | CF140: 0.0036055 | CG140: 533.47 | CH140: 543.21 | CI140: 1.172 | CJ140: 2.8071 | CK140: 23.623 | CL140: 81.61 | CM140: 18.024 | CN140: 3.2533e-05 | CO140: 0.059854 | CP140: 1.7459e-05 | CQ140: 178.46 | CR140: 0.0056033 | CS140: 568.13 | CT140: 583.26 | CU140: 1.2463 | CV140: 2.8201 | CW140: 24.865 | CX140: 76.965 | CY140: 29.751 | CZ140: 2.1141e-05 | DA140: 0.049572
B141: 0.9224528438 | C141: =PsatSLEoS_rchain_Ttilde_VECTOR3($D$66,B141) -> 0.002036351009 | D141: 0.6352542919 | E141: 0.02440916738 | F141: 176 | G141: 0.629752998 | H141: 507.7377002 | I141: 19.50943845 | J141: 0.03325621322 | K141: 0.8655007295 | L141: 0.5554630922 | M141: 0.5554630922 | P141: 0.274 | Q141: 0.2769607237 | R141: -1.22401 | S141: 1.137156712 | T141: 0.01002471813 | U141: -0.002354215019 | AQ141: 0.274 | AR141: 1.137156712 | AS141: 0.01002471813 | AT141: -0.002354215019 | BA141: 189.55 | BB141: 0.81587 | BC141: 511.53 | BD141: 0.0019549 | BE141: 254.02 | BF141: 255.61 | BG141: 0.61018 | BH141: 2.4174 | BI141: 3.0933 | BJ141: 466.57 | BK141: 0.2249 | BL141: 9.7543e-05 | BM141: 0.091729 | BN141: 0.0047769 | BO141: 27.499 | BP141: 0.036365 | BQ141: 459.44 | BR141: 489.11 | BS141: 1.1148 | BT141: 2.374 | BU141: 2.6588 | BV141: 154.47 | BW141: 20.338 | BX141: 1.0246e-05 | BY141: 0.029099 | CC141: 266.65 | CD141: 2.7202 | CE141: 269.15 | CF141: 0.0037155 | CG141: 537.5 | CH141: 547.61 | CI141: 1.18 | CJ141: 2.8132 | CK141: 31.7 | CL141: 79.358 | CM141: 19.46 | CN141: 3.1385e-05 | CO141: 0.058956 | CP141: 5.2509e-06 | CQ141: 185.06 | CR141: 0.0054036 | CS141: 566.94 | CT141: 581.64 | CU141: 1.2431 | CV141: 2.8239 | CW141: 33.109 | CX141: 75.937 | CY141: 29.592 | CZ141: 2.1758e-05 | DA141: 0.050241
B142: 0.9265603929 | C142: =PsatSLEoS_rchain_Ttilde_VECTOR3($D$66,B142) -> 0.002115583006 | D142: 0.6312402068 | E142: 0.02536415411 | F142: 178 | G142: 0.6542559387 | H142: 504.529375 | I142: 20.27272769 | J142: 0.03461574018 | K142: 0.8614853425 | L142: 0.5750826549 | M142: 0.5750826549 | P142: 0.276 | Q142: 0.2790710814 | R142: -1.224117126 | S142: 1.13648371 | T142: 0.009974024801 | U142: -0.002513947447 | AQ142: 0.276 | AR142: 1.13648371 | AS142: 0.009974024801 | AT142: -0.002513947447 | BA142: 190.76 | BB142: 0.83376 | BC142: 509.82 | BD142: 0.0019615 | BE142: 257.71 | BF142: 259.35 | BG142: 0.61817 | BH142: 2.4222 | BI142: 3.1032 | BJ142: 461.36 | BK142: 0.23953 | BL142: 9.6628e-05 | BM142: 0.091435 | BN142: 0.0046837 | BO142: 28.161 | BP142: 0.035511 | BQ142: 461.75 | BR142: 491.36 | BS142: 1.1183 | BT142: 2.3802 | BU142: 2.671 | BV142: 153.89 | BW142: 20.323 | BX142: 1.0294e-05 | BY142: 0.029278
B143: 0.930667942 | C143: =PsatSLEoS_rchain_Ttilde_VECTOR3($D$66,B143) -> 0.002197077087 | D143: 0.6271884105 | E143: 0.02635028816 | F143: 180 | G143: 0.6794584412 | H143: 501.2909085 | I143: 21.06091196 | J143: 0.03602172062 | K143: 0.8573874244 | L143: 0.5951413571 | M143: 0.5951413571 | P143: 0.278 | Q143: 0.2811811974 | R143: -1.224226881 | S143: 1.13577226 | T143: 0.009919744481 | U143: -0.002674264448 | AQ143: 0.278 | AR143: 1.13577226 | AS143: 0.009919744481 | AT143: -0.002674264448 | BA143: 191.97 | BB143: 0.85195 | BC143: 508.08 | BD143: 0.0019682 | BE143: 261.42 | BF143: 263.09 | BG143: 0.62616 | BH143: 2.4271 | BI143: 3.1133 | BJ143: 456.14 | BK143: 0.25465 | BL143: 9.5716e-05 | BM143: 0.091139 | BN143: 0.0045909 | BO143: 28.837 | BP143: 0.034677 | BQ143: 464.07 | BR143: 493.61 | BS143: 1.1218 | BT143: 2.3864 | BU143: 2.6835 | BV143: 153.29 | BW143: 20.311 | BX143: 1.0343e-05 | BY143: 0.029458
B144: 0.9347754911 | C144: =PsatSLEoS_rchain_Ttilde_VECTOR3($D$66,B144) -> 0.002280871473 | D144: 0.623098016 | E144: 0.02736854415 | F144: 182 | G144: 0.7053723262 | H144: 498.0215917 | I144: 21.87477022 | J144: 0.03747564063 | K144: 0.85320568 | L144: 0.615640718 | M144: 0.615640718 | P144: 0.28 | Q144: 0.2832910375 | R144: -1.224339194 | S144: 1.135022944 | T144: 0.009861841663 | U144: -0.002835124883 | AQ144: 0.28 | AR144: 1.135022944 | AS144: 0.009861841663 | AT144: -0.002835124883 | BA144: 193.18 | BB144: 0.87043 | BC144: 506.33 | BD144: 0.001975 | BE144: 265.13 | BF144: 266.85 | BG144: 0.63415 | BH144: 2.4319 | BI144: 3.1236 | BJ144: 450.9 | BK144: 0.2703 | BL144: 9.481e-05 | BM144: 0.090842 | BN144: 0.0044985 | BO144: 29.53 | BP144: 0.033864 | BQ144: 466.38 | BR144: 495.86 | BS144: 1.1252 | BT144: 2.3925 | BU144: 2.6962 | BV144: 152.68 | BW144: 20.303 | BX144: 1.0393e-05 | BY144: 0.029639
B145: 0.9388830402 | C145: =PsatSLEoS_rchain_Ttilde_VECTOR3($D$66,B145) -> 0.002367004456 | D145: 0.6189680915 | E145: 0.02841994011 | F145: 184 | G145: 0.7320094356 | H145: 494.72068 | I145: 22.71511615 | J145: 0.0389790507 | K145: 0.8489387566 | L145: 0.6365820418 | M145: 0.6365820418 | P145: 0.282 | Q145: 0.2854005681 | R145: -1.224453996 | S145: 1.134236331 | T145: 0.009800280737 | U145: -0.002996487268 | AQ145: 0.282 | AR145: 1.134236331 | AS145: 0.009800280737 | AT145: -0.002996487268 | BA145: 194.39 | BB145: 0.88921 | BC145: 504.57 | BD145: 0.0019819 | BE145: 268.86 | BF145: 270.62 | BG145: 0.64214 | BH145: 2.4367 | BI145: 3.134 | BJ145: 445.64 | BK145: 0.28651 | BL145: 9.3907e-05 | BM145: 0.090544 | BN145: 0.0044064 | BO145: 30.238 | BP145: 0.033071 | BQ145: 468.69 | BR145: 498.1 | BS145: 1.1287 | BT145: 2.3987 | BU145: 2.7092 | BV145: 152.05 | BW145: 20.298 | BX145: 1.0444e-05 | BY145: 0.029821
B146: 0.9429905894 | C146: =PsatSLEoS_rchain_Ttilde_VECTOR3($D$66,B146) -> 0.002455514396 | D146: 0.6147976578 | E146: 0.02950554066 | F146: 186 | G146: 0.7593816321 | H146: 491.3873906 | I146: 23.58280069 | J146: 0.04053357032 | K146: 0.8445852386 | L146: 0.6579664179 | M146: 0.6579664179 | P146: 0.284 | Q146: 0.2875097552 | R146: -1.224571216 | S146: 1.133412979 | T146: 0.009735025982 | U146: -0.003158309774 | AQ146: 0.284 | AR146: 1.133412979 | AS146: 0.009735025982 | AT146: -0.003158309774 | BA146: 195.6 | BB146: 0.9083 | BC146: 502.79 | BD146: 0.0019889 | BE146: 272.6 | BF146: 274.4 | BG146: 0.65013 | BH146: 2.4416 | BI146: 3.1447 | BJ146: 440.37 | BK146: 0.30329 | BL146: 9.3009e-05 | BM146: 0.090244 | BN146: 0.0043147 | BO146: 30.963 | BP146: 0.032297 | BQ146: 470.99 | BR146: 500.33 | BS146: 1.1321 | BT146: 2.405 | BU146: 2.7225 | BV146: 151.41 | BW146: 20.297 | BX146: 1.0496e-05 | BY146: 0.030005
B147: 0.9470981385 | C147: =PsatSLEoS_rchain_Ttilde_VECTOR3($D$66,B147) -> 0.002546439698 | D147: 0.6105856842 | E147: 0.03062646028 | F147: 188 | G147: 0.7875007928 | H147: 488.0208997 | I147: 24.4787146 | J147: 0.04214089289 | K147: 0.8401436431 | L147: 0.6797947169 | M147: 0.6797947169 | P147: 0.286 | Q147: 0.2896185653 | R147: -1.224690786 | S147: 1.132553436 | T147: 0.009666041565 | U147: -0.003320550218 | AQ147: 0.286 | AR147: 1.132553436 | AS147: 0.009666041565 | AT147: -0.003320550218 | BA147: 196.81 | BB147: 0.92769 | BC147: 500.98 | BD147: 0.0019961 | BE147: 276.34 | BF147: 278.19 | BG147: 0.65813 | BH147: 2.4464 | BI147: 3.1556 | BJ147: 435.07 | BK147: 0.32069 | BL147: 9.2115e-05 | BM147: 0.089943 | BN147: 0.0042235 | BO147: 31.705 | BP147: 0.031541 | BQ147: 473.3 | BR147: 502.56 | BS147: 1.1355 | BT147: 2.4112 | BU147: 2.7361 | BV147: 150.76 | BW147: 20.3 | BX147: 1.0548e-05 | BY147: 0.03019
B148: 0.9512056876 | C148: =PsatSLEoS_rchain_Ttilde_VECTOR3($D$66,B148) -> 0.002639818826 | D148: 0.6063310855 | E148: 0.03178386726 | F148: 190 | G148: 0.8163788132 | H148: 484.6203399 | I148: 25.40379163 | J148: 0.04380279133 | K148: 0.8356124131 | L148: 0.702067594 | M148: 0.702067594 | P148: 0.288 | Q148: 0.2917269647 | R148: -1.22481264 | S148: 1.13165824 | T148: 0.009593291533 | U148: -0.003483166066 | AQ148: 0.288 | AR148: 1.13165824 | AS148: 0.009593291533 | AT148: -0.003483166066 | BA148: 198.02 | BB148: 0.9474 | BC148: 499.16 | BD148: 0.0020033 | BE148: 280.1 | BF148: 282 | BG148: 0.66613 | BH148: 2.4513 | BI148: 3.1666 | BJ148: 429.76 | BK148: 0.33874 | BL148: 9.1224e-05 | BM148: 0.08964 | BN148: 0.0041326 | BO148: 32.465 | BP148: 0.030803 | BQ148: 475.6 | BR148: 504.78 | BS148: 1.139 | BT148: 2.4174 | BU148: 2.75 | BV148: 150.09 | BW148: 20.307 | BX148: 1.0601e-05 | BY148: 0.030377
B149: 0.9553132367 | C149: =PsatSLEoS_rchain_Ttilde_VECTOR3($D$66,B149) -> 0.002735690287 | D149: 0.6020327176 | E149: 0.03297898761 | F149: 192 | G149: 0.8460276016 | H149: 481.1847969 | I149: 26.35901171 | J149: 0.04552112402 | K149: 0.8309899119 | L149: 0.724785486 | M149: 0.724785486 | P149: 0.29 | Q149: 0.29383492 | R149: -1.224936711 | S149: 1.130727914 | T149: 0.009516739815 | U149: -0.003646114422 | AQ149: 0.29 | AR149: 1.130727914 | AS149: 0.009516739815 | AT149: -0.003646114422 | BA149: 199.23 | BB149: 0.96742 | BC149: 497.33 | BD149: 0.0020108 | BE149: 283.87 | BF149: 285.81 | BG149: 0.67414 | BH149: 2.4561 | BI149: 3.1779 | BJ149: 424.42 | BK149: 0.35746 | BL149: 9.0337e-05 | BM149: 0.089336 | BN149: 0.0040421 | BO149: 33.242 | BP149: 0.030082 | BQ149: 477.89 | BR149: 506.99 | BS149: 1.1424 | BT149: 2.4236 | BU149: 2.7642 | BV149: 149.4 | BW149: 20.317 | BX149: 1.0655e-05 | BY149: 0.030565
B150: 0.9594207859 | C150: =PsatSLEoS_rchain_Ttilde_VECTOR3($D$66,B150) -> 0.002834092627 | D150: 0.5976893728 | E150: 0.03421310963 | F150: 194 | G150: 0.8764590785 | H150: 477.7133054 | I150: 27.34540454 | J150: 0.04729784143 | K150: 0.8262744159 | L150: 0.7479486118 | M150: 0.7479486117 | P150: 0.292 | Q150: 0.295942398 | R150: -1.225062935 | S150: 1.129762977 | T150: 0.009436350214 | U150: -0.003809352027 | AQ150: 0.292 | AR150: 1.129762977 | AS150: 0.009436350214 | AT150: -0.003809352027 | BA150: 200.44 | BB150: 0.98776 | BC150: 495.47 | BD150: 0.0020183 | BE150: 287.65 | BF150: 289.64 | BG150: 0.68214 | BH150: 2.461 | BI150: 3.1895 | BJ150: 419.07 | BK150: 0.37691 | BL150: 8.9454e-05 | BM150: 0.08903 | BN150: 0.0039521 | BO150: 34.039 | BP150: 0.029378 | BQ150: 480.18 | BR150: 509.2 | BS150: 1.1458 | BT150: 2.4299 | BU150: 2.7788 | BV150: 148.7 | BW150: 20.332 | BX150: 1.071e-05 | BY150: 0.030755
B151: 0.963528335 | C151: =PsatSLEoS_rchain_Ttilde_VECTOR3($D$66,B151) -> 0.002935064425 | D151: 0.5932997754 | E151: 0.03548758887 | F151: 196 | G151: 0.9076851745 | H151: 474.2048457 | I151: 28.36405356 | J151: 0.04913499335 | K151: 0.8214641075 | L151: 0.7715569723 | M151: 0.7715569723 | P151: 0.294 | Q151: 0.2980493653 | R151: -1.225191247 | S151: 1.128763932 | T151: 0.009352086408 | U151: -0.003972835257 | AQ151: 0.294 | AR151: 1.128763932 | AS151: 0.009352086408 | AT151: -0.003972835257 | BA151: 201.65 | BB151: 1.0084 | BC151: 493.59 | BD151: 0.002026 | BE151: 291.44 | BF151: 293.48 | BG151: 0.69015 | BH151: 2.4659 | BI151: 3.2013 | BJ151: 413.7 | BK151: 0.39713 | BL151: 8.8573e-05 | BM151: 0.088722 | BN151: 0.0038624 | BO151: 34.855 | BP151: 0.028691 | BQ151: 482.47 | BR151: 511.4 | BS151: 1.1491 | BT151: 2.4362 | BU151: 2.7937 | BV151: 147.99 | BW151: 20.351 | BX151: 1.0765e-05 | BY151: 0.030946
B152: 0.9676358841 | C152: =PsatSLEoS_rchain_Ttilde_VECTOR3($D$66,B152) -> 0.003038644286 | D152: 0.5888625756 | E152: 0.03680385356 | F152: 198 | G152: 0.9397178289 | H152: 470.6583389 | I152: 29.41610029 | J152: 0.05103473702 | K152: 0.8165570662 | L152: 0.7956103508 | M152: 0.7956103507 | P152: 0.296 | Q152: 0.3001557888 | R152: -1.225321585 | S152: 1.127731276 | T152: 0.009263911947 | U152: -0.004136520114 | AQ152: 0.296 | AR152: 1.127731276 | AS152: 0.009263911947 | AT152: -0.004136520114 | BA152: 202.86 | BB152: 1.0294 | BC152: 491.69 | BD152: 0.0020338 | BE152: 295.24 | BF152: 297.34 | BG152: 0.69817 | BH152: 2.4707 | BI152: 3.2134 | BJ152: 408.3 | BK152: 0.41816 | BL152: 8.7696e-05 | BM152: 0.088413 | BN152: 0.0037732 | BO152: 35.691 | BP152: 0.028019 | BQ152: 484.75 | BR152: 513.59 | BS152: 1.1525 | BT152: 2.4424 | BU152: 2.8091 | BV152: 147.25 | BW152: 20.374 | BX152: 1.0822e-05 | BY152: 0.031138
B153: 0.9717434332 | C153: =PsatSLEoS_rchain_Ttilde_VECTOR3($D$66,B153) -> 0.00314487084 | D153: 0.5843763439 | E153: 0.03816341066 | F153: 200 | G153: 0.972568988 | H153: 467.0726427 | I153: 30.50274922 | J153: 0.05299934593 | K153: 0.81155126 | L153: 0.8201083133 | M153: 0.8201083132 | P153: 0.298 | Q153: 0.3022616357 | R153: -1.225453887 | S153: 1.126665496 | T153: 0.009171790247 | U153: -0.004300362228 | AQ153: 0.298 | AR153: 1.126665496 | AS153: 0.009171790247 | AT153: -0.004300362228 | BA153: 204.07 | BB153: 1.0507 | BC153: 489.77 | BD153: 0.0020418 | BE153: 299.06 | BF153: 301.2 | BG153: 0.70619 | BH153: 2.4756 | BI153: 3.2258 | BJ153: 402.88 | BK153: 0.44004 | BL153: 8.6821e-05 | BM153: 0.088102 | BN153: 0.0036844 | BO153: 36.547 | BP153: 0.027362 | BQ153: 487.03 | BR153: 515.78 | BS153: 1.1558 | BT153: 2.4487 | BU153: 2.8249 | BV153: 146.51 | BW153: 20.402 | BX153: 1.088e-05 | BY153: 0.031333
B154: 0.9758509823 | C154: =PsatSLEoS_rchain_Ttilde_VECTOR3($D$66,B154) -> 0.003253782734 | D154: 0.5798395645 | E154: 0.03956785261 | F154: 202 | G154: 1.006250604 | H154: 463.4465453 | I154: 31.62527312 | J154: 0.05503121975 | K154: 0.8064445348 | L154: 0.8450502092 | M154: 0.8450502092 | P154: 0.3 | Q154: 0.3043668728 | R154: -1.225588091 | S154: 1.125567068 | T154: 0.009075684589 | U154: -0.004464316845 | AQ154: 0.3 | AR154: 1.125567068 | AS154: 0.009075684589 | AT154: -0.004464316845 | BA154: 205.28 | BB154: 1.0724 | BC154: 487.82 | BD154: 0.0020499 | BE154: 302.88 | BF154: 305.08 | BG154: 0.71421 | BH154: 2.4805 | BI154: 3.2384 | BJ154: 397.45 | BK154: 0.46284 | BL154: 8.5949e-05 | BM154: 0.087788 | BN154: 0.003596 | BO154: 37.425 | BP154: 0.02672 | BQ154: 489.3 | BR154: 517.95 | BS154: 1.1592 | BT154: 2.455 | BU154: 2.8412 | BV154: 145.74 | BW154: 20.434 | BX154: 1.0939e-05 | BY154: 0.031529
B155: 0.9799585315 | C155: =PsatSLEoS_rchain_Ttilde_VECTOR3($D$66,B155) -> 0.003365418622 | D155: 0.5752506272 | E155: 0.04101886465 | F155: 204 | G155: 1.040774629 | H155: 459.7787598 | I155: 32.78501895 | J155: 0.05713289517 | K155: 0.8012346042 | L155: 0.8704351714 | M155: 0.8704351714 | P155: 0.302 | Q155: 0.3064714676 | R155: -1.225724138 | S155: 1.12443646 | T155: 0.008975558116 | U155: -0.00462833883 | AQ155: 0.302 | AR155: 1.12443646 | AS155: 0.008975558116 | AT155: -0.00462833883 | BA155: 206.49 | BB155: 1.0944 | BC155: 485.86 | BD155: 0.0020582 | BE155: 306.72 | BF155: 308.97 | BG155: 0.72225 | BH155: 2.4854 | BI155: 3.2514 | BJ155: 391.98 | BK155: 0.4866 | BL155: 8.508e-05 | BM155: 0.087473 | BN155: 0.0035081 | BO155: 38.324 | BP155: 0.026093 | BQ155: 491.56 | BR155: 520.12 | BS155: 1.1625 | BT155: 2.4613 | BU155: 2.8579 | BV155: 144.96 | BW155: 20.47 | BX155: 1.0999e-05 | BY155: 0.031726
B156: 0.9840660806 | C156: =PsatSLEoS_rchain_Ttilde_VECTOR3($D$66,B156) -> 0.003479817175 | D156: 0.5706078202 | E156: 0.04251823335 | F156: 206 | G156: 1.076153025 | H156: 456.067918 | I156: 33.98341466 | J156: 0.05930705832 | K156: 0.7959190353 | L156: 0.8962621202 | M156: 0.8962621202 | P156: 0.304 | Q156: 0.3085753874 | R156: -1.225861968 | S156: 1.123274131 | T156: 0.00887137383 | U156: -0.004792382659 | AQ156: 0.304 | AR156: 1.123274131 | AS156: 0.00887137383 | AT156: -0.004792382659 | BA156: 207.69 | BB156: 1.1167 | BC156: 483.86 | BD156: 0.0020667 | BE156: 310.57 | BF156: 312.88 | BG156: 0.73028 | BH156: 2.4903 | BI156: 3.2648 | BJ156: 386.5 | BK156: 0.5114 | BL156: 8.4212e-05 | BM156: 0.087155 | BN156: 0.0034206 | BO156: 39.247 | BP156: 0.02548 | BQ156: 493.82 | BR156: 522.27 | BS156: 1.1658 | BT156: 2.4676 | BU156: 2.8751 | BV156: 144.16 | BW156: 20.511 | BX156: 1.106e-05 | BY156: 0.031926
B157: 0.9881736297 | C157: =PsatSLEoS_rchain_Ttilde_VECTOR3($D$66,B157) -> 0.003597017038 | D157: 0.5659093195 | E157: 0.04406785526 | F157: 208 | G157: 1.112397742 | H157: 452.3125622 | I157: 35.22197609 | J157: 0.06155655782 | K157: 0.7904952384 | L157: 0.9225297595 | M157: 0.9225297557 | P157: 0.306 | Q157: 0.3106785995 | R157: -1.226001524 | S157: 1.122080532 | T157: 0.008763094589 | U157: -0.004956402414 | AQ157: 0.306 | AR157: 1.122080532 | AS157: 0.008763094589 | AT157: -0.004956402414 | BA157: 208.9 | BB157: 1.1394 | BC157: 481.85 | BD157: 0.0020753 | BE157: 314.43 | BF157: 316.8 | BG157: 0.73833 | BH157: 2.4952 | BI157: 3.2785 | BJ157: 380.98 | BK157: 0.53729 | BL157: 8.3346e-05 | BM157: 0.086835 | BN157: 0.0033335 | BO157: 40.194 | BP157: 0.02488 | BQ157: 496.07 | BR157: 524.42 | BS157: 1.169 | BT157: 2.474 | BU157: 2.8929 | BV157: 143.34 | BW157: 20.557 | BX157: 1.1123e-05 | BY157: 0.032127
B158: 0.9922811788 | C158: =PsatSLEoS_rchain_Ttilde_VECTOR3($D$66,B158) -> 0.003717056933 | D158: 0.5611531799 | E158: 0.0456697491 | F158: 210 | G158: 1.149520754 | H158: 448.5111374 | I158: 36.50231674 | J158: 0.06388442183 | K158: 0.7849604425 | L158: 0.9492365836 | M158: 0.9492365834 | P158: 0.308 | Q158: 0.3127810716 | R158: -1.226142747 | S158: 1.120856103 | T158: 0.008650683103 | U158: -0.005120351779 | AQ158: 0.308 | AR158: 1.120856103 | AS158: 0.008650683103 | AT158: -0.005120351779 | BA158: 210.11 | BB158: 1.1624 | BC158: 479.81 | BD158: 0.0020842 | BE158: 318.31 | BF158: 320.73 | BG158: 0.74638 | BH158: 2.5002 | BI158: 3.2926 | BJ158: 375.45 | BK158: 0.56435 | BL158: 8.2482e-05 | BM158: 0.086512 | BN158: 0.0032469 | BO158: 41.164 | BP158: 0.024293 | BQ158: 498.32 | BR158: 526.56 | BS158: 1.1723 | BT158: 2.4803 | BU158: 2.9113 | BV158: 142.5 | BW158: 20.607 | BX158: 1.1187e-05 | BY158: 0.032331
B159: 0.9963887279 | C159: =PsatSLEoS_rchain_Ttilde_VECTOR3($D$66,B159) -> 0.003839975461 | D159: 0.5563373221 | E159: 0.04732606417 | F159: 212 | G159: 1.187534 | H159: 444.6619819 | I159: 37.82615448 | J159: 0.066293872 | K159: 0.7793116935 | L159: 0.9763808742 | M159: 0.9763808742 | P159: 0.31 | Q159: 0.3148827714 | R159: -1.226285581 | S159: 1.11960128 | T159: 0.008534101934 | U159: -0.005284184038 | AQ159: 0.31 | AR159: 1.11960128 | AS159: 0.008534101934 | AT159: -0.005284184038 | BA159: 211.32 | BB159: 1.1858 | BC159: 477.74 | BD159: 0.0020932 | BE159: 322.2 | BF159: 324.68 | BG159: 0.75443 | BH159: 2.5051 | BI159: 3.3072 | BJ159: 369.89 | BK159: 0.59267 | BL159: 8.162e-05 | BM159: 0.086187 | BN159: 0.0031608 | BO159: 42.161 | BP159: 0.023719 | BQ159: 500.56 | BR159: 528.68 | BS159: 1.1755 | BT159: 2.4867 | BU159: 2.9303 | BV159: 141.65 | BW159: 20.663 | BX159: 1.1252e-05 | BY159: 0.032536
B160: 1.000496277 | C160: =PsatSLEoS_rchain_Ttilde_VECTOR3($D$66,B160) -> 0.003965811286 | D160: 0.5514595205 | E160: 0.04903909666 | F160: 214 | G160: 1.226449436 | H160: 440.7633167 | I160: 39.19532457 | J160: 0.06878834588 | K160: 0.7735458199 | L160: 1.003960706 | M160: 1.003960706 | P160: 0.312 | Q160: 0.3169836666 | R160: -1.226429969 | S160: 1.118316486 | T160: 0.008413313491 | U160: -0.005447852067 | AQ160: 0.312 | AR160: 1.118316486 | AS160: 0.008413313491 | AT160: -0.005447852067 | BA160: 212.53 | BB160: 1.2095 | BC160: 475.64 | BD160: 0.0021024 | BE160: 326.1 | BF160: 328.64 | BG160: 0.7625 | BH160: 2.5101 | BI160: 3.3222 | BJ160: 364.3 | BK160: 0.62231 | BL160: 8.0758e-05 | BM160: 0.085859 | BN160: 0.0030751 | BO160: 43.184 | BP160: 0.023157 | BQ160: 502.79 | BR160: 530.79 | BS160: 1.1787 | BT160: 2.4931 | BU160: 2.95 | BV160: 140.78 | BW160: 20.724 | BX160: 1.1318e-05 | BY160: 0.032744
B161: 1.004603826 | C161: =PsatSLEoS_rchain_Ttilde_VECTOR3($D$66,B161) -> 0.004094603937 | D161: 0.5465174314 | E161: 0.05081131873 | F161: 216 | G161: 1.266279288 | H161: 436.8132687 | I161: 40.61180293 | J161: 0.0713715274 | K161: 0.7676593485 | L161: 1.031974119 | M161: 1.031974119 | P161: 0.314 | Q161: 0.3190837253 | R161: -1.226575858 | S161: 1.11700214 | T161: 0.008288280027 | U161: -0.005611308329 | AQ161: 0.314 | AR161: 1.11700214 | AS161: 0.008288280027 | AT161: -0.005611308329 | BA161: 213.74 | BB161: 1.2336 | BC161: 473.51 | BD161: 0.0021119 | BE161: 330.01 | BF161: 332.62 | BG161: 0.77058 | BH161: 2.515 | BI161: 3.3377 | BJ161: 358.68 | BK161: 0.65339 | BL161: 7.9898e-05 | BM161: 0.085529 | BN161: 0.0029899 | BO161: 44.234 | BP161: 0.022607 | BQ161: 505.01 | BR161: 532.89 | BS161: 1.1819 | BT161: 2.4995 | BU161: 2.9704 | BV161: 139.89 | BW161: 20.79 | BX161: 1.1386e-05 | BY161: 0.032953
B162: 1.008711375 | C162: =PsatSLEoS_rchain_Ttilde_VECTOR3($D$66,B162) -> 0.004226389325 | D162: 0.5415083587 | E162: 0.05264531688 | F162: 218 | G162: 1.30703466 | H162: 432.8096829 | I162: 42.07765687 | J162: 0.07404732181 | K162: 0.7616488242 | L162: 1.060418255 | M162: 1.060418255 | P162: 0.316 | Q162: 0.3211829154 | R162: -1.226723192 | S162: 1.115658652 | T162: 0.008158963637 | U162: -0.005774504873 | AQ162: 0.316 | AR162: 1.115658652 | AS162: 0.008158963637 | AT162: -0.005774504873 | BA162: 214.95 | BB162: 1.2581 | BC162: 471.36 | BD162: 0.0021215 | BE162: 333.94 | BF162: 336.61 | BG162: 0.77866 | BH162: 2.52 | BI162: 3.3536 | BJ162: 353.04 | BK162: 0.68601 | BL162: 7.9038e-05 | BM162: 0.085195 | BN162: 0.0029052 | BO162: 45.313 | BP162: 0.022069 | BQ162: 507.22 | BR162: 534.98 | BS162: 1.1851 | BT162: 2.5059 | BU162: 2.9916 | BV162: 138.97 | BW162: 20.861 | BX162: 1.1456e-05 | BY162: 0.033165
B163: 1.012818924 | C163: =PsatSLEoS_rchain_Ttilde_VECTOR3($D$66,B163) -> 0.004361208615 | D163: 0.5364296693 | E163: 0.05454396657 | F163: 220 | G163: 1.348728283 | H163: 428.7504548 | I163: 43.59518463 | J163: 0.07681998206 | K163: 0.7555100988 | L163: 1.089291094 | M163: 1.089291074 | P163: 0.318 | Q163: 0.3232812052 | R163: -1.226871918 | S163: 1.114286423 | T163: 0.008025326255 | U163: -0.005937393326 | AQ163: 0.318 | AR163: 1.114286423 | AS163: 0.008025326255 | AT163: -0.005937393326 | BA163: 216.16 | BB163: 1.2829 | BC163: 469.17 | BD163: 0.0021314 | BE163: 337.89 | BF163: 340.62 | BG163: 0.78676 | BH163: 2.525 | BI163: 3.3702 | BJ163: 347.36 | BK163: 0.72026 | BL163: 7.8179e-05 | BM163: 0.084858 | BN163: 0.002821 | BO163: 46.422 | BP163: 0.021541 | BQ163: 509.42 | BR163: 537.06 | BS163: 1.1882 | BT163: 2.5124 | BU163: 3.0136 | BV163: 138.04 | BW163: 20.939 | BX163: 1.1527e-05 | BY163: 0.033379
B164: 1.016926474 | C164: =PsatSLEoS_rchain_Ttilde_VECTOR3($D$66,B164) -> 0.004499099791 | D164: 0.5312783384 | E164: 0.05651030691 | F164: 222 | G164: 1.391371905 | H164: 424.6331668 | I164: 45.16681529 | J164: 0.07969405063 | K164: 0.7492389462 | L164: 1.118589728 | M164: 1.118589722 | P164: 0.32 | Q164: 0.3253785628 | R164: -1.227021983 | S164: 1.112885849 | T164: 0.007887329651 | U164: -0.006099924888 | AQ164: 0.32 | AR164: 1.112885849 | AS164: 0.007887329651 | AT164: -0.006099924888 | BA164: 217.37 | BB164: 1.3081 | BC164: 466.95 | BD164: 0.0021416 | BE164: 341.85 | BF164: 344.65 | BG164: 0.79486 | BH164: 2.53 | BI164: 3.3873 | BJ164: 341.66 | BK164: 0.75629 | BL164: 7.732e-05 | BM164: 0.084518 | BN164: 0.0027373 | BO164: 47.562 | BP164: 0.021025 | BQ164: 511.61 | BR164: 539.12 | BS164: 1.1913 | BT164: 2.5188 | BU164: 3.0365 | BV164: 137.09 | BW164: 21.022 | BX164: 1.16e-05 | BY164: 0.033596
B165: 1.021034023 | C165: =PsatSLEoS_rchain_Ttilde_VECTOR3($D$66,B165) -> 0.00464010111 | D165: 0.5260511375 | E165: 0.05854762581 | F165: 224 | G165: 1.434977355 | H165: 420.4552383 | I165: 46.79517676 | J165: 0.08267442901 | K165: 0.7428307607 | L165: 1.148311215 | M165: 1.148311214 | P165: 0.322 | Q165: 0.3274749568 | R165: -1.227173335 | S165: 1.111457317 | T165: 0.007744935428 | U165: -0.006262050328 | AQ165: 0.322 | AR165: 1.111457317 | AS165: 0.007744935428 | AT165: -0.006262050328 | BA165: 218.58 | BB165: 1.3337 | BC165: 464.69 | BD165: 0.002152 | BE165: 345.82 | BF165: 348.69 | BG165: 0.80298 | BH165: 2.5351 | BI165: 3.4051 | BJ165: 335.92 | BK165: 0.79423 | BL165: 7.6461e-05 | BM165: 0.084174 | BN165: 0.0026541 | BO165: 48.734 | BP165: 0.020519 | BQ165: 513.79 | BR165: 541.16 | BS165: 1.1944 | BT165: 2.5253 | BU165: 3.0604 | BV165: 136.12 | BW165: 21.111 | BX165: 1.1675e-05 | BY165: 0.033815
B166: 1.025141572 | C166: =PsatSLEoS_rchain_Ttilde_VECTOR3($D$66,B166) -> 0.004784251106 | D166: 0.5207445653 | E166: 0.0606594897 | F166: 226 | G166: 1.479556552 | H166: 416.2138711 | I166: 48.48311957 | J166: 0.08576642585 | K166: 0.7362805121 | L166: 1.178452425 | M166: 1.178452424 | P166: 0.324 | Q166: 0.3295703556 | R166: -1.227325922 | S166: 1.110001207 | T166: 0.00759810502 | U166: -0.006423719979 | AQ166: 0.324 | AR166: 1.110001207 | AS166: 0.00759810502 | AT166: -0.006423719979 | BA166: 219.79 | BB166: 1.3597 | BC166: 462.4 | BD166: 0.0021626 | BE166: 349.81 | BF166: 352.75 | BG166: 0.81111 | BH166: 2.5401 | BI166: 3.4236 | BJ166: 330.15 | BK166: 0.83422 | BL166: 7.5601e-05 | BM166: 0.083826 | BN166: 0.0025715 | BO166: 49.941 | BP166: 0.020024 | BQ166: 515.96 | BR166: 543.19 | BS166: 1.1974 | BT166: 2.5318 | BU166: 3.0854 | BV166: 135.12 | BW166: 21.206 | BX166: 1.1751e-05 | BY166: 0.034037
B167: 1.029249121 | C167: =PsatSLEoS_rchain_Ttilde_VECTOR3($D$66,B167) -> 0.004931588241 | D167: 0.5153548132 | E167: 0.06284977108 | F167: 228 | G167: 1.525121389 | H167: 411.9060208 | I167: 50.23373888 | J167: 0.08897580069 | K167: 0.7295827233 | L167: 1.209010034 | M167: 1.209010034 | P167: 0.326 | Q167: 0.3316647279 | R167: -1.227479693 | S167: 1.108517895 | T167: 0.007446799689 | U167: -0.006584883734 | AQ167: 0.326 | AR167: 1.108517895 | AS167: 0.007446799689 | AT167: -0.006584883734 | BA167: 221 | BB167: 1.3861 | BC167: 460.07 | BD167: 0.0021736 | BE167: 353.81 | BF167: 356.82 | BG167: 0.81925 | BH167: 2.5452 | BI167: 3.4429 | BJ167: 324.35 | BK167: 0.87643 | BL167: 7.474e-05 | BM167: 0.083475 | BN167: 0.0024893 | BO167: 51.182 | BP167: 0.019538 | BQ167: 518.12 | BR167: 545.2 | BS167: 1.2005 | BT167: 2.5384 | BU167: 3.1114 | BV167: 134.11 | BW167: 21.307 | BX167: 1.183e-05 | BY167: 0.034261
B168: 1.03335667 | C168: =PsatSLEoS_rchain_Ttilde_VECTOR3($D$66,B168) -> 0.005082150924 | D168: 0.5098777254 | E168: 0.06512268817 | F168: 230 | G168: 1.571683746 | H168: 407.5283661 | I168: 52.05040618 | J168: 0.09230882208 | K168: 0.7227314099 | L168: 1.23998053 | M168: 1.23998053 | P168: 0.328 | Q168: 0.3337580425 | R168: -1.227634598 | S168: 1.107007746 | T168: 0.007290980521 | U168: -0.006745491036 | AQ168: 0.328 | AR168: 1.107007746 | AS168: 0.007290980521 | AT168: -0.006745491036 | BA168: 222.21 | BB168: 1.4128 | BC168: 457.7 | BD168: 0.0021848 | BE168: 357.83 | BF168: 360.92 | BG168: 0.82741 | BH168: 2.5503 | BI168: 3.4629 | BJ168: 318.52 | BK168: 0.92105 | BL168: 7.3878e-05 | BM168: 0.08312 | BN168: 0.0024077 | BO168: 52.461 | BP168: 0.019062 | BQ168: 520.27 | BR168: 547.2 | BS168: 1.2035 | BT168: 2.5449 | BU168: 3.1388 | BV168: 133.07 | BW168: 21.416 | BX168: 1.1911e-05 | BY168: 0.034489
B169: 1.037464219 | C169: =PsatSLEoS_rchain_Ttilde_VECTOR3($D$66,B169) -> 0.005235977524 | D169: 0.5043087537 | E169: 0.06748285117 | F169: 232 | G169: 1.619255486 | H169: 403.0772716 | I169: 53.93680623 | J169: 0.09577233532 | K169: 0.7157200122 | L169: 1.271360217 | M169: 1.271360217 | P169: 0.33 | Q169: 0.3358502683 | R169: -1.227790588 | S169: 1.105471121 | T169: 0.007130608426 | U169: -0.006905490878 | AQ169: 0.33 | AR169: 1.105471121 | AS169: 0.007130608426 | AT169: -0.006905490878 | BA169: 223.42 | BB169: 1.44 | BC169: 455.29 | BD169: 0.0021964 | BE169: 361.87 | BF169: 365.03 | BG169: 0.83558 | BH169: 2.5554 | BI169: 3.4839 | BJ169: 312.65 | BK169: 0.96829 | BL169: 7.3015e-05 | BM169: 0.08276 | BN169: 0.0023266 | BO169: 53.778 | BP169: 0.018595 | BQ169: 522.4 | BR169: 549.17 | BS169: 1.2064 | BT169: 2.5515 | BU169: 3.1674 | BV169: 132.01 | BW169: 21.531 | BX169: 1.1994e-05 | BY169: 0.034719
B170: 1.041571768 | C170: =PsatSLEoS_rchain_Ttilde_VECTOR3($D$66,B170) -> 0.005393106342 | D170: 0.4986429023 | E170: 0.06993531603 | F170: 234 | G170: 1.667848457 | H170: 398.5487444 | I170: 55.89698011 | J170: 0.09937384182 | K170: 0.7085413166 | L170: 1.303145213 | M170: 1.303145213 | P170: 0.332 | Q170: 0.3379413743 | R170: -1.227947613 | S170: 1.103908375 | T170: 0.006965644131 | U170: -0.007064831797 | AQ170: 0.332 | AR170: 1.103908375 | AS170: 0.006965644131 | AT170: -0.007064831797 | BA170: 224.63 | BB170: 1.4676 | BC170: 452.84 | BD170: 0.0022083 | BE170: 365.92 | BF170: 369.16 | BG170: 0.84377 | BH170: 2.5605 | BI170: 3.5058 | BJ170: 306.74 | BK170: 1.0184 | BL170: 7.215e-05 | BM170: 0.082395 | BN170: 0.0022462 | BO170: 55.136 | BP170: 0.018137 | BQ170: 524.51 | BR170: 551.13 | BS170: 1.2093 | BT170: 2.5581 | BU170: 3.1975 | BV170: 130.93 | BW170: 21.653 | BX170: 1.208e-05 | BY170: 0.034953
B171: 1.045679317 | C171: =PsatSLEoS_rchain_Ttilde_VECTOR3($D$66,B171) -> 0.005553575639 | D171: 0.4928746649 | E171: 0.07248564917 | F171: 236 | G171: 1.717474489 | H171: 393.9383834 | I171: 57.93537686 | J171: 0.1031215937 | K171: 0.7011873592 | L171: 1.33533146 | M171: 1.33533146 | P171: 0.334 | Q171: 0.3400313296 | R171: -1.228105626 | S171: 1.102319855 | T171: 0.006796048181 | U171: -0.007223461863 | AQ171: 0.334 | AR171: 1.102319855 | AS171: 0.006796048181 | AT171: -0.007223461863 | BA171: 225.84 | BB171: 1.4955 | BC171: 450.34 | BD171: 0.0022205 | BE171: 370 | BF171: 373.32 | BG171: 0.85198 | BH171: 2.5657 | BI171: 3.5288 | BJ171: 300.8 | BK171: 1.0715 | BL171: 7.1282e-05 | BM171: 0.082026 | BN171: 0.0021662 | BO171: 56.537 | BP171: 0.017688 | BQ171: 526.61 | BR171: 553.07 | BS171: 1.2122 | BT171: 2.5648 | BU171: 3.2292 | BV171: 129.82 | BW171: 21.782 | BX171: 1.2168e-05 | BY171: 0.03519
B172: 1.049786867 | C172: =PsatSLEoS_rchain_Ttilde_VECTOR3($D$66,B172) -> 0.005717423666 | D172: 0.4869979474 | E172: 0.07514000396 | F172: 238 | G172: 1.768145412 | H172: 389.2413179 | I172: 60.05691466 | J172: 0.1070247068 | K172: 0.6936493186 | L172: 1.367914724 | M172: 1.367914724 | P172: 0.336 | Q172: 0.3421201036 | R172: -1.228264577 | S172: 1.100705902 | T172: 0.006621780935 | U172: -0.007381328681 | AQ172: 0.336 | AR172: 1.100705902 | AS172: 0.006621780935 | AT172: -0.007381328681 | BA172: 227.05 | BB172: 1.5239 | BC172: 447.79 | BD172: 0.0022332 | BE172: 374.09 | BF172: 377.49 | BG172: 0.86021 | BH172: 2.5709 | BI172: 3.553 | BJ172: 294.82 | BK172: 1.1281 | BL172: 7.0412e-05 | BM172: 0.081651 | BN172: 0.0020869 | BO172: 57.982 | BP172: 0.017247 | BQ172: 528.7 | BR172: 554.98 | BS172: 1.215 | BT172: 2.5715 | BU172: 3.2627 | BV172: 128.69 | BW172: 21.919 | BX172: 1.2258e-05 | BY172: 0.03543
B173: 1.053894416 | C173: =PsatSLEoS_rchain_Ttilde_VECTOR3($D$66,B173) -> 0.005884690797 | D173: 0.4810059936 | E173: 0.0779052208 | F173: 240 | G173: 1.819873713 | H173: 384.4521479 | I173: 62.26706084 | J173: 0.1110933326 | K173: 0.6859175581 | L173: 1.400890658 | M173: 1.400890658 | P173: 0.338 | Q173: 0.3442076656 | R173: -1.228424421 | S173: 1.099066852 | T173: 0.006442802562 | U173: -0.00753837938 | AQ173: 0.338 | AR173: 1.099066852 | AS173: 0.006442802562 | AT173: -0.00753837938 | BA173: 228.26 | BB173: 1.5527 | BC173: 445.19 | BD173: 0.0022462 | BE173: 378.2 | BF173: 381.69 | BG173: 0.86846 | BH173: 2.5762 | BI173: 3.5784 | BJ173: 288.79 | BK173: 1.1883 | BL173: 6.9538e-05 | BM173: 0.081271 | BN173: 0.0020082 | BO173: 59.475 | BP173: 0.016814 | BQ173: 530.76 | BR173: 556.87 | BS173: 1.2178 | BT173: 2.5782 | BU173: 3.2981 | BV173: 127.54 | BW173: 22.064 | BX173: 1.2352e-05 | BY173: 0.035675
B174: 1.058001965 | C174: =PsatSLEoS_rchain_Ttilde_VECTOR3($D$66,B174) -> 0.006055408125 | D174: 0.4748911827 | E174: 0.08078889622 | F174: 242 | G174: 1.872669007 | H174: 379.5647822 | I174: 64.57188702 | J174: 0.1153386269 | K174: 0.6779805082 | L174: 1.434254503 | M174: 1.434254503 | P174: 0.34 | Q174: 0.3462939852 | R174: -1.22858511 | S174: 1.097403035 | T174: 0.00625907304 | U174: -0.00769456061 | AQ174: 0.34 | AR174: 1.097403035 | AS174: 0.00625907304 | AT174: -0.00769456061 | BA174: 229.47 | BB174: 1.582 | BC174: 442.54 | BD174: 0.0022597 | BE174: 382.33 | BF174: 385.9 | BG174: 0.87673 | BH174: 2.5814 | BI174: 3.6052 | BJ174: 282.73 | BK174: 1.2526 | BL174: 6.8661e-05 | BM174: 0.080885 | BN174: 0.0019301 | BO174: 61.018 | BP174: 0.016389 | BQ174: 532.81 | BR174: 558.74 | BS174: 1.2206 | BT174: 2.5849 | BU174: 3.3355 | BV174: 126.36 | BW174: 22.217 | BX174: 1.2449e-05 | BY174: 0.035923
B175: 1.062109514 | C175: =PsatSLEoS_rchain_Ttilde_VECTOR3($D$66,B175) -> 0.006229620753 | D175: 0.4686450783 | E175: 0.08379960575 | F175: 244 | G175: 1.926545241 | H175: 374.5724779 | I175: 66.97824736 | J175: 0.1197733473 | K175: 0.6698264174 | L175: 1.468001707 | M175: 1.468001707 | P175: 0.342 | Q175: 0.348379032 | R175: -1.228746597 | S175: 1.095714776 | T175: 0.006070552152 | U175: -0.007849818535 | AQ175: 0.342 | AR175: 1.095714776 | AS175: 0.006070552152 | AT175: -0.007849818535 | BA175: 230.68 | BB175: 1.6116 | BC175: 439.83 | BD175: 0.0022736 | BE175: 386.48 | BF175: 390.14 | BG175: 0.88502 | BH175: 2.5867 | BI175: 3.6336 | BJ175: 276.62 | BK175: 1.3213 | BL175: 6.778e-05 | BM175: 0.080493 | BN175: 0.0018526 | BO175: 62.613 | BP175: 0.015971 | BQ175: 534.84 | BR175: 560.58 | BS175: 1.2233 | BT175: 2.5917 | BU175: 3.3754 | BV175: 125.16 | BW175: 22.378 | BX175: 1.2549e-05 | BY175: 0.036175
B176: 1.066217063 | C176: =PsatSLEoS_rchain_Ttilde_VECTOR3($D$66,B176) -> 0.006407364093 | D176: 0.4622580714 | E176: 0.08694698042 | F176: 246 | G176: 1.981513368 | H176: 369.4675551 | I176: 69.49383961 | J176: 0.1244116957 | K176: 0.6614411476 | L176: 1.502127301 | M176: 1.502127281 | P176: 0.344 | Q176: 0.3504627757 | R176: -1.228908839 | S176: 1.094002391 | T176: 0.005877199484 | U176: -0.008004098828 | AQ176: 0.344 | AR176: 1.094002391 | AS176: 0.005877199484 | AT176: -0.008004098828 | BA176: 231.89 | BB176: 1.6417 | BC176: 437.06 | BD176: 0.002288 | BE176: 390.65 | BF176: 394.41 | BG176: 0.89334 | BH176: 2.5921 | BI176: 3.6637 | BJ176: 270.47 | BK176: 1.3949 | BL176: 6.6894e-05 | BM176: 0.080094 | BN176: 0.0017757 | BO176: 64.265 | BP176: 0.015561 | BQ176: 536.84 | BR176: 562.39 | BS176: 1.2259 | BT176: 2.5985 | BU176: 3.4177 | BV176: 123.93 | BW176: 22.548 | BX176: 1.2653e-05 | BY176: 0.036432
B177: 1.070324612 | C177: =PsatSLEoS_rchain_Ttilde_VECTOR3($D$66,B177) -> 0.00658867642 | D177: 0.4557192725 | E177: 0.09024197853 | F177: 248 | G177: 2.037585225 | H177: 364.2413098 | I177: 72.12742239 | J177: 0.1292698394 | K177: 0.6528087942 | L177: 1.536626241 | M177: 1.536626232 | P177: 0.346 | Q177: 0.3525451864 | R177: -1.229071788 | S177: 1.092266195 | T177: 0.005678974422 | U177: -0.008157346662 | AQ177: 0.346 | AR177: 1.092266195 | AS177: 0.005678974422 | AT177: -0.008157346662 | BA177: 233.1 | BB177: 1.6723 | BC177: 434.23 | BD177: 0.0023029 | BE177: 394.85 | BF177: 398.7 | BG177: 0.90169 | BH177: 2.5975 | BI177: 3.6957 | BJ177: 264.27 | BK177: 1.474 | BL177: 6.6002e-05 | BM177: 0.079688 | BN177: 0.0016995 | BO177: 65.975 | BP177: 0.015157 | BQ177: 538.83 | BR177: 564.17 | BS177: 1.2285 | BT177: 2.6054 | BU177: 3.463 | BV177: 122.67 | BW177: 22.727 | BX177: 1.276e-05 | BY177: 0.036693
B178: 1.074432161 | C178: =PsatSLEoS_rchain_Ttilde_VECTOR3($D$66,B178) -> 0.006773595256 | D178: 0.4490162162 | E178: 0.0936971095 | F178: 250 | G178: 2.094772415 | H178: 358.883779 | I178: 74.88899406 | J178: 0.1343662371 | K178: 0.6439112121 | L178: 1.571493309 | M178: 1.571493305 | P178: 0.348 | Q178: 0.3546262341 | R178: -1.229235401 | S178: 1.090506494 | T178: 0.005475836148 | U178: -0.008309506709 | AQ178: 0.348 | AR178: 1.090506494 | AS178: 0.005475836148 | AT178: -0.008309506709 | BA178: 234.31 | BB178: 1.7033 | BC178: 431.33 | BD178: 0.0023184 | BE178: 399.07 | BF178: 403.02 | BG178: 0.91006 | BH178: 2.6029 | BI178: 3.7299 | BJ178: 258.03 | BK178: 1.5591 | BL178: 6.5104e-05 | BM178: 0.079274 | BN178: 0.001624 | BO178: 67.748 | BP178: 0.014761 | BQ178: 540.78 | BR178: 565.93 | BS178: 1.2311 | BT178: 2.6123 | BU178: 3.5114 | BV178: 121.39 | BW178: 22.915 | BX178: 1.2872e-05 | BY178: 0.03696
B179: 1.07853971 | C179: =PsatSLEoS_rchain_Ttilde_VECTOR3($D$66,B179) -> 0.006962158352 | D179: 0.4421345334 | E179: 0.09732679607 | F179: 252 | G179: 2.153086612 | H179: 353.3834781 | I179: 77.79008222 | J179: 0.1397221493 | K179: 0.6347274315 | L179: 1.606723147 | M179: 1.606723145 | P179: 0.35 | Q179: 0.3567058888 | R179: -1.229399634 | S179: 1.08872359 | T179: 0.00526774364 | U179: -0.00846052313 | AQ179: 0.35 | AR179: 1.08872359 | AS179: 0.00526774364 | AT179: -0.00846052313 | BA179: 235.52 | BB179: 1.7347 | BC179: 428.36 | BD179: 0.0023345 | BE179: 403.31 | BF179: 407.36 | BG179: 0.91847 | BH179: 2.6084 | BI179: 3.7665 | BJ179: 251.73 | BK179: 1.651 | BL179: 6.42e-05 | BM179: 0.078852 | BN179: 0.0015492 | BO179: 69.587 | BP179: 0.01437 | BQ179: 542.72 | BR179: 567.65 | BS179: 1.2336 | BT179: 2.6193 | BU179: 3.5633 | BV179: 120.08 | BW179: 23.112 | BX179: 1.2987e-05 | BY179: 0.037231
B180: 1.082647259 | C180: =PsatSLEoS_rchain_Ttilde_VECTOR3($D$66,B180) -> 0.007154403373 | D180: 0.4350575121 | E180: 0.1011478032 | F180: 254 | G180: 2.212539466 | H180: 347.7270495 | I180: 80.84408656 | J180: 0.1453622737 | K180: 0.6252330466 | L180: 1.642310252 | M180: 1.642310251 | P180: 0.352 | Q180: 0.358784121 | R180: -1.229564442 | S180: 1.086917782 | T180: 0.005054655665 | U180: -0.008610339569 | AQ180: 0.352 | AR180: 1.086917782 | AS180: 0.005054655665 | AT180: -0.008610339569 | BA180: 236.73 | BB180: 1.7666 | BC180: 425.31 | BD180: 0.0023512 | BE180: 407.58 | BF180: 411.74 | BG180: 0.92692 | BH180: 2.614 | BI180: 3.8058 | BJ180: 245.39 | BK180: 1.7503 | BL180: 6.3288e-05 | BM180: 0.078422 | BN180: 0.0014751 | BO180: 71.498 | BP180: 0.013986 | BQ180: 544.62 | BR180: 569.33 | BS180: 1.236 | BT180: 2.6263 | BU180: 3.6193 | BV180: 118.75 | BW180: 23.32 | BX180: 1.3108e-05 | BY180: 0.037509
B181: 1.086754809 | C181: =PsatSLEoS_rchain_Ttilde_VECTOR3($D$66,B181) -> 0.007350367896 | D181: 0.4277655215 | E181: 0.105179813 | F181: 256 | G181: 2.273142596 | H181: 341.8988031 | I181: 84.0667384 | J181: 0.151315587 | K181: 0.6153993729 | L181: 1.67824898 | M181: 1.67824898 | P181: 0.354 | Q181: 0.360860901 | R181: -1.229729782 | S181: 1.08508936 | T181: 0.00483653078 | U181: -0.008758899149 | AQ181: 0.354 | AR181: 1.08508936 | AS181: 0.00483653078 | AT181: -0.008758899149 | BA181: 237.94 | BB181: 1.799 | BC181: 422.17 | BD181: 0.0023687 | BE181: 411.88 | BF181: 416.14 | BG181: 0.9354 | BH181: 2.6196 | BI181: 3.8481 | BJ181: 238.99 | BK181: 1.858 | BL181: 6.2367e-05 | BM181: 0.077982 | BN181: 0.0014017 | BO181: 73.485 | BP181: 0.013608 | BQ181: 546.5 | BR181: 570.98 | BS181: 1.2383 | BT181: 2.6333 | BU181: 3.6797 | BV181: 117.38 | BW181: 23.537 | BX181: 1.3234e-05 | BY181: 0.037792
B182: 1.090862358 | C182: =PsatSLEoS_rchain_Ttilde_VECTOR3($D$66,B182) -> 0.00755008942 | D182: 0.420235243 | E182: 0.1094461958 | F182: 258 | G182: 2.3349076 | H182: 335.8801011 | I182: 87.4767167 | J182: 0.1576164732 | K182: 0.605192318 | L182: 1.714533553 | M182: 1.714533553 | P182: 0.356 | Q182: 0.3629361995 | R182: -1.229895612 | S182: 1.083238612 | T182: 0.004613327327 | U182: -0.008906144462 | AQ182: 0.356 | AR182: 1.083238612 | AS182: 0.004613327327 | AT182: -0.008906144462 | BA182: 239.15 | BB182: 1.8318 | BC182: 418.95 | BD182: 0.0023869 | BE182: 416.21 | BF182: 420.58 | BG182: 0.94392 | BH182: 2.6253 | BI182: 3.894 | BJ182: 232.54 | BK182: 1.9751 | BL182: 6.1437e-05 | BM182: 0.077532 | BN182: 0.0013291 | BO182: 75.552 | BP182: 0.013236 | BQ182: 548.34 | BR182: 572.58 | BS182: 1.2406 | BT182: 2.6405 | BU182: 3.7451 | BV182: 115.99 | BW182: 23.764 | BX182: 1.3365e-05 | BY182: 0.038082
B183: 1.094969907 | C183: =PsatSLEoS_rchain_Ttilde_VECTOR3($D$66,B183) -> 0.007753605341 | D183: 0.4124386143 | E183: 0.1139750626 | F183: 260 | G183: 2.397846043 | H183: 329.6485142 | I183: 91.09648983 | J183: 0.1643062662 | K183: 0.5945708408 | L183: 1.751158058 | M183: 1.751158058 | P183: 0.358 | Q183: 0.3650099871 | R183: -1.230061889 | S183: 1.081365821 | T183: 0.004385003432 | U183: -0.009052017566 | AQ183: 0.358 | AR183: 1.081365821 | AS183: 0.004385003432 | AT183: -0.009052017566 | BA183: 240.36 | BB183: 1.8652 | BC183: 415.63 | BD183: 0.002406 | BE183: 420.57 | BF183: 425.06 | BG183: 0.95249 | BH183: 2.6311 | BI183: 3.9438 | BJ183: 226.04 | BK183: 2.1029 | BL183: 6.0497e-05 | BM183: 0.077071 | BN183: 0.0012573 | BO183: 77.707 | BP183: 0.012869 | BQ183: 550.15 | BR183: 574.15 | BS183: 1.2428 | BT183: 2.6476 | BU183: 3.8163 | BV183: 114.57 | BW183: 24.002 | BX183: 1.3502e-05 | BY183: 0.038379
B184: 1.099077456 | C184: =PsatSLEoS_rchain_Ttilde_VECTOR3($D$66,B184) -> 0.007960952991 | D184: 0.4043413552 | E184: 0.1188007441 | F184: 262 | G184: 2.46196947 | H184: 323.1766434 | I184: 94.95349712 | J184: 0.1714354118 | K184: 0.5834847861 | L184: 1.788116455 | M184: 1.788116455 | P184: 0.36 | Q184: 0.3670822346 | R184: =Gtilde_rchain_rhotilde_Ttilde_Ptilde($N$13,P184,$N$18,$N$19) -> -1.230228572 | S184: 1.079471262 | T184: 0.004151517 | U184: -0.009196459976 | AQ184: 0.36 | AR184: 1.079471262 | AS184: 0.004151517 | AT184: -0.009196459976 | BA184: 241.57 | BB184: 1.899 | BC184: 412.21 | BD184: 0.002426 | BE184: 424.96 | BF184: 429.57 | BG184: 0.96111 | BH184: 2.6369 | BI184: 3.9983 | BJ184: 219.48 | BK184: 2.2428 | BL184: 5.9545e-05 | BM184: 0.076598 | BN184: 0.0011863 | BO184: 79.955 | BP184: 0.012507 | BQ184: 551.92 | BR184: 575.67 | BS184: 1.2449 | BT184: 2.6549 | BU184: 3.894 | BV184: 113.12 | BW184: 24.25 | BX184: 1.3646e-05 | BY184: 0.038683
B185: 1.103185005 | C185: =PsatSLEoS_rchain_Ttilde_VECTOR3($D$66,B185) -> 0.008172169595 | D185: 0.3959008372 | E185: 0.1239659165 | F185: 264 | G185: 2.527289392 | H185: 316.4304171 | I185: 99.0818482 | J185: 0.1790665797 | K185: 0.5718717761 | L185: 1.825402582 | M185: 1.825402582 | P185: 0.362 | Q185: 0.369152913 | R185: -1.230395618 | S185: 1.07755521 | T185: 0.003912825713 | U185: -0.009339412657 | AQ185: 0.362 | AR185: 1.07755521 | AS185: 0.003912825713 | AT185: -0.009339412657 | BA185: 242.78 | BB185: 1.9333 | BC185: 408.67 | BD185: 0.0024469 | BE185: 429.39 | BF185: 434.12 | BG185: 0.96978 | BH185: 2.6429 | BI185: 4.0581 | BJ185: 212.86 | BK185: 2.3964 | BL185: 5.858e-05 | BM185: 0.076112 | BN185: 0.0011161 | BO185: 82.305 | BP185: 0.01215 | BQ185: 553.65 | BR185: 577.14 | BS185: 1.247 | BT185: 2.6622 | BU185: 3.9792 | BV185: 111.65 | BW185: 24.509 | BX185: 1.3797e-05 | BY185: 0.038996
B186: 1.107292554 | C186: =PsatSLEoS_rchain_Ttilde_VECTOR3($D$66,B186) -> 0.008387292303 | D186: 0.3870629181 | E186: 0.1295247707 | F186: 266 | G186: 2.593817299 | H186: 309.3665614 | I186: 103.5248561 | J186: 0.187279297 | K186: 0.5596525731 | L186: 1.863010158 | M186: 1.863010158 | P186: 0.364 | Q186: 0.3712219935 | R186: -1.230562986 | S186: 1.075617932 | T186: 0.003668887026 | U186: -0.009480816019 | AQ186: 0.364 | AR186: 1.075617932 | AS186: 0.003668887026 | AT186: -0.009480816019 | BA186: 243.99 | BB186: 1.9681 | BC186: 405.01 | BD186: 0.0024691 | BE186: 433.86 | BF186: 438.72 | BG186: 0.97851 | BH186: 2.6489 | BI186: 4.1241 | BJ186: 206.18 | BK186: 2.5658 | BL186: 5.7601e-05 | BM186: 0.075612 | BN186: 0.0010468 | BO186: 84.763 | BP186: 0.011798 | BQ186: 555.33 | BR186: 578.55 | BS186: 1.2489 | BT186: 2.6695 | BU186: 4.0731 | BV186: 110.14 | BW186: 24.778 | BX186: 1.3955e-05 | BY186: 0.039318
B187: 1.111400103 | C187: =PsatSLEoS_rchain_Ttilde_VECTOR3($D$66,B187) -> 0.008606358157 | D187: 0.3777570319 | E187: 0.1355479191 | F187: 268 | G187: 2.661564646 | H187: 301.9286749 | I187: 108.338959 | J187: 0.1961771238 | K187: 0.5467239078 | L187: 1.900932785 | M187: 1.900932785 | P187: 0.366 | Q187: 0.3732894472 | R187: -1.230730636 | S187: 1.073659693 | T187: 0.003419658169 | U187: -0.00962060991 | AQ187: 0.366 | AR187: 1.073659693 | AS187: 0.003419658169 | AT187: -0.00962060991 | BA187: 245.2 | BB187: 2.0034 | BC187: 401.22 | BD187: 0.0024924 | BE187: 438.37 | BF187: 443.36 | BG187: 0.98731 | BH187: 2.6551 | BI187: 4.1974 | BJ187: 199.44 | BK187: 2.7533 | BL187: 5.6606e-05 | BM187: 0.075097 | BN187: 0.00097844 | BO187: 87.34 | BP187: 0.011449 | BQ187: 556.97 | BR187: 579.91 | BS187: 1.2507 | BT187: 2.677 | BU187: 4.1769 | BV187: 108.61 | BW187: 25.058 | BX187: 1.4123e-05 | BY187: 0.039649
B188: 1.115507652 | C188: =PsatSLEoS_rchain_Ttilde_VECTOR3($D$66,B188) -> 0.008829404117 | D188: 0.3678882088 | E188: 0.142130378 | F188: 270 | G188: 2.730542863 | H188: 294.0408517 | I188: 113.6001003 | J188: 0.2058993189 | K188: 0.5329468105 | L188: 1.939163957 | M188: 1.939163957 | P188: 0.368 | Q188: 0.3753552454 | R188: -1.230898528 | S188: 1.071680752 | T188: 0.003165096135 | U188: -0.009758733604 | AQ188: 0.368 | AR188: 1.071680752 | AS188: 0.003165096135 | AT188: -0.009758733604 | BA188: 246.41 | BB188: 2.0393 | BC188: 397.28 | BD188: 0.0025171 | BE188: 442.92 | BF188: 448.06 | BG188: 0.99618 | BH188: 2.6614 | BI188: 4.2795 | BJ188: 192.64 | BK188: 2.9618 | BL188: 5.5593e-05 | BM188: 0.074565 | BN188: 0.00091099 | BO188: 90.047 | BP188: 0.011105 | BQ188: 558.56 | BR188: 581.21 | BS188: 1.2525 | BT188: 2.6845 | BU188: 4.2925 | BV188: 107.04 | BW188: 25.348 | BX188: 1.43e-05 | BY188: 0.039991
B189: 1.119615202 | C189: =PsatSLEoS_rchain_Ttilde_VECTOR3($D$66,B189) -> 0.009056467045 | D189: 0.3573232748 | E189: 0.1494053675 | F189: 272 | G189: 2.80076335 | H189: 285.5966502 | I189: 119.4147583 | J189: 0.2166410026 | K189: 0.5181264487 | L189: 1.977697062 | M189: 1.977697062 | P189: 0.37 | Q189: 0.3774193598 | R189: -1.23106662 | S189: 1.069681364 | T189: 0.002905157687 | U189: -0.009895125802 | AQ189: 0.37 | AR189: 1.069681364 | AS189: 0.002905157687 | AT189: -0.009895125802 | BA189: 247.62 | BB189: 2.0756 | BC189: 393.18 | BD189: 0.0025434 | BE189: 447.52 | BF189: 452.8 | BG189: 1.0051 | BH189: 2.6678 | BI189: 4.3719 | BJ189: 185.78 | BK189: 3.1947 | BL189: 5.456e-05 | BM189: 0.074014 | BN189: 0.00084452 | BO189: 92.893 | BP189: 0.010765 | BQ189: 560.1 | BR189: 582.44 | BS189: 1.2541 | BT189: 2.6921 | BU189: 4.4218 | BV189: 105.45 | BW189: 25.648 | BX189: 1.4487e-05 | BY189: 0.040345
B190: 1.123722751 | C190: =PsatSLEoS_rchain_Ttilde_VECTOR3($D$66,B190) -> 0.00928758352 | D190: 0.345865005 | E190: 0.1575701333 | F190: 274 | G190: 2.872237419 | H190: 276.4384349 | I190: 125.9405849 | J190: 0.2286908952 | K190: 0.5019744285 | L190: 2.016525377 | M190: 2.016525366 | P190: 0.372 | Q190: 0.3794817619 | R190: -1.231234874 | S190: 1.06766178 | T190: 0.002639799347 | U190: -0.01002972462 | AQ190: 0.372 | AR190: 1.06766178 | AS190: 0.002639799347 | AT190: -0.01002972462 | BA190: 248.83 | BB190: 2.1125 | BC190: 388.89 | BD190: 0.0025714 | BE190: 452.18 | BF190: 457.61 | BG190: 1.0142 | BH190: 2.6744 | BI190: 4.477 | BJ190: 178.85 | BK190: 3.456 | BL190: 5.3505e-05 | BM190: 0.073443 | BN190: 0.00077908 | BO190: 95.895 | BP190: 0.010428 | BQ190: 561.57 | BR190: 583.6 | BS190: 1.2555 | BT190: 2.6998 | BU190: 4.5675 | BV190: 103.83 | BW190: 25.958 | BX190: 1.4686e-05 | BY190: 0.040712
B191: 1.1278303 | C191: =PsatSLEoS_rchain_Ttilde_VECTOR3($D$66,B191) -> 0.009522790709 | D191: 0.3331982525 | E191: 0.1669399305 | F191: 276 | G191: 2.944976565 | H191: 266.3143194 | I191: 133.4295533 | J191: 0.2425100295 | K191: 0.4840299008 | L191: 2.055642117 | M191: 2.055642114 | P191: 0.374 | Q191: 0.3815424235 | R191: -1.23140325 | S191: 1.065622247 | T191: 0.002368977399 | U191: -0.01016246757 | AQ191: 0.374 | AR191: 1.065622247 | AS191: 0.002368977399 | AT191: -0.01016246757 | BA191: 250.04 | BB191: 2.15 | BC191: 384.41 | BD191: 0.0026014 | BE191: 456.9 | BF191: 462.49 | BG191: 1.0233 | BH191: 2.6812 | BI191: 4.5975 | BJ191: 171.87 | BK191: 3.7509 | BL191: 5.2425e-05 | BM191: 0.072849 | BN191: 0.00071472 | BO191: 99.067 | BP191: 0.010094 | BQ191: 562.98 | BR191: 584.68 | BS191: 1.2569 | BT191: 2.7075 | BU191: 4.7328 | BV191: 102.18 | BW191: 26.275 | BX191: 1.4899e-05 | BY191: 0.041093
B192: 1.131937849 | C192: =PsatSLEoS_rchain_Ttilde_VECTOR3($D$66,B192) -> 0.009762125133 | D192: 0.3187581321 | E192: 0.1780797499 | F192: 278 | G192: 3.018992081 | H192: 254.7728098 | I192: 142.3332416 | J192: 0.2589240867 | K192: 0.4634673975 | L192: 2.095040394 | M192: 2.095040395 | P192: 0.376 | Q192: 0.3836013165 | R192: -1.23157171 | S192: 1.063563008 | T192: 0.002092647881 | U192: -0.01029329159 | AQ192: 0.376 | AR192: 1.063563008 | AS192: 0.002092647881 | AT192: -0.01029329159 | BA192: 251.25 | BB192: 2.188 | BC192: 379.7 | BD192: 0.0026337 | BE192: 461.68 | BF192: 467.44 | BG192: 1.0326 | BH192: 2.6882 | BI192: 4.7372 | BJ192: 164.83 | BK192: 4.0854 | BL192: 5.1317e-05 | BM192: 0.072229 | BN192: 0.0006515 | BO192: 102.43 | BP192: 0.0097631 | BQ192: 564.31 | BR192: 585.67 | BS192: 1.258 | BT192: 2.7154 | BU192: 4.9218 | BV192: 100.5 | BW192: 26.601 | BX192: 1.5127e-05 | BY192: 0.041491
B193: 1.136045398 | C193: =PsatSLEoS_rchain_Ttilde_VECTOR3($D$66,B193) -> 0.01000562221 | D193: 0.3013119391 | E193: 0.1922220099 | F193: 280 | G193: 3.094294921 | H193: 240.828646 | I193: 153.6366813 | J193: 0.2797331988 | K193: 0.4384875208 | L193: 2.134713113 | M193: 2.134713113 | P193: 0.378 | Q193: 0.3856584129 | R193: -1.231740213 | S193: 1.061484302 | T193: 0.001810766586 | U193: -0.01042213299 | AQ193: 0.378 | AR193: 1.061484302 | AS193: 0.001810766586 | AT193: -0.01042213299 | BA193: 252.46 | BB193: 2.2265 | BC193: 374.73 | BD193: 0.0026686 | BE193: 466.53 | BF193: 472.48 | BG193: 1.042 | BH193: 2.6954 | BI193: 4.901 | BJ193: 157.74 | BK193: 4.4673 | BL193: 5.0177e-05 | BM193: 0.07158 | BN193: 0.00058948 | BO193: 106 | BP193: 0.0094342 | BQ193: 565.56 | BR193: 586.57 | BS193: 1.259 | BT193: 2.7234 | BU193: 5.14 | BV193: 98.789 | BW193: 26.932 | BX193: 1.5371e-05 | BY193: 0.041906
B194: 1.140152947 | C194: =PsatSLEoS_rchain_Ttilde_VECTOR3($D$66,B194) -> 0.01025331863 | D194: 0.2766263931 | E194: 0.2135994401 | F194: 282 | G194: 3.17089643 | H194: 221.0983073 | I194: 170.7229528 | J194: 0.3111140776 | K194: 0.4029147505 | L194: 2.174653255 | M194: 2.17465324 | P194: 0.38 | Q194: 0.387713685 | R194: -1.231908723 | S194: 1.059386365 | T194: 0.001523289057 | U194: -0.01054892746 | AQ194: 0.38 | AR194: 1.059386365 | AS194: 0.001523289057 | AT194: -0.01054892746 | BA194: 253.67 | BB194: 2.2656 | BC194: 369.48 | BD194: 0.0027065 | BE194: 471.47 | BF194: 477.6 | BG194: 1.0515 | BH194: 2.7028 | BI194: 5.0956 | BJ194: 150.6 | BK194: 4.906 | BL194: 4.9e-05 | BM194: 0.070899 | BN194: 0.00052874 | BO194: 109.8 | BP194: 0.0091073 | BQ194: 566.72 | BR194: 587.36 | BS194: 1.2599 | BT194: 2.7315 | BU194: 5.3945 | BV194: 97.052 | BW194: 27.267 | BX194: 1.5635e-05 | BY194: 0.042342
B195: 1.140358325 | C195: =PsatSLEoS_rchain_Ttilde_VECTOR3($D$66,B195) -> 0.0102658146 | D195: 0.2749258216 | E195: 0.2151347434 | F195: 282.1 | G195: 3.174760881 | H195: 219.7390968 | I195: 171.9500698 | J195: 0.3133635552 | K195: 0.4004547639 | L195: 2.176657172 | M195: 2.176657161 | P195: 0.382 | Q195: 0.389767105 | R195: -1.232077201 | S195: 1.057269427 | T195: 0.001230170583 | U195: -0.01067361008 | AQ195: 0.382 | AR195: 1.057269427 | AS195: 0.001230170583 | AT195: -0.01067361008 | BA195: 254.88 | BB195: 2.3053 | BC195: 363.89 | BD195: 0.0027481 | BE195: 476.51 | BF195: 482.84 | BG195: 1.0613 | BH195: 2.7106 | BI195: 5.3304 | BJ195: 143.42 | BK195: 5.4131 | BL195: 4.7782e-05 | BM195: 0.07018 | BN195: 0.00046937 | BO195: 113.87 | BP195: 0.0087818 | BQ195: 567.79 | BR195: 588.03 | BS195: 1.2605 | BT195: 2.7396 | BU195: 5.6949 | BV195: 95.286 | BW195: 27.605 | BX195: 1.5921e-05 | BY195: 0.042801
B196: 1.14076908 | C196: =PsatSLEoS_rchain_Ttilde_VECTOR3($D$66,B196) -> 0.01029083822 | D196: 0.2712270582 | E196: 0.2185028879 | F196: 282.3 | G196: 3.182499575 | H196: 216.7827978 | I196: 174.642116 | J196: 0.3182965519 | K196: 0.3951006701 | L196: 2.180666945 | M196: 2.180666941 | P196: 0.384 | Q196: 0.3918186455 | R196: -1.232245609 | S196: 1.055133716 | T196: 0.000931366199 | U196: -0.0107961153 | AQ196: 0.384 | AR196: 1.055133716 | AS196: 0.000931366199 | AT196: -0.0107961153 | BA196: 256.09 | BB196: 2.3455 | BC196: 357.92 | BD196: 0.0027939 | BE196: 481.65 | BF196: 488.2 | BG196: 1.0712 | BH196: 2.7187 | BI196: 5.6187 | BJ196: 136.23 | BK196: 6.0035 | BL196: 4.6516e-05 | BM196: 0.069418 | BN196: 0.00041146 | BO196: 118.24 | BP196: 0.0084572 | BQ196: 568.74 | BR196: 588.57 | BS196: 1.2608 | BT196: 2.7479 | BU196: 6.0547 | BV196: 93.49 | BW196: 27.942 | BX196: 1.6234e-05 | BY196: 0.043286
B197: 1.141179834 | C197: =PsatSLEoS_rchain_Ttilde_VECTOR3($D$66,B197) -> 0.01031590411 | D197: 0.2669724603 | E197: 0.2224267573 | F197: 282.5 | G197: 3.190251344 | H197: 213.3822388 | I197: 177.7783348 | J197: 0.3240400436 | K197: 0.3889359749 | L197: 2.184679302 | M197: 2.184679301 | P197: 0.386 | Q197: 0.3938682789 | R197: -1.23241391 | S197: 1.052979457 | T197: 0.0006268306793 | U197: -0.01091637693 | AQ197: 0.386 | AR197: 1.052979457 | AS197: 0.0006268306793 | AT197: -0.01091637693 | BA197: 257.3 | BB197: 2.3863 | BC197: 351.5 | BD197: 0.002845 | BE197: 486.92 | BF197: 493.71 | BG197: 1.0814 | BH197: 2.7272 | BI197: 5.9801 | BJ197: 129.04 | BK197: 6.6953 | BL197: 4.5194e-05 | BM197: 0.068607 | BN197: 0.00035514 | BO197: 122.96 | BP197: 0.0081327 | BQ197: 569.56 | BR197: 588.97 | BS197: 1.2609 | BT197: 2.7563 | BU197: 6.4932 | BV197: 91.664 | BW197: 28.275 | BX197: 1.6576e-05 | BY197: 0.043803
B198: =(F198+273.15)/$D$63 -> 1.141590589 | C198: =PsatSLEoS_rchain_Ttilde_VECTOR3($D$66,B198) -> 0.01034101236 | D198: 0.2617709034 | E198: 0.2272974774 | F198: 282.7 | G198: =C198*$D$64 -> 3.19801621 | H198: =D198*$D$65 -> 209.2248068 | I198: =E198*$D$65 -> 181.67134 | J198: =C198/D198/B198*$D$66 -> 0.3311640942 | K198: =C198/E198/B198*$D$66 -> 0.3813906123 | L198: =C198*$D$64*EXP(lnPhiSLEoS_rchain_rhotilde_Ttilde_Ptilde($D$66,D198,B198,C198)) -> 2.188694238 | M198: =C198*$D$64*EXP(lnPhiSLEoS_rchain_rhotilde_Ttilde_Ptilde($D$66,E198,B198,C198)) -> 2.188694237 | P198: 0.388 | Q198: =hrho_rchain_rhotilde_Ttilde_Ptilde($N$13,P198,$N$18,$N$19) -> 0.3959159781 | R198: -1.232582067 | S198: =TSpinodalSLEoS_rchain_rhotilde($N$13,P198) -> 1.05080687 | T198: =PSpinodalSLEoS_rchain_rhotilde($N$13,P198) -> 0.0003165185371 | U198: =Ptilde_rchain_rhotilde_Ttilde($N$13,P198,$N$18) -> -0.01103432812 | AQ198: 0.388 | AR198: =TSpinodalSLEoS_rchain_rhotilde($H$13,AQ198) -> 1.05080687 | AS198: =PSpinodalSLEoS_rchain_rhotilde($H$13,AQ198) -> 0.0003165185371 | AT198: =Ptilde_rchain_rhotilde_Ttilde($H$13,AQ198,$H$16) -> -0.01103432812 | BA198: 258.51 | BB198: 2.4277 | BC198: 344.54 | BD198: 0.0029024 | BE198: 492.35 | BF198: 499.39 | BG198: 1.0918 | BH198: 2.7362 | BI198: 6.444 | BJ198: 121.89 | BK198: 7.5116 | BL198: 4.3808e-05 | BM198: 0.067737 | BN198: 0.00030055 | BO198: 128.08 | BP198: 0.0078076 | BQ198: 570.24 | BR198: 589.19 | BS198: 1.2607 | BT198: 2.7648 | BU198: 7.0393 | BV198: 89.804 | BW198: 28.599 | BX198: 1.6955e-05 | BY198: 0.044356
B199: 1.142001344 | C199: =PsatSLEoS_rchain_Ttilde_VECTOR3($D$66,B199) -> 0.01036616303 | D199: 0.2542698538 | E199: 0.2344675825 | F199: 282.9 | G199: 3.205794198 | H199: 203.2294664 | I199: 187.4021673 | J199: 0.3416398199 | K199: 0.3704934649 | L199: 2.192711747 | M199: 2.192711747 | P199: 0.39 | Q199: 0.3979617159 | R199: -1.232750042 | S199: 1.048616171 | T199: 3.840198398e-07 | U199: -0.01114990136 | AQ199: 0.39 | AR199: 1.048616171 | AS199: 3.840198398e-07 | AT199: -0.01114990136 | BA199: 259.72 | BB199: 2.4696 | BC199: 336.94 | BD199: 0.0029678 | BE199: 497.96 | BF199: 505.29 | BG199: 1.1027 | BH199: 2.7457 | BI199: 7.057 | BJ199: 114.81 | BK199: 8.4805 | BL199: 4.2347e-05 | BM199: 0.066798 | BN199: 0.00024788 | BO199: 133.68 | BP199: 0.0074807 | BQ199: 570.74 | BR199: 589.22 | BS199: 1.2602 | BT199: 2.7735 | BU199: 7.7382 | BV199: 87.908 | BW199: 28.911 | BX199: 1.7378e-05 | BY199: 0.044954
B200: 1.142203547 | C200: =PsatSLEoS_rchain_Ttilde_VECTOR3($D$66,B200) -> 0.01037855957 | D200: 0.2442872415 | E200: 0.2442872415 | F200: =G62 -> 282.9984541 | G200: 3.209627897 | H200: 195.2506953 | I200: 195.2506953 | J200: 0.3559628952 | K200: 0.3559628952 | L200: 2.194690391 | M200: 2.194690391 | P200: 0.392 | Q200: 0.4000054654 | R200: -1.232917799 | S200: 1.046407575 | T200: -0.0003216188934 | U200: -0.01126302851 | AQ200: 0.392 | AR200: 1.046407575 | AS200: -0.0003216188934 | AT200: -0.01126302851 | BA200: 260.93 | BB200: 2.5121 | BC200: 328.57 | BD200: 0.0030435 | BE200: 503.79 | BF200: 511.44 | BG200: 1.114 | BH200: 2.7557 | BI200: 7.8969 | BJ200: 107.87 | BK200: 9.6368 | BL200: 4.0795e-05 | BM200: 0.065777 | BN200: 0.00019737 | BO200: 139.85 | BP200: 0.0071506 | BQ200: 571.04 | BR200: 589.01 | BS200: 1.2592 | BT200: 2.7822 | BU200: 8.6652 | BV200: 85.971 | BW200: 29.202 | BX200: 1.7856e-05 | BY200: 0.045604
P201: 0.394 | Q201: 0.4020471996 | R201: -1.233085302 | S201: 1.044181292 | T201: -0.0006495364954 | U201: -0.01137364071 | AQ201: 0.394 | AR201: 1.044181292 | AS201: -0.0006495364954 | AT201: -0.01137364071 | BA201: 262.98 | BB201: 2.5854 | BC201: 312.06 | BD201: 0.0032045 | BE201: 514.36 | BF201: 522.64 | BG201: 1.1345 | BH201: 2.7744 | BI201: 10.288 | BJ201: 96.631 | BK201: 12.147 | BL201: 3.7912e-05 | BM201: 0.063806 | BN201: 0.00011769 | BO201: 152.05 | BP201: 0.006577 | BQ201: 570.95 | BR201: 587.95 | BS201: 1.2563 | BT201: 2.7971 | BU201: 11.2 | BV201: 82.573 | BW201: 29.617 | BX201: 1.8837e-05 | BY201: 0.046872
... 302 more rows

Sheet Sheet2

Sheet Sheet3
